Workbook

Sheet المقدمة
B2: الخبرات العلمية والعملية • خبير ومدرب EXCEL مالي ومحاسبي • حاصل على بكالوريوس التجارة ودبلوم الدارسات العليا في المحاسبة والمراجعة جامعة القاهرة . • عملت في المجال المالى والمحاسبى الى ان وصلت الى CFO • خبير اكسيل معترف به في مجتمع مايكروسوفت اكسيل وحصلت على العديد من الجوائز منها MCC(Content Creator) • حاصل على شهادة خبير اكسيل MOS expert excel 2010 • خبير اكسيل معتمد في العديد من المنتديات العربية والأجنبي • مؤسس مدونة خبير اكسيل وصفحة وجروب خبير اكسيل على الفيس بوك • حاصل على تدريب مدربين British Accreditation Board &TOT • قدمت مواضيع للماليين مثل تحليل الحساسية بالاكسيل وتحليل التنبؤات بالاكسيل وتحليل التعادل ....الخ وموضوعات اخرى تهم المحاسبين والمدراء الماليين . • قدمت دورات في العديد من الشركات والاقسام والمستويات الإدارية المختلفة داخل الشركات. • قدمت العديد من النماذج المالية للشركات. وما توفيقي الا بالله

Sheet الهدف الاستراتيجى
A1: تحليل مؤشرات الاداء KPI
A2: اسم الشركة | B2: شركة خبير اكسيل محمد الريفى
A3: فترة التطبيق | B3: 2018-01-01 | C3: الى | D3: =EOMONTH(B3-1,1) -> 2018-01-31
A4: نطاق التطبيق | B4: العاملين فى خدمة العملاء والمبيعات (مديرى مبيعات الفروع)
A5: الهدف الاستراتيجى | B5: زيادة المبيعات لتغطية الزيادة فى المصروفات التى حدثت فى الفترة الاخيره
A6: الغرض الاستراتيجى | B6: اتخاذ القرار السليم فى وقتة
A7: المؤشرات | B7: المؤشر الاول | C7: المؤشر الثانى | D7: المؤشر الثالث
A8: النسبة | B8: 0.9 | C8: 0.75 | D8: 0.5
A9: شكل المؤشر | B9: الافضل | C9: الاكثر حدوثا | D9: الاسوء
A10: رد الفعل | B10: منح حوافز عالية | C10: التشجيع للوصول للهدف | D10: البحث عن السبب والمعالجه
D11: KPI Module Powered By Mohamed Elrify
A13: للتواصل
A14: خبير اكسيل | D14: https://www.facebook.com/xlxpert/
A15: اكاديمية خبير اكسيل | D15: https://www.facebook.com/excelexpertacademy/
A16: جروب خبير اكسيل | D16: https://www.facebook.com/groups/GROUP.xlxpert/
A17: الصفحة الشخصية | D17: https://www.facebook.com/mohamed.elrify2
A18: لينكدان | D18: https://www.linkedin.com/in/mohamed-elrify/
A19: البريد الالكترونى | D19: xl.financial@gmail.com
A20: التليفون | D20: 0201026059594

Sheet 1
B2: معلومات عن الموظف | E2: معلومات استراتيجية | H2: مؤشر الاداء
B3: الاسم | C3: محمد الريفى | E3: التارجيت الشهرى المطلوب | G3: 100 | H3: اجمالى التارجيت المحقق | I3: =$E$39 -> 197
B4: الفرع | E4: متوسط مبيعات اخر 6 شهور | H4: النسبة المحققة | I4: =G39 -> 0.788
B5: القسم | E5: نسبة التطوير (الزيادة) | G5: =IFERROR(G3/G4-1,"") ->  | H5: القرار الادارى | I5: =IF($I$4>='الهدف الاستراتيجى'!$B$8,'الهدف الاستراتيجى'!$B$10,IF($I$4>='الهدف الاستراتيجى'!$C$8,'الهدف الاستراتيجى'!$C$10,IF($I$4>='الهدف الاستراتيجى'!$D$8,'الهدف الاستراتيجى'!$D$10,""))) -> التشجيع للوصول للهدف
B7: التاريخ | C7: اليوم | D7: التارجيت | E7: المحقق | F7: الفرق | G7: نسبة الهدف | H7: الاجراء | I7: ملاحظات
B8: ='الهدف الاستراتيجى'!$B$3 -> 2018-01-01 | C8: =TEXT(B8,"dddd") -> الإثنين | D8: 100 | E8: 50 | F8: =Table1[[#This Row],[التارجيت]]-Table1[[#This Row],[المحقق]] -> 50 | G8: =IFERROR(E8/D8,"") -> 0.5
B9: =IF($B8<'الهدف الاستراتيجى'!$D$3,'1'!$B8+1,"") -> 2018-01-02 | C9: =TEXT(B9,"dddd") -> الثلاثاء | D9: 150 | E9: 147 | F9: =Table1[[#This Row],[التارجيت]]-Table1[[#This Row],[المحقق]] -> 3 | G9: =IFERROR(E9/D9,"") -> 0.98
B10: =IF($B9<'الهدف الاستراتيجى'!$D$3,'1'!$B9+1,"") -> 2018-01-03 | C10: الأربعاء | F10: =Table1[[#This Row],[التارجيت]]-Table1[[#This Row],[المحقق]] -> 0
B11: =IF($B10<'الهدف الاستراتيجى'!$D$3,'1'!$B10+1,"") -> 2018-01-04 | C11: الخميس | F11: =Table1[[#This Row],[التارجيت]]-Table1[[#This Row],[المحقق]] -> 0
B12: =IF($B11<'الهدف الاستراتيجى'!$D$3,'1'!$B11+1,"") -> 2018-01-05 | C12: الجمعة | F12: =Table1[[#This Row],[التارجيت]]-Table1[[#This Row],[المحقق]] -> 0
B13: =IF($B12<'الهدف الاستراتيجى'!$D$3,'1'!$B12+1,"") -> 2018-01-06 | C13: السبت | F13: =Table1[[#This Row],[التارجيت]]-Table1[[#This Row],[المحقق]] -> 0
B14: =IF($B13<'الهدف الاستراتيجى'!$D$3,'1'!$B13+1,"") -> 2018-01-07 | C14: الأحد | F14: =Table1[[#This Row],[التارجيت]]-Table1[[#This Row],[المحقق]] -> 0
B15: =IF($B14<'الهدف الاستراتيجى'!$D$3,'1'!$B14+1,"") -> 2018-01-08 | C15: الإثنين | F15: =Table1[[#This Row],[التارجيت]]-Table1[[#This Row],[المحقق]] -> 0
B16: =IF($B15<'الهدف الاستراتيجى'!$D$3,'1'!$B15+1,"") -> 2018-01-09 | C16: الثلاثاء | F16: =Table1[[#This Row],[التارجيت]]-Table1[[#This Row],[المحقق]] -> 0
B17: =IF($B16<'الهدف الاستراتيجى'!$D$3,'1'!$B16+1,"") -> 2018-01-10 | C17: الأربعاء | F17: =Table1[[#This Row],[التارجيت]]-Table1[[#This Row],[المحقق]] -> 0
B18: =IF($B17<'الهدف الاستراتيجى'!$D$3,'1'!$B17+1,"") -> 2018-01-11 | C18: الخميس | F18: =Table1[[#This Row],[التارجيت]]-Table1[[#This Row],[المحقق]] -> 0
B19: =IF($B18<'الهدف الاستراتيجى'!$D$3,'1'!$B18+1,"") -> 2018-01-12 | C19: الجمعة | F19: =Table1[[#This Row],[التارجيت]]-Table1[[#This Row],[المحقق]] -> 0
B20: =IF($B19<'الهدف الاستراتيجى'!$D$3,'1'!$B19+1,"") -> 2018-01-13 | C20: السبت | F20: =Table1[[#This Row],[التارجيت]]-Table1[[#This Row],[المحقق]] -> 0
B21: =IF($B20<'الهدف الاستراتيجى'!$D$3,'1'!$B20+1,"") -> 2018-01-14 | C21: الأحد | F21: =Table1[[#This Row],[التارجيت]]-Table1[[#This Row],[المحقق]] -> 0
B22: =IF($B21<'الهدف الاستراتيجى'!$D$3,'1'!$B21+1,"") -> 2018-01-15 | C22: الإثنين | F22: =Table1[[#This Row],[التارجيت]]-Table1[[#This Row],[المحقق]] -> 0
B23: =IF($B22<'الهدف الاستراتيجى'!$D$3,'1'!$B22+1,"") -> 2018-01-16 | C23: الثلاثاء | F23: =Table1[[#This Row],[التارجيت]]-Table1[[#This Row],[المحقق]] -> 0
B24: =IF($B23<'الهدف الاستراتيجى'!$D$3,'1'!$B23+1,"") -> 2018-01-17 | C24: الأربعاء | F24: =Table1[[#This Row],[التارجيت]]-Table1[[#This Row],[المحقق]] -> 0
B25: =IF($B24<'الهدف الاستراتيجى'!$D$3,'1'!$B24+1,"") -> 2018-01-18 | C25: الخميس | F25: =Table1[[#This Row],[التارجيت]]-Table1[[#This Row],[المحقق]] -> 0
B26: =IF($B25<'الهدف الاستراتيجى'!$D$3,'1'!$B25+1,"") -> 2018-01-19 | C26: الجمعة | F26: =Table1[[#This Row],[التارجيت]]-Table1[[#This Row],[المحقق]] -> 0
B27: =IF($B26<'الهدف الاستراتيجى'!$D$3,'1'!$B26+1,"") -> 2018-01-20 | C27: السبت | F27: =Table1[[#This Row],[التارجيت]]-Table1[[#This Row],[المحقق]] -> 0
B28: =IF($B27<'الهدف الاستراتيجى'!$D$3,'1'!$B27+1,"") -> 2018-01-21 | C28: الأحد | F28: =Table1[[#This Row],[التارجيت]]-Table1[[#This Row],[المحقق]] -> 0
B29: =IF($B28<'الهدف الاستراتيجى'!$D$3,'1'!$B28+1,"") -> 2018-01-22 | C29: الإثنين | F29: =Table1[[#This Row],[التارجيت]]-Table1[[#This Row],[المحقق]] -> 0
B30: =IF($B29<'الهدف الاستراتيجى'!$D$3,'1'!$B29+1,"") -> 2018-01-23 | C30: الثلاثاء | F30: =Table1[[#This Row],[التارجيت]]-Table1[[#This Row],[المحقق]] -> 0
B31: =IF($B30<'الهدف الاستراتيجى'!$D$3,'1'!$B30+1,"") -> 2018-01-24 | C31: الأربعاء | F31: =Table1[[#This Row],[التارجيت]]-Table1[[#This Row],[المحقق]] -> 0
B32: =IF($B31<'الهدف الاستراتيجى'!$D$3,'1'!$B31+1,"") -> 2018-01-25 | C32: الخميس | F32: =Table1[[#This Row],[التارجيت]]-Table1[[#This Row],[المحقق]] -> 0
B33: =IF($B32<'الهدف الاستراتيجى'!$D$3,'1'!$B32+1,"") -> 2018-01-26 | C33: الجمعة | F33: =Table1[[#This Row],[التارجيت]]-Table1[[#This Row],[المحقق]] -> 0
B34: =IF($B33<'الهدف الاستراتيجى'!$D$3,'1'!$B33+1,"") -> 2018-01-27 | C34: السبت | F34: =Table1[[#This Row],[التارجيت]]-Table1[[#This Row],[المحقق]] -> 0
B35: =IF($B34<'الهدف الاستراتيجى'!$D$3,'1'!$B34+1,"") -> 2018-01-28 | C35: الأحد | F35: =Table1[[#This Row],[التارجيت]]-Table1[[#This Row],[المحقق]] -> 0
B36: =IF($B35<'الهدف الاستراتيجى'!$D$3,'1'!$B35+1,"") -> 2018-01-29 | C36: الإثنين | F36: =Table1[[#This Row],[التارجيت]]-Table1[[#This Row],[المحقق]] -> 0
B37: =IF($B36<'الهدف الاستراتيجى'!$D$3,'1'!$B36+1,"") -> 2018-01-30 | C37: الثلاثاء | F37: =Table1[[#This Row],[التارجيت]]-Table1[[#This Row],[المحقق]] -> 0
B38: =IF($B37<'الهدف الاستراتيجى'!$D$3,'1'!$B37+1,"") -> 2018-01-31 | C38: الأربعاء | F38: =Table1[[#This Row],[التارجيت]]-Table1[[#This Row],[المحقق]] -> 0
B39: المجموع | D39: =SUM(D8:D38) -> 250 | E39: =SUM(E8:E38) -> 197 | F39: =Table1[[#This Row],[التارجيت]]-Table1[[#This Row],[المحقق]] -> 53 | G39: =IFERROR(E39/D39,"") -> 0.788
B40: المتوسط اليومى | D40: =AVERAGE(D8:D38) -> 125 | E40: =AVERAGE(E8:E38) -> 98.5 | G40: =AVERAGE(G8:G38) -> 0.74
B41: توزيع التارجيت بشكل صحيح | E41: =D39-G3 -> 150 | H41: =IF($E$41=0,CHAR(252),CHAR(251)) -> û

Sheet 2
B2: معلومات عن الموظف | E2: معلومات استراتيجية | H2: مؤشر الاداء
B3: الاسم | C3: على | E3: التارجيت الشهرى المطلوب | H3: اجمالى التارجيت المحقق | I3: =$E$39 -> 0
B4: الفرع | E4: متوسط مبيعات اخر 6 شهور | H4: النسبة المحققة | I4: =G39 -> 
B5: القسم | E5: نسبة التطوير (الزيادة) | G5: =IFERROR(G3/G4-1,"") ->  | H5: القرار الادارى | I5: =IF($I$4>='الهدف الاستراتيجى'!$B$8,'الهدف الاستراتيجى'!$B$10,IF($I$4>='الهدف الاستراتيجى'!$C$8,'الهدف الاستراتيجى'!$C$10,IF($I$4>='الهدف الاستراتيجى'!$D$8,'الهدف الاستراتيجى'!$D$10,""))) -> منح حوافز عالية
B7: التاريخ | C7: اليوم | D7: التارجيت | E7: المحقق | F7: الفرق | G7: نسبة الهدف | H7: الاجراء | I7: ملاحظات
B8: ='الهدف الاستراتيجى'!$B$3 -> 2018-01-01 | C8: =TEXT(B8,"dddd") -> الإثنين | F8: =Table13[[#This Row],[التارجيت]]-Table13[[#This Row],[المحقق]] -> 0 | G8: =IFERROR(E8/D8,"") -> 
B9: =IF($B8<'الهدف الاستراتيجى'!$D$3,'2'!$B8+1,"") -> 2018-01-02 | C9: =TEXT(B9,"dddd") -> الثلاثاء | F9: =Table13[[#This Row],[التارجيت]]-Table13[[#This Row],[المحقق]] -> 0 | G9: =IFERROR(E9/D9,"") -> 
B10: =IF($B9<'الهدف الاستراتيجى'!$D$3,'2'!$B9+1,"") -> 2018-01-03 | C10: الأربعاء | F10: =Table13[[#This Row],[التارجيت]]-Table13[[#This Row],[المحقق]] -> 0
B11: =IF($B10<'الهدف الاستراتيجى'!$D$3,'2'!$B10+1,"") -> 2018-01-04 | C11: الخميس | F11: =Table13[[#This Row],[التارجيت]]-Table13[[#This Row],[المحقق]] -> 0
B12: =IF($B11<'الهدف الاستراتيجى'!$D$3,'2'!$B11+1,"") -> 2018-01-05 | C12: الجمعة | F12: =Table13[[#This Row],[التارجيت]]-Table13[[#This Row],[المحقق]] -> 0
B13: =IF($B12<'الهدف الاستراتيجى'!$D$3,'2'!$B12+1,"") -> 2018-01-06 | C13: السبت | F13: =Table13[[#This Row],[التارجيت]]-Table13[[#This Row],[المحقق]] -> 0
B14: =IF($B13<'الهدف الاستراتيجى'!$D$3,'2'!$B13+1,"") -> 2018-01-07 | C14: الأحد | F14: =Table13[[#This Row],[التارجيت]]-Table13[[#This Row],[المحقق]] -> 0
B15: =IF($B14<'الهدف الاستراتيجى'!$D$3,'2'!$B14+1,"") -> 2018-01-08 | C15: الإثنين | F15: =Table13[[#This Row],[التارجيت]]-Table13[[#This Row],[المحقق]] -> 0
B16: =IF($B15<'الهدف الاستراتيجى'!$D$3,'2'!$B15+1,"") -> 2018-01-09 | C16: الثلاثاء | F16: =Table13[[#This Row],[التارجيت]]-Table13[[#This Row],[المحقق]] -> 0
B17: =IF($B16<'الهدف الاستراتيجى'!$D$3,'2'!$B16+1,"") -> 2018-01-10 | C17: الأربعاء | F17: =Table13[[#This Row],[التارجيت]]-Table13[[#This Row],[المحقق]] -> 0
B18: =IF($B17<'الهدف الاستراتيجى'!$D$3,'2'!$B17+1,"") -> 2018-01-11 | C18: الخميس | F18: =Table13[[#This Row],[التارجيت]]-Table13[[#This Row],[المحقق]] -> 0
B19: =IF($B18<'الهدف الاستراتيجى'!$D$3,'2'!$B18+1,"") -> 2018-01-12 | C19: الجمعة | F19: =Table13[[#This Row],[التارجيت]]-Table13[[#This Row],[المحقق]] -> 0
B20: =IF($B19<'الهدف الاستراتيجى'!$D$3,'2'!$B19+1,"") -> 2018-01-13 | C20: السبت | F20: =Table13[[#This Row],[التارجيت]]-Table13[[#This Row],[المحقق]] -> 0
B21: =IF($B20<'الهدف الاستراتيجى'!$D$3,'2'!$B20+1,"") -> 2018-01-14 | C21: الأحد | F21: =Table13[[#This Row],[التارجيت]]-Table13[[#This Row],[المحقق]] -> 0
B22: =IF($B21<'الهدف الاستراتيجى'!$D$3,'2'!$B21+1,"") -> 2018-01-15 | C22: الإثنين | F22: =Table13[[#This Row],[التارجيت]]-Table13[[#This Row],[المحقق]] -> 0
B23: =IF($B22<'الهدف الاستراتيجى'!$D$3,'2'!$B22+1,"") -> 2018-01-16 | C23: الثلاثاء | F23: =Table13[[#This Row],[التارجيت]]-Table13[[#This Row],[المحقق]] -> 0
B24: =IF($B23<'الهدف الاستراتيجى'!$D$3,'2'!$B23+1,"") -> 2018-01-17 | C24: الأربعاء | F24: =Table13[[#This Row],[التارجيت]]-Table13[[#This Row],[المحقق]] -> 0
B25: =IF($B24<'الهدف الاستراتيجى'!$D$3,'2'!$B24+1,"") -> 2018-01-18 | C25: الخميس | F25: =Table13[[#This Row],[التارجيت]]-Table13[[#This Row],[المحقق]] -> 0
B26: =IF($B25<'الهدف الاستراتيجى'!$D$3,'2'!$B25+1,"") -> 2018-01-19 | C26: الجمعة | F26: =Table13[[#This Row],[التارجيت]]-Table13[[#This Row],[المحقق]] -> 0
B27: =IF($B26<'الهدف الاستراتيجى'!$D$3,'2'!$B26+1,"") -> 2018-01-20 | C27: السبت | F27: =Table13[[#This Row],[التارجيت]]-Table13[[#This Row],[المحقق]] -> 0
B28: =IF($B27<'الهدف الاستراتيجى'!$D$3,'2'!$B27+1,"") -> 2018-01-21 | C28: الأحد | F28: =Table13[[#This Row],[التارجيت]]-Table13[[#This Row],[المحقق]] -> 0
B29: =IF($B28<'الهدف الاستراتيجى'!$D$3,'2'!$B28+1,"") -> 2018-01-22 | C29: الإثنين | F29: =Table13[[#This Row],[التارجيت]]-Table13[[#This Row],[المحقق]] -> 0
B30: =IF($B29<'الهدف الاستراتيجى'!$D$3,'2'!$B29+1,"") -> 2018-01-23 | C30: الثلاثاء | F30: =Table13[[#This Row],[التارجيت]]-Table13[[#This Row],[المحقق]] -> 0
B31: =IF($B30<'الهدف الاستراتيجى'!$D$3,'2'!$B30+1,"") -> 2018-01-24 | C31: الأربعاء | F31: =Table13[[#This Row],[التارجيت]]-Table13[[#This Row],[المحقق]] -> 0
B32: =IF($B31<'الهدف الاستراتيجى'!$D$3,'2'!$B31+1,"") -> 2018-01-25 | C32: الخميس | F32: =Table13[[#This Row],[التارجيت]]-Table13[[#This Row],[المحقق]] -> 0
B33: =IF($B32<'الهدف الاستراتيجى'!$D$3,'2'!$B32+1,"") -> 2018-01-26 | C33: الجمعة | F33: =Table13[[#This Row],[التارجيت]]-Table13[[#This Row],[المحقق]] -> 0
B34: =IF($B33<'الهدف الاستراتيجى'!$D$3,'2'!$B33+1,"") -> 2018-01-27 | C34: السبت | F34: =Table13[[#This Row],[التارجيت]]-Table13[[#This Row],[المحقق]] -> 0
B35: =IF($B34<'الهدف الاستراتيجى'!$D$3,'2'!$B34+1,"") -> 2018-01-28 | C35: الأحد | F35: =Table13[[#This Row],[التارجيت]]-Table13[[#This Row],[المحقق]] -> 0
B36: =IF($B35<'الهدف الاستراتيجى'!$D$3,'2'!$B35+1,"") -> 2018-01-29 | C36: الإثنين | F36: =Table13[[#This Row],[التارجيت]]-Table13[[#This Row],[المحقق]] -> 0
B37: =IF($B36<'الهدف الاستراتيجى'!$D$3,'2'!$B36+1,"") -> 2018-01-30 | C37: الثلاثاء | F37: =Table13[[#This Row],[التارجيت]]-Table13[[#This Row],[المحقق]] -> 0
B38: =IF($B37<'الهدف الاستراتيجى'!$D$3,'2'!$B37+1,"") -> 2018-01-31 | C38: الأربعاء | F38: =Table13[[#This Row],[التارجيت]]-Table13[[#This Row],[المحقق]] -> 0
B39: المجموع | D39: =SUM(D8:D38) -> 0 | E39: =SUM(E8:E38) -> 0 | F39: =Table13[[#This Row],[التارجيت]]-Table13[[#This Row],[المحقق]] -> 0
B40: المتوسط اليومى | D40: =AVERAGE(D8:D38) ->  | E40: =AVERAGE(E8:E38) ->  | G40: =AVERAGE(G8:G38) -> 
B41: توزيع التارجيت بشكل صحيح | E41: =D39-G3 -> 0 | H41: =IF($E$41=0,CHAR(252),CHAR(251)) -> ü

Sheet 3
B2: معلومات عن الموظف | E2: معلومات استراتيجية | H2: مؤشر الاداء
B3: الاسم | C3: ابراهيم | E3: التارجيت الشهرى المطلوب | H3: اجمالى التارجيت المحقق | I3: =$E$39 -> 0
B4: الفرع | E4: متوسط مبيعات اخر 6 شهور | H4: النسبة المحققة | I4: =G39 -> 
B5: القسم | E5: نسبة التطوير (الزيادة) | G5: =IFERROR(G3/G4-1,"") ->  | H5: القرار الادارى | I5: =IF($I$4>='الهدف الاستراتيجى'!$B$8,'الهدف الاستراتيجى'!$B$10,IF($I$4>='الهدف الاستراتيجى'!$C$8,'الهدف الاستراتيجى'!$C$10,IF($I$4>='الهدف الاستراتيجى'!$D$8,'الهدف الاستراتيجى'!$D$10,""))) -> منح حوافز عالية
B7: التاريخ | C7: اليوم | D7: التارجيت | E7: المحقق | F7: الفرق | G7: نسبة الهدف | H7: الاجراء | I7: ملاحظات
B8: ='الهدف الاستراتيجى'!$B$3 -> 2018-01-01 | C8: =TEXT(B8,"dddd") -> الإثنين | F8: =Table14[[#This Row],[التارجيت]]-Table14[[#This Row],[المحقق]] -> 0 | G8: =IFERROR(E8/D8,"") -> 
B9: =IF($B8<'الهدف الاستراتيجى'!$D$3,'3'!$B8+1,"") -> 2018-01-02 | C9: =TEXT(B9,"dddd") -> الثلاثاء | F9: =Table14[[#This Row],[التارجيت]]-Table14[[#This Row],[المحقق]] -> 0 | G9: =IFERROR(E9/D9,"") -> 
B10: =IF($B9<'الهدف الاستراتيجى'!$D$3,'3'!$B9+1,"") -> 2018-01-03 | C10: الأربعاء | F10: =Table14[[#This Row],[التارجيت]]-Table14[[#This Row],[المحقق]] -> 0
B11: =IF($B10<'الهدف الاستراتيجى'!$D$3,'3'!$B10+1,"") -> 2018-01-04 | C11: الخميس | F11: =Table14[[#This Row],[التارجيت]]-Table14[[#This Row],[المحقق]] -> 0
B12: =IF($B11<'الهدف الاستراتيجى'!$D$3,'3'!$B11+1,"") -> 2018-01-05 | C12: الجمعة | F12: =Table14[[#This Row],[التارجيت]]-Table14[[#This Row],[المحقق]] -> 0
B13: =IF($B12<'الهدف الاستراتيجى'!$D$3,'3'!$B12+1,"") -> 2018-01-06 | C13: السبت | F13: =Table14[[#This Row],[التارجيت]]-Table14[[#This Row],[المحقق]] -> 0
B14: =IF($B13<'الهدف الاستراتيجى'!$D$3,'3'!$B13+1,"") -> 2018-01-07 | C14: الأحد | F14: =Table14[[#This Row],[التارجيت]]-Table14[[#This Row],[المحقق]] -> 0
B15: =IF($B14<'الهدف الاستراتيجى'!$D$3,'3'!$B14+1,"") -> 2018-01-08 | C15: الإثنين | F15: =Table14[[#This Row],[التارجيت]]-Table14[[#This Row],[المحقق]] -> 0
B16: =IF($B15<'الهدف الاستراتيجى'!$D$3,'3'!$B15+1,"") -> 2018-01-09 | C16: الثلاثاء | F16: =Table14[[#This Row],[التارجيت]]-Table14[[#This Row],[المحقق]] -> 0
B17: =IF($B16<'الهدف الاستراتيجى'!$D$3,'3'!$B16+1,"") -> 2018-01-10 | C17: الأربعاء | F17: =Table14[[#This Row],[التارجيت]]-Table14[[#This Row],[المحقق]] -> 0
B18: =IF($B17<'الهدف الاستراتيجى'!$D$3,'3'!$B17+1,"") -> 2018-01-11 | C18: الخميس | F18: =Table14[[#This Row],[التارجيت]]-Table14[[#This Row],[المحقق]] -> 0
B19: =IF($B18<'الهدف الاستراتيجى'!$D$3,'3'!$B18+1,"") -> 2018-01-12 | C19: الجمعة | F19: =Table14[[#This Row],[التارجيت]]-Table14[[#This Row],[المحقق]] -> 0
B20: =IF($B19<'الهدف الاستراتيجى'!$D$3,'3'!$B19+1,"") -> 2018-01-13 | C20: السبت | F20: =Table14[[#This Row],[التارجيت]]-Table14[[#This Row],[المحقق]] -> 0
B21: =IF($B20<'الهدف الاستراتيجى'!$D$3,'3'!$B20+1,"") -> 2018-01-14 | C21: الأحد | F21: =Table14[[#This Row],[التارجيت]]-Table14[[#This Row],[المحقق]] -> 0
B22: =IF($B21<'الهدف الاستراتيجى'!$D$3,'3'!$B21+1,"") -> 2018-01-15 | C22: الإثنين | F22: =Table14[[#This Row],[التارجيت]]-Table14[[#This Row],[المحقق]] -> 0
B23: =IF($B22<'الهدف الاستراتيجى'!$D$3,'3'!$B22+1,"") -> 2018-01-16 | C23: الثلاثاء | F23: =Table14[[#This Row],[التارجيت]]-Table14[[#This Row],[المحقق]] -> 0
B24: =IF($B23<'الهدف الاستراتيجى'!$D$3,'3'!$B23+1,"") -> 2018-01-17 | C24: الأربعاء | F24: =Table14[[#This Row],[التارجيت]]-Table14[[#This Row],[المحقق]] -> 0
B25: =IF($B24<'الهدف الاستراتيجى'!$D$3,'3'!$B24+1,"") -> 2018-01-18 | C25: الخميس | F25: =Table14[[#This Row],[التارجيت]]-Table14[[#This Row],[المحقق]] -> 0
B26: =IF($B25<'الهدف الاستراتيجى'!$D$3,'3'!$B25+1,"") -> 2018-01-19 | C26: الجمعة | F26: =Table14[[#This Row],[التارجيت]]-Table14[[#This Row],[المحقق]] -> 0
B27: =IF($B26<'الهدف الاستراتيجى'!$D$3,'3'!$B26+1,"") -> 2018-01-20 | C27: السبت | F27: =Table14[[#This Row],[التارجيت]]-Table14[[#This Row],[المحقق]] -> 0
B28: =IF($B27<'الهدف الاستراتيجى'!$D$3,'3'!$B27+1,"") -> 2018-01-21 | C28: الأحد | F28: =Table14[[#This Row],[التارجيت]]-Table14[[#This Row],[المحقق]] -> 0
B29: =IF($B28<'الهدف الاستراتيجى'!$D$3,'3'!$B28+1,"") -> 2018-01-22 | C29: الإثنين | F29: =Table14[[#This Row],[التارجيت]]-Table14[[#This Row],[المحقق]] -> 0
B30: =IF($B29<'الهدف الاستراتيجى'!$D$3,'3'!$B29+1,"") -> 2018-01-23 | C30: الثلاثاء | F30: =Table14[[#This Row],[التارجيت]]-Table14[[#This Row],[المحقق]] -> 0
B31: =IF($B30<'الهدف الاستراتيجى'!$D$3,'3'!$B30+1,"") -> 2018-01-24 | C31: الأربعاء | F31: =Table14[[#This Row],[التارجيت]]-Table14[[#This Row],[المحقق]] -> 0
B32: =IF($B31<'الهدف الاستراتيجى'!$D$3,'3'!$B31+1,"") -> 2018-01-25 | C32: الخميس | F32: =Table14[[#This Row],[التارجيت]]-Table14[[#This Row],[المحقق]] -> 0
B33: =IF($B32<'الهدف الاستراتيجى'!$D$3,'3'!$B32+1,"") -> 2018-01-26 | C33: الجمعة | F33: =Table14[[#This Row],[التارجيت]]-Table14[[#This Row],[المحقق]] -> 0
B34: =IF($B33<'الهدف الاستراتيجى'!$D$3,'3'!$B33+1,"") -> 2018-01-27 | C34: السبت | F34: =Table14[[#This Row],[التارجيت]]-Table14[[#This Row],[المحقق]] -> 0
B35: =IF($B34<'الهدف الاستراتيجى'!$D$3,'3'!$B34+1,"") -> 2018-01-28 | C35: الأحد | F35: =Table14[[#This Row],[التارجيت]]-Table14[[#This Row],[المحقق]] -> 0
B36: =IF($B35<'الهدف الاستراتيجى'!$D$3,'3'!$B35+1,"") -> 2018-01-29 | C36: الإثنين | F36: =Table14[[#This Row],[التارجيت]]-Table14[[#This Row],[المحقق]] -> 0
B37: =IF($B36<'الهدف الاستراتيجى'!$D$3,'3'!$B36+1,"") -> 2018-01-30 | C37: الثلاثاء | F37: =Table14[[#This Row],[التارجيت]]-Table14[[#This Row],[المحقق]] -> 0
B38: =IF($B37<'الهدف الاستراتيجى'!$D$3,'3'!$B37+1,"") -> 2018-01-31 | C38: الأربعاء | F38: =Table14[[#This Row],[التارجيت]]-Table14[[#This Row],[المحقق]] -> 0
B39: المجموع | D39: =SUM(D8:D38) -> 0 | E39: =SUM(E8:E38) -> 0 | F39: =Table14[[#This Row],[التارجيت]]-Table14[[#This Row],[المحقق]] -> 0
B40: المتوسط اليومى | D40: =AVERAGE(D8:D38) ->  | E40: =AVERAGE(E8:E38) ->  | G40: =AVERAGE(G8:G38) -> 
B41: توزيع التارجيت بشكل صحيح | E41: =D39-G3 -> 0 | H41: =IF($E$41=0,CHAR(252),CHAR(251)) -> ü

Sheet 4
B2: معلومات عن الموظف | E2: معلومات استراتيجية | H2: مؤشر الاداء
B3: الاسم | C3: حسن | E3: التارجيت الشهرى المطلوب | H3: اجمالى التارجيت المحقق | I3: =$E$39 -> 0
B4: الفرع | E4: متوسط مبيعات اخر 6 شهور | H4: النسبة المحققة | I4: =G39 -> 
B5: القسم | E5: نسبة التطوير (الزيادة) | G5: =IFERROR(G3/G4-1,"") ->  | H5: القرار الادارى | I5: =IF($I$4>='الهدف الاستراتيجى'!$B$8,'الهدف الاستراتيجى'!$B$10,IF($I$4>='الهدف الاستراتيجى'!$C$8,'الهدف الاستراتيجى'!$C$10,IF($I$4>='الهدف الاستراتيجى'!$D$8,'الهدف الاستراتيجى'!$D$10,""))) -> منح حوافز عالية
B7: التاريخ | C7: اليوم | D7: التارجيت | E7: المحقق | F7: الفرق | G7: نسبة الهدف | H7: الاجراء | I7: ملاحظات
B8: ='الهدف الاستراتيجى'!$B$3 -> 2018-01-01 | C8: =TEXT(B8,"dddd") -> الإثنين | F8: =Table145[[#This Row],[التارجيت]]-Table145[[#This Row],[المحقق]] -> 0 | G8: =IFERROR(E8/D8,"") -> 
B9: =IF($B8<'الهدف الاستراتيجى'!$D$3,'4'!$B8+1,"") -> 2018-01-02 | C9: =TEXT(B9,"dddd") -> الثلاثاء | F9: =Table145[[#This Row],[التارجيت]]-Table145[[#This Row],[المحقق]] -> 0 | G9: =IFERROR(E9/D9,"") -> 
B10: =IF($B9<'الهدف الاستراتيجى'!$D$3,'4'!$B9+1,"") -> 2018-01-03 | C10: الأربعاء | F10: =Table145[[#This Row],[التارجيت]]-Table145[[#This Row],[المحقق]] -> 0
B11: =IF($B10<'الهدف الاستراتيجى'!$D$3,'4'!$B10+1,"") -> 2018-01-04 | C11: الخميس | F11: =Table145[[#This Row],[التارجيت]]-Table145[[#This Row],[المحقق]] -> 0
B12: =IF($B11<'الهدف الاستراتيجى'!$D$3,'4'!$B11+1,"") -> 2018-01-05 | C12: الجمعة | F12: =Table145[[#This Row],[التارجيت]]-Table145[[#This Row],[المحقق]] -> 0
B13: =IF($B12<'الهدف الاستراتيجى'!$D$3,'4'!$B12+1,"") -> 2018-01-06 | C13: السبت | F13: =Table145[[#This Row],[التارجيت]]-Table145[[#This Row],[المحقق]] -> 0
B14: =IF($B13<'الهدف الاستراتيجى'!$D$3,'4'!$B13+1,"") -> 2018-01-07 | C14: الأحد | F14: =Table145[[#This Row],[التارجيت]]-Table145[[#This Row],[المحقق]] -> 0
B15: =IF($B14<'الهدف الاستراتيجى'!$D$3,'4'!$B14+1,"") -> 2018-01-08 | C15: الإثنين | F15: =Table145[[#This Row],[التارجيت]]-Table145[[#This Row],[المحقق]] -> 0
B16: =IF($B15<'الهدف الاستراتيجى'!$D$3,'4'!$B15+1,"") -> 2018-01-09 | C16: الثلاثاء | F16: =Table145[[#This Row],[التارجيت]]-Table145[[#This Row],[المحقق]] -> 0
B17: =IF($B16<'الهدف الاستراتيجى'!$D$3,'4'!$B16+1,"") -> 2018-01-10 | C17: الأربعاء | F17: =Table145[[#This Row],[التارجيت]]-Table145[[#This Row],[المحقق]] -> 0
B18: =IF($B17<'الهدف الاستراتيجى'!$D$3,'4'!$B17+1,"") -> 2018-01-11 | C18: الخميس | F18: =Table145[[#This Row],[التارجيت]]-Table145[[#This Row],[المحقق]] -> 0
B19: =IF($B18<'الهدف الاستراتيجى'!$D$3,'4'!$B18+1,"") -> 2018-01-12 | C19: الجمعة | F19: =Table145[[#This Row],[التارجيت]]-Table145[[#This Row],[المحقق]] -> 0
B20: =IF($B19<'الهدف الاستراتيجى'!$D$3,'4'!$B19+1,"") -> 2018-01-13 | C20: السبت | F20: =Table145[[#This Row],[التارجيت]]-Table145[[#This Row],[المحقق]] -> 0
B21: =IF($B20<'الهدف الاستراتيجى'!$D$3,'4'!$B20+1,"") -> 2018-01-14 | C21: الأحد | F21: =Table145[[#This Row],[التارجيت]]-Table145[[#This Row],[المحقق]] -> 0
B22: =IF($B21<'الهدف الاستراتيجى'!$D$3,'4'!$B21+1,"") -> 2018-01-15 | C22: الإثنين | F22: =Table145[[#This Row],[التارجيت]]-Table145[[#This Row],[المحقق]] -> 0
B23: =IF($B22<'الهدف الاستراتيجى'!$D$3,'4'!$B22+1,"") -> 2018-01-16 | C23: الثلاثاء | F23: =Table145[[#This Row],[التارجيت]]-Table145[[#This Row],[المحقق]] -> 0
B24: =IF($B23<'الهدف الاستراتيجى'!$D$3,'4'!$B23+1,"") -> 2018-01-17 | C24: الأربعاء | F24: =Table145[[#This Row],[التارجيت]]-Table145[[#This Row],[المحقق]] -> 0
B25: =IF($B24<'الهدف الاستراتيجى'!$D$3,'4'!$B24+1,"") -> 2018-01-18 | C25: الخميس | F25: =Table145[[#This Row],[التارجيت]]-Table145[[#This Row],[المحقق]] -> 0
B26: =IF($B25<'الهدف الاستراتيجى'!$D$3,'4'!$B25+1,"") -> 2018-01-19 | C26: الجمعة | F26: =Table145[[#This Row],[التارجيت]]-Table145[[#This Row],[المحقق]] -> 0
B27: =IF($B26<'الهدف الاستراتيجى'!$D$3,'4'!$B26+1,"") -> 2018-01-20 | C27: السبت | F27: =Table145[[#This Row],[التارجيت]]-Table145[[#This Row],[المحقق]] -> 0
B28: =IF($B27<'الهدف الاستراتيجى'!$D$3,'4'!$B27+1,"") -> 2018-01-21 | C28: الأحد | F28: =Table145[[#This Row],[التارجيت]]-Table145[[#This Row],[المحقق]] -> 0
B29: =IF($B28<'الهدف الاستراتيجى'!$D$3,'4'!$B28+1,"") -> 2018-01-22 | C29: الإثنين | F29: =Table145[[#This Row],[التارجيت]]-Table145[[#This Row],[المحقق]] -> 0
B30: =IF($B29<'الهدف الاستراتيجى'!$D$3,'4'!$B29+1,"") -> 2018-01-23 | C30: الثلاثاء | F30: =Table145[[#This Row],[التارجيت]]-Table145[[#This Row],[المحقق]] -> 0
B31: =IF($B30<'الهدف الاستراتيجى'!$D$3,'4'!$B30+1,"") -> 2018-01-24 | C31: الأربعاء | F31: =Table145[[#This Row],[التارجيت]]-Table145[[#This Row],[المحقق]] -> 0
B32: =IF($B31<'الهدف الاستراتيجى'!$D$3,'4'!$B31+1,"") -> 2018-01-25 | C32: الخميس | F32: =Table145[[#This Row],[التارجيت]]-Table145[[#This Row],[المحقق]] -> 0
B33: =IF($B32<'الهدف الاستراتيجى'!$D$3,'4'!$B32+1,"") -> 2018-01-26 | C33: الجمعة | F33: =Table145[[#This Row],[التارجيت]]-Table145[[#This Row],[المحقق]] -> 0
B34: =IF($B33<'الهدف الاستراتيجى'!$D$3,'4'!$B33+1,"") -> 2018-01-27 | C34: السبت | F34: =Table145[[#This Row],[التارجيت]]-Table145[[#This Row],[المحقق]] -> 0
B35: =IF($B34<'الهدف الاستراتيجى'!$D$3,'4'!$B34+1,"") -> 2018-01-28 | C35: الأحد | F35: =Table145[[#This Row],[التارجيت]]-Table145[[#This Row],[المحقق]] -> 0
B36: =IF($B35<'الهدف الاستراتيجى'!$D$3,'4'!$B35+1,"") -> 2018-01-29 | C36: الإثنين | F36: =Table145[[#This Row],[التارجيت]]-Table145[[#This Row],[المحقق]] -> 0
B37: =IF($B36<'الهدف الاستراتيجى'!$D$3,'4'!$B36+1,"") -> 2018-01-30 | C37: الثلاثاء | F37: =Table145[[#This Row],[التارجيت]]-Table145[[#This Row],[المحقق]] -> 0
B38: =IF($B37<'الهدف الاستراتيجى'!$D$3,'4'!$B37+1,"") -> 2018-01-31 | C38: الأربعاء | F38: =Table145[[#This Row],[التارجيت]]-Table145[[#This Row],[المحقق]] -> 0
B39: المجموع | D39: =SUM(D8:D38) -> 0 | E39: =SUM(E8:E38) -> 0 | F39: =Table145[[#This Row],[التارجيت]]-Table145[[#This Row],[المحقق]] -> 0
B40: المتوسط اليومى | D40: =AVERAGE(D8:D38) ->  | E40: =AVERAGE(E8:E38) ->  | G40: =AVERAGE(G8:G38) -> 
B41: توزيع التارجيت بشكل صحيح | E41: =D39-G3 -> 0 | H41: =IF($E$41=0,CHAR(252),CHAR(251)) -> ü

Sheet 5
B2: معلومات عن الموظف | E2: معلومات استراتيجية | H2: مؤشر الاداء
B3: الاسم | C3: خليل | E3: التارجيت الشهرى المطلوب | H3: اجمالى التارجيت المحقق | I3: =$E$39 -> 0
B4: الفرع | E4: متوسط مبيعات اخر 6 شهور | H4: النسبة المحققة | I4: =G39 -> 
B5: القسم | E5: نسبة التطوير (الزيادة) | G5: =IFERROR(G3/G4-1,"") ->  | H5: القرار الادارى | I5: =IF($I$4>='الهدف الاستراتيجى'!$B$8,'الهدف الاستراتيجى'!$B$10,IF($I$4>='الهدف الاستراتيجى'!$C$8,'الهدف الاستراتيجى'!$C$10,IF($I$4>='الهدف الاستراتيجى'!$D$8,'الهدف الاستراتيجى'!$D$10,""))) -> منح حوافز عالية
B7: التاريخ | C7: اليوم | D7: التارجيت | E7: المحقق | F7: الفرق | G7: نسبة الهدف | H7: الاجراء | I7: ملاحظات
B8: ='الهدف الاستراتيجى'!$B$3 -> 2018-01-01 | C8: =TEXT(B8,"dddd") -> الإثنين | F8: =Table1456[[#This Row],[التارجيت]]-Table1456[[#This Row],[المحقق]] -> 0 | G8: =IFERROR(E8/D8,"") -> 
B9: =IF($B8<'الهدف الاستراتيجى'!$D$3,'5'!$B8+1,"") -> 2018-01-02 | C9: =TEXT(B9,"dddd") -> الثلاثاء | F9: =Table1456[[#This Row],[التارجيت]]-Table1456[[#This Row],[المحقق]] -> 0 | G9: =IFERROR(E9/D9,"") -> 
B10: =IF($B9<'الهدف الاستراتيجى'!$D$3,'5'!$B9+1,"") -> 2018-01-03 | C10: الأربعاء | F10: =Table1456[[#This Row],[التارجيت]]-Table1456[[#This Row],[المحقق]] -> 0
B11: =IF($B10<'الهدف الاستراتيجى'!$D$3,'5'!$B10+1,"") -> 2018-01-04 | C11: الخميس | F11: =Table1456[[#This Row],[التارجيت]]-Table1456[[#This Row],[المحقق]] -> 0
B12: =IF($B11<'الهدف الاستراتيجى'!$D$3,'5'!$B11+1,"") -> 2018-01-05 | C12: الجمعة | F12: =Table1456[[#This Row],[التارجيت]]-Table1456[[#This Row],[المحقق]] -> 0
B13: =IF($B12<'الهدف الاستراتيجى'!$D$3,'5'!$B12+1,"") -> 2018-01-06 | C13: السبت | F13: =Table1456[[#This Row],[التارجيت]]-Table1456[[#This Row],[المحقق]] -> 0
B14: =IF($B13<'الهدف الاستراتيجى'!$D$3,'5'!$B13+1,"") -> 2018-01-07 | C14: الأحد | F14: =Table1456[[#This Row],[التارجيت]]-Table1456[[#This Row],[المحقق]] -> 0
B15: =IF($B14<'الهدف الاستراتيجى'!$D$3,'5'!$B14+1,"") -> 2018-01-08 | C15: الإثنين | F15: =Table1456[[#This Row],[التارجيت]]-Table1456[[#This Row],[المحقق]] -> 0
B16: =IF($B15<'الهدف الاستراتيجى'!$D$3,'5'!$B15+1,"") -> 2018-01-09 | C16: الثلاثاء | F16: =Table1456[[#This Row],[التارجيت]]-Table1456[[#This Row],[المحقق]] -> 0
B17: =IF($B16<'الهدف الاستراتيجى'!$D$3,'5'!$B16+1,"") -> 2018-01-10 | C17: الأربعاء | F17: =Table1456[[#This Row],[التارجيت]]-Table1456[[#This Row],[المحقق]] -> 0
B18: =IF($B17<'الهدف الاستراتيجى'!$D$3,'5'!$B17+1,"") -> 2018-01-11 | C18: الخميس | F18: =Table1456[[#This Row],[التارجيت]]-Table1456[[#This Row],[المحقق]] -> 0
B19: =IF($B18<'الهدف الاستراتيجى'!$D$3,'5'!$B18+1,"") -> 2018-01-12 | C19: الجمعة | F19: =Table1456[[#This Row],[التارجيت]]-Table1456[[#This Row],[المحقق]] -> 0
B20: =IF($B19<'الهدف الاستراتيجى'!$D$3,'5'!$B19+1,"") -> 2018-01-13 | C20: السبت | F20: =Table1456[[#This Row],[التارجيت]]-Table1456[[#This Row],[المحقق]] -> 0
B21: =IF($B20<'الهدف الاستراتيجى'!$D$3,'5'!$B20+1,"") -> 2018-01-14 | C21: الأحد | F21: =Table1456[[#This Row],[التارجيت]]-Table1456[[#This Row],[المحقق]] -> 0
B22: =IF($B21<'الهدف الاستراتيجى'!$D$3,'5'!$B21+1,"") -> 2018-01-15 | C22: الإثنين | F22: =Table1456[[#This Row],[التارجيت]]-Table1456[[#This Row],[المحقق]] -> 0
B23: =IF($B22<'الهدف الاستراتيجى'!$D$3,'5'!$B22+1,"") -> 2018-01-16 | C23: الثلاثاء | F23: =Table1456[[#This Row],[التارجيت]]-Table1456[[#This Row],[المحقق]] -> 0
B24: =IF($B23<'الهدف الاستراتيجى'!$D$3,'5'!$B23+1,"") -> 2018-01-17 | C24: الأربعاء | F24: =Table1456[[#This Row],[التارجيت]]-Table1456[[#This Row],[المحقق]] -> 0
B25: =IF($B24<'الهدف الاستراتيجى'!$D$3,'5'!$B24+1,"") -> 2018-01-18 | C25: الخميس | F25: =Table1456[[#This Row],[التارجيت]]-Table1456[[#This Row],[المحقق]] -> 0
B26: =IF($B25<'الهدف الاستراتيجى'!$D$3,'5'!$B25+1,"") -> 2018-01-19 | C26: الجمعة | F26: =Table1456[[#This Row],[التارجيت]]-Table1456[[#This Row],[المحقق]] -> 0
B27: =IF($B26<'الهدف الاستراتيجى'!$D$3,'5'!$B26+1,"") -> 2018-01-20 | C27: السبت | F27: =Table1456[[#This Row],[التارجيت]]-Table1456[[#This Row],[المحقق]] -> 0
B28: =IF($B27<'الهدف الاستراتيجى'!$D$3,'5'!$B27+1,"") -> 2018-01-21 | C28: الأحد | F28: =Table1456[[#This Row],[التارجيت]]-Table1456[[#This Row],[المحقق]] -> 0
B29: =IF($B28<'الهدف الاستراتيجى'!$D$3,'5'!$B28+1,"") -> 2018-01-22 | C29: الإثنين | F29: =Table1456[[#This Row],[التارجيت]]-Table1456[[#This Row],[المحقق]] -> 0
B30: =IF($B29<'الهدف الاستراتيجى'!$D$3,'5'!$B29+1,"") -> 2018-01-23 | C30: الثلاثاء | F30: =Table1456[[#This Row],[التارجيت]]-Table1456[[#This Row],[المحقق]] -> 0
B31: =IF($B30<'الهدف الاستراتيجى'!$D$3,'5'!$B30+1,"") -> 2018-01-24 | C31: الأربعاء | F31: =Table1456[[#This Row],[التارجيت]]-Table1456[[#This Row],[المحقق]] -> 0
B32: =IF($B31<'الهدف الاستراتيجى'!$D$3,'5'!$B31+1,"") -> 2018-01-25 | C32: الخميس | F32: =Table1456[[#This Row],[التارجيت]]-Table1456[[#This Row],[المحقق]] -> 0
B33: =IF($B32<'الهدف الاستراتيجى'!$D$3,'5'!$B32+1,"") -> 2018-01-26 | C33: الجمعة | F33: =Table1456[[#This Row],[التارجيت]]-Table1456[[#This Row],[المحقق]] -> 0
B34: =IF($B33<'الهدف الاستراتيجى'!$D$3,'5'!$B33+1,"") -> 2018-01-27 | C34: السبت | F34: =Table1456[[#This Row],[التارجيت]]-Table1456[[#This Row],[المحقق]] -> 0
B35: =IF($B34<'الهدف الاستراتيجى'!$D$3,'5'!$B34+1,"") -> 2018-01-28 | C35: الأحد | F35: =Table1456[[#This Row],[التارجيت]]-Table1456[[#This Row],[المحقق]] -> 0
B36: =IF($B35<'الهدف الاستراتيجى'!$D$3,'5'!$B35+1,"") -> 2018-01-29 | C36: الإثنين | F36: =Table1456[[#This Row],[التارجيت]]-Table1456[[#This Row],[المحقق]] -> 0
B37: =IF($B36<'الهدف الاستراتيجى'!$D$3,'5'!$B36+1,"") -> 2018-01-30 | C37: الثلاثاء | F37: =Table1456[[#This Row],[التارجيت]]-Table1456[[#This Row],[المحقق]] -> 0
B38: =IF($B37<'الهدف الاستراتيجى'!$D$3,'5'!$B37+1,"") -> 2018-01-31 | C38: الأربعاء | F38: =Table1456[[#This Row],[التارجيت]]-Table1456[[#This Row],[المحقق]] -> 0
B39: المجموع | D39: =SUM(D8:D38) -> 0 | E39: =SUM(E8:E38) -> 0 | F39: =Table1456[[#This Row],[التارجيت]]-Table1456[[#This Row],[المحقق]] -> 0
B40: المتوسط اليومى | D40: =AVERAGE(D8:D38) ->  | E40: =AVERAGE(E8:E38) ->  | G40: =AVERAGE(G8:G38) -> 
B41: توزيع التارجيت بشكل صحيح | E41: =D39-G3 -> 0 | H41: =IF($E$41=0,CHAR(252),CHAR(251)) -> ü

Sheet 6
B2: معلومات عن الموظف | E2: معلومات استراتيجية | H2: مؤشر الاداء
B3: الاسم | E3: التارجيت الشهرى المطلوب | H3: اجمالى التارجيت المحقق | I3: =$E$39 -> 0
B4: الفرع | E4: متوسط مبيعات اخر 6 شهور | H4: النسبة المحققة | I4: =G39 -> 
B5: القسم | E5: نسبة التطوير (الزيادة) | G5: =IFERROR(G3/G4-1,"") ->  | H5: القرار الادارى | I5: =IF($I$4>='الهدف الاستراتيجى'!$B$8,'الهدف الاستراتيجى'!$B$10,IF($I$4>='الهدف الاستراتيجى'!$C$8,'الهدف الاستراتيجى'!$C$10,IF($I$4>='الهدف الاستراتيجى'!$D$8,'الهدف الاستراتيجى'!$D$10,""))) -> منح حوافز عالية
B7: التاريخ | C7: اليوم | D7: التارجيت | E7: المحقق | F7: الفرق | G7: نسبة الهدف | H7: الاجراء | I7: ملاحظات
B8: ='الهدف الاستراتيجى'!$B$3 -> 2018-01-01 | C8: =TEXT(B8,"dddd") -> الإثنين | F8: =Table18[[#This Row],[التارجيت]]-Table18[[#This Row],[المحقق]] -> 0 | G8: =IFERROR(E8/D8,"") -> 
B9: =IF($B8<'الهدف الاستراتيجى'!$D$3,'6'!$B8+1,"") -> 2018-01-02 | C9: =TEXT(B9,"dddd") -> الثلاثاء | F9: =Table18[[#This Row],[التارجيت]]-Table18[[#This Row],[المحقق]] -> 0 | G9: =IFERROR(E9/D9,"") -> 
B10: =IF($B9<'الهدف الاستراتيجى'!$D$3,'6'!$B9+1,"") -> 2018-01-03 | C10: الأربعاء | F10: =Table18[[#This Row],[التارجيت]]-Table18[[#This Row],[المحقق]] -> 0
B11: =IF($B10<'الهدف الاستراتيجى'!$D$3,'6'!$B10+1,"") -> 2018-01-04 | C11: الخميس | F11: =Table18[[#This Row],[التارجيت]]-Table18[[#This Row],[المحقق]] -> 0
B12: =IF($B11<'الهدف الاستراتيجى'!$D$3,'6'!$B11+1,"") -> 2018-01-05 | C12: الجمعة | F12: =Table18[[#This Row],[التارجيت]]-Table18[[#This Row],[المحقق]] -> 0
B13: =IF($B12<'الهدف الاستراتيجى'!$D$3,'6'!$B12+1,"") -> 2018-01-06 | C13: السبت | F13: =Table18[[#This Row],[التارجيت]]-Table18[[#This Row],[المحقق]] -> 0
B14: =IF($B13<'الهدف الاستراتيجى'!$D$3,'6'!$B13+1,"") -> 2018-01-07 | C14: الأحد | F14: =Table18[[#This Row],[التارجيت]]-Table18[[#This Row],[المحقق]] -> 0
B15: =IF($B14<'الهدف الاستراتيجى'!$D$3,'6'!$B14+1,"") -> 2018-01-08 | C15: الإثنين | F15: =Table18[[#This Row],[التارجيت]]-Table18[[#This Row],[المحقق]] -> 0
B16: =IF($B15<'الهدف الاستراتيجى'!$D$3,'6'!$B15+1,"") -> 2018-01-09 | C16: الثلاثاء | F16: =Table18[[#This Row],[التارجيت]]-Table18[[#This Row],[المحقق]] -> 0
B17: =IF($B16<'الهدف الاستراتيجى'!$D$3,'6'!$B16+1,"") -> 2018-01-10 | C17: الأربعاء | F17: =Table18[[#This Row],[التارجيت]]-Table18[[#This Row],[المحقق]] -> 0
B18: =IF($B17<'الهدف الاستراتيجى'!$D$3,'6'!$B17+1,"") -> 2018-01-11 | C18: الخميس | F18: =Table18[[#This Row],[التارجيت]]-Table18[[#This Row],[المحقق]] -> 0
B19: =IF($B18<'الهدف الاستراتيجى'!$D$3,'6'!$B18+1,"") -> 2018-01-12 | C19: الجمعة | F19: =Table18[[#This Row],[التارجيت]]-Table18[[#This Row],[المحقق]] -> 0
B20: =IF($B19<'الهدف الاستراتيجى'!$D$3,'6'!$B19+1,"") -> 2018-01-13 | C20: السبت | F20: =Table18[[#This Row],[التارجيت]]-Table18[[#This Row],[المحقق]] -> 0
B21: =IF($B20<'الهدف الاستراتيجى'!$D$3,'6'!$B20+1,"") -> 2018-01-14 | C21: الأحد | F21: =Table18[[#This Row],[التارجيت]]-Table18[[#This Row],[المحقق]] -> 0
B22: =IF($B21<'الهدف الاستراتيجى'!$D$3,'6'!$B21+1,"") -> 2018-01-15 | C22: الإثنين | F22: =Table18[[#This Row],[التارجيت]]-Table18[[#This Row],[المحقق]] -> 0
B23: =IF($B22<'الهدف الاستراتيجى'!$D$3,'6'!$B22+1,"") -> 2018-01-16 | C23: الثلاثاء | F23: =Table18[[#This Row],[التارجيت]]-Table18[[#This Row],[المحقق]] -> 0
B24: =IF($B23<'الهدف الاستراتيجى'!$D$3,'6'!$B23+1,"") -> 2018-01-17 | C24: الأربعاء | F24: =Table18[[#This Row],[التارجيت]]-Table18[[#This Row],[المحقق]] -> 0
B25: =IF($B24<'الهدف الاستراتيجى'!$D$3,'6'!$B24+1,"") -> 2018-01-18 | C25: الخميس | F25: =Table18[[#This Row],[التارجيت]]-Table18[[#This Row],[المحقق]] -> 0
B26: =IF($B25<'الهدف الاستراتيجى'!$D$3,'6'!$B25+1,"") -> 2018-01-19 | C26: الجمعة | F26: =Table18[[#This Row],[التارجيت]]-Table18[[#This Row],[المحقق]] -> 0
B27: =IF($B26<'الهدف الاستراتيجى'!$D$3,'6'!$B26+1,"") -> 2018-01-20 | C27: السبت | F27: =Table18[[#This Row],[التارجيت]]-Table18[[#This Row],[المحقق]] -> 0
B28: =IF($B27<'الهدف الاستراتيجى'!$D$3,'6'!$B27+1,"") -> 2018-01-21 | C28: الأحد | F28: =Table18[[#This Row],[التارجيت]]-Table18[[#This Row],[المحقق]] -> 0
B29: =IF($B28<'الهدف الاستراتيجى'!$D$3,'6'!$B28+1,"") -> 2018-01-22 | C29: الإثنين | F29: =Table18[[#This Row],[التارجيت]]-Table18[[#This Row],[المحقق]] -> 0
B30: =IF($B29<'الهدف الاستراتيجى'!$D$3,'6'!$B29+1,"") -> 2018-01-23 | C30: الثلاثاء | F30: =Table18[[#This Row],[التارجيت]]-Table18[[#This Row],[المحقق]] -> 0
B31: =IF($B30<'الهدف الاستراتيجى'!$D$3,'6'!$B30+1,"") -> 2018-01-24 | C31: الأربعاء | F31: =Table18[[#This Row],[التارجيت]]-Table18[[#This Row],[المحقق]] -> 0
B32: =IF($B31<'الهدف الاستراتيجى'!$D$3,'6'!$B31+1,"") -> 2018-01-25 | C32: الخميس | F32: =Table18[[#This Row],[التارجيت]]-Table18[[#This Row],[المحقق]] -> 0
B33: =IF($B32<'الهدف الاستراتيجى'!$D$3,'6'!$B32+1,"") -> 2018-01-26 | C33: الجمعة | F33: =Table18[[#This Row],[التارجيت]]-Table18[[#This Row],[المحقق]] -> 0
B34: =IF($B33<'الهدف الاستراتيجى'!$D$3,'6'!$B33+1,"") -> 2018-01-27 | C34: السبت | F34: =Table18[[#This Row],[التارجيت]]-Table18[[#This Row],[المحقق]] -> 0
B35: =IF($B34<'الهدف الاستراتيجى'!$D$3,'6'!$B34+1,"") -> 2018-01-28 | C35: الأحد | F35: =Table18[[#This Row],[التارجيت]]-Table18[[#This Row],[المحقق]] -> 0
B36: =IF($B35<'الهدف الاستراتيجى'!$D$3,'6'!$B35+1,"") -> 2018-01-29 | C36: الإثنين | F36: =Table18[[#This Row],[التارجيت]]-Table18[[#This Row],[المحقق]] -> 0
B37: =IF($B36<'الهدف الاستراتيجى'!$D$3,'6'!$B36+1,"") -> 2018-01-30 | C37: الثلاثاء | F37: =Table18[[#This Row],[التارجيت]]-Table18[[#This Row],[المحقق]] -> 0
B38: =IF($B37<'الهدف الاستراتيجى'!$D$3,'6'!$B37+1,"") -> 2018-01-31 | C38: الأربعاء | F38: =Table18[[#This Row],[التارجيت]]-Table18[[#This Row],[المحقق]] -> 0
B39: المجموع | D39: =SUM(D8:D38) -> 0 | E39: =SUM(E8:E38) -> 0 | F39: =Table18[[#This Row],[التارجيت]]-Table18[[#This Row],[المحقق]] -> 0
B40: المتوسط اليومى | D40: =AVERAGE(D8:D38) ->  | E40: =AVERAGE(E8:E38) ->  | G40: =AVERAGE(G8:G38) -> 
B41: توزيع التارجيت بشكل صحيح | E41: =D39-G3 -> 0 | H41: =IF($E$41=0,CHAR(252),CHAR(251)) -> ü

Sheet 7
B2: معلومات عن الموظف | E2: معلومات استراتيجية | H2: مؤشر الاداء
B3: الاسم | E3: التارجيت الشهرى المطلوب | H3: اجمالى التارجيت المحقق | I3: =$E$39 -> 0
B4: الفرع | E4: متوسط مبيعات اخر 6 شهور | H4: النسبة المحققة | I4: =G39 -> 
B5: القسم | E5: نسبة التطوير (الزيادة) | G5: =IFERROR(G3/G4-1,"") ->  | H5: القرار الادارى | I5: =IF($I$4>='الهدف الاستراتيجى'!$B$8,'الهدف الاستراتيجى'!$B$10,IF($I$4>='الهدف الاستراتيجى'!$C$8,'الهدف الاستراتيجى'!$C$10,IF($I$4>='الهدف الاستراتيجى'!$D$8,'الهدف الاستراتيجى'!$D$10,""))) -> منح حوافز عالية
B7: التاريخ | C7: اليوم | D7: التارجيت | E7: المحقق | F7: الفرق | G7: نسبة الهدف | H7: الاجراء | I7: ملاحظات
B8: ='الهدف الاستراتيجى'!$B$3 -> 2018-01-01 | C8: =TEXT(B8,"dddd") -> الإثنين | F8: =Table14567[[#This Row],[التارجيت]]-Table14567[[#This Row],[المحقق]] -> 0 | G8: =IFERROR(E8/D8,"") -> 
B9: =IF($B8<'الهدف الاستراتيجى'!$D$3,'7'!$B8+1,"") -> 2018-01-02 | C9: =TEXT(B9,"dddd") -> الثلاثاء | F9: =Table14567[[#This Row],[التارجيت]]-Table14567[[#This Row],[المحقق]] -> 0 | G9: =IFERROR(E9/D9,"") -> 
B10: =IF($B9<'الهدف الاستراتيجى'!$D$3,'7'!$B9+1,"") -> 2018-01-03 | C10: الأربعاء | F10: =Table14567[[#This Row],[التارجيت]]-Table14567[[#This Row],[المحقق]] -> 0
B11: =IF($B10<'الهدف الاستراتيجى'!$D$3,'7'!$B10+1,"") -> 2018-01-04 | C11: الخميس | F11: =Table14567[[#This Row],[التارجيت]]-Table14567[[#This Row],[المحقق]] -> 0
B12: =IF($B11<'الهدف الاستراتيجى'!$D$3,'7'!$B11+1,"") -> 2018-01-05 | C12: الجمعة | F12: =Table14567[[#This Row],[التارجيت]]-Table14567[[#This Row],[المحقق]] -> 0
B13: =IF($B12<'الهدف الاستراتيجى'!$D$3,'7'!$B12+1,"") -> 2018-01-06 | C13: السبت | F13: =Table14567[[#This Row],[التارجيت]]-Table14567[[#This Row],[المحقق]] -> 0
B14: =IF($B13<'الهدف الاستراتيجى'!$D$3,'7'!$B13+1,"") -> 2018-01-07 | C14: الأحد | F14: =Table14567[[#This Row],[التارجيت]]-Table14567[[#This Row],[المحقق]] -> 0
B15: =IF($B14<'الهدف الاستراتيجى'!$D$3,'7'!$B14+1,"") -> 2018-01-08 | C15: الإثنين | F15: =Table14567[[#This Row],[التارجيت]]-Table14567[[#This Row],[المحقق]] -> 0
B16: =IF($B15<'الهدف الاستراتيجى'!$D$3,'7'!$B15+1,"") -> 2018-01-09 | C16: الثلاثاء | F16: =Table14567[[#This Row],[التارجيت]]-Table14567[[#This Row],[المحقق]] -> 0
B17: =IF($B16<'الهدف الاستراتيجى'!$D$3,'7'!$B16+1,"") -> 2018-01-10 | C17: الأربعاء | F17: =Table14567[[#This Row],[التارجيت]]-Table14567[[#This Row],[المحقق]] -> 0
B18: =IF($B17<'الهدف الاستراتيجى'!$D$3,'7'!$B17+1,"") -> 2018-01-11 | C18: الخميس | F18: =Table14567[[#This Row],[التارجيت]]-Table14567[[#This Row],[المحقق]] -> 0
B19: =IF($B18<'الهدف الاستراتيجى'!$D$3,'7'!$B18+1,"") -> 2018-01-12 | C19: الجمعة | F19: =Table14567[[#This Row],[التارجيت]]-Table14567[[#This Row],[المحقق]] -> 0
B20: =IF($B19<'الهدف الاستراتيجى'!$D$3,'7'!$B19+1,"") -> 2018-01-13 | C20: السبت | F20: =Table14567[[#This Row],[التارجيت]]-Table14567[[#This Row],[المحقق]] -> 0
B21: =IF($B20<'الهدف الاستراتيجى'!$D$3,'7'!$B20+1,"") -> 2018-01-14 | C21: الأحد | F21: =Table14567[[#This Row],[التارجيت]]-Table14567[[#This Row],[المحقق]] -> 0
B22: =IF($B21<'الهدف الاستراتيجى'!$D$3,'7'!$B21+1,"") -> 2018-01-15 | C22: الإثنين | F22: =Table14567[[#This Row],[التارجيت]]-Table14567[[#This Row],[المحقق]] -> 0
B23: =IF($B22<'الهدف الاستراتيجى'!$D$3,'7'!$B22+1,"") -> 2018-01-16 | C23: الثلاثاء | F23: =Table14567[[#This Row],[التارجيت]]-Table14567[[#This Row],[المحقق]] -> 0
B24: =IF($B23<'الهدف الاستراتيجى'!$D$3,'7'!$B23+1,"") -> 2018-01-17 | C24: الأربعاء | F24: =Table14567[[#This Row],[التارجيت]]-Table14567[[#This Row],[المحقق]] -> 0
B25: =IF($B24<'الهدف الاستراتيجى'!$D$3,'7'!$B24+1,"") -> 2018-01-18 | C25: الخميس | F25: =Table14567[[#This Row],[التارجيت]]-Table14567[[#This Row],[المحقق]] -> 0
B26: =IF($B25<'الهدف الاستراتيجى'!$D$3,'7'!$B25+1,"") -> 2018-01-19 | C26: الجمعة | F26: =Table14567[[#This Row],[التارجيت]]-Table14567[[#This Row],[المحقق]] -> 0
B27: =IF($B26<'الهدف الاستراتيجى'!$D$3,'7'!$B26+1,"") -> 2018-01-20 | C27: السبت | F27: =Table14567[[#This Row],[التارجيت]]-Table14567[[#This Row],[المحقق]] -> 0
B28: =IF($B27<'الهدف الاستراتيجى'!$D$3,'7'!$B27+1,"") -> 2018-01-21 | C28: الأحد | F28: =Table14567[[#This Row],[التارجيت]]-Table14567[[#This Row],[المحقق]] -> 0
B29: =IF($B28<'الهدف الاستراتيجى'!$D$3,'7'!$B28+1,"") -> 2018-01-22 | C29: الإثنين | F29: =Table14567[[#This Row],[التارجيت]]-Table14567[[#This Row],[المحقق]] -> 0
B30: =IF($B29<'الهدف الاستراتيجى'!$D$3,'7'!$B29+1,"") -> 2018-01-23 | C30: الثلاثاء | F30: =Table14567[[#This Row],[التارجيت]]-Table14567[[#This Row],[المحقق]] -> 0
B31: =IF($B30<'الهدف الاستراتيجى'!$D$3,'7'!$B30+1,"") -> 2018-01-24 | C31: الأربعاء | F31: =Table14567[[#This Row],[التارجيت]]-Table14567[[#This Row],[المحقق]] -> 0
B32: =IF($B31<'الهدف الاستراتيجى'!$D$3,'7'!$B31+1,"") -> 2018-01-25 | C32: الخميس | F32: =Table14567[[#This Row],[التارجيت]]-Table14567[[#This Row],[المحقق]] -> 0
B33: =IF($B32<'الهدف الاستراتيجى'!$D$3,'7'!$B32+1,"") -> 2018-01-26 | C33: الجمعة | F33: =Table14567[[#This Row],[التارجيت]]-Table14567[[#This Row],[المحقق]] -> 0
B34: =IF($B33<'الهدف الاستراتيجى'!$D$3,'7'!$B33+1,"") -> 2018-01-27 | C34: السبت | F34: =Table14567[[#This Row],[التارجيت]]-Table14567[[#This Row],[المحقق]] -> 0
B35: =IF($B34<'الهدف الاستراتيجى'!$D$3,'7'!$B34+1,"") -> 2018-01-28 | C35: الأحد | F35: =Table14567[[#This Row],[التارجيت]]-Table14567[[#This Row],[المحقق]] -> 0
B36: =IF($B35<'الهدف الاستراتيجى'!$D$3,'7'!$B35+1,"") -> 2018-01-29 | C36: الإثنين | F36: =Table14567[[#This Row],[التارجيت]]-Table14567[[#This Row],[المحقق]] -> 0
B37: =IF($B36<'الهدف الاستراتيجى'!$D$3,'7'!$B36+1,"") -> 2018-01-30 | C37: الثلاثاء | F37: =Table14567[[#This Row],[التارجيت]]-Table14567[[#This Row],[المحقق]] -> 0
B38: =IF($B37<'الهدف الاستراتيجى'!$D$3,'7'!$B37+1,"") -> 2018-01-31 | C38: الأربعاء | F38: =Table14567[[#This Row],[التارجيت]]-Table14567[[#This Row],[المحقق]] -> 0
B39: المجموع | D39: =SUM(D8:D38) -> 0 | E39: =SUM(E8:E38) -> 0 | F39: =Table14567[[#This Row],[التارجيت]]-Table14567[[#This Row],[المحقق]] -> 0
B40: المتوسط اليومى | D40: =AVERAGE(D8:D38) ->  | E40: =AVERAGE(E8:E38) ->  | G40: =AVERAGE(G8:G38) -> 
B41: توزيع التارجيت بشكل صحيح | E41: =D39-G3 -> 0 | H41: =IF($E$41=0,CHAR(252),CHAR(251)) -> ü

Sheet 8
B2: معلومات عن الموظف | E2: معلومات استراتيجية | H2: مؤشر الاداء
B3: الاسم | E3: التارجيت الشهرى المطلوب | H3: اجمالى التارجيت المحقق | I3: =$E$39 -> 0
B4: الفرع | E4: متوسط مبيعات اخر 6 شهور | H4: النسبة المحققة | I4: =G39 -> 
B5: القسم | E5: نسبة التطوير (الزيادة) | G5: =IFERROR(G3/G4-1,"") ->  | H5: القرار الادارى | I5: =IF($I$4>='الهدف الاستراتيجى'!$B$8,'الهدف الاستراتيجى'!$B$10,IF($I$4>='الهدف الاستراتيجى'!$C$8,'الهدف الاستراتيجى'!$C$10,IF($I$4>='الهدف الاستراتيجى'!$D$8,'الهدف الاستراتيجى'!$D$10,""))) -> منح حوافز عالية
B7: التاريخ | C7: اليوم | D7: التارجيت | E7: المحقق | F7: الفرق | G7: نسبة الهدف | H7: الاجراء | I7: ملاحظات
B8: ='الهدف الاستراتيجى'!$B$3 -> 2018-01-01 | C8: =TEXT(B8,"dddd") -> الإثنين | F8: =Table145679[[#This Row],[التارجيت]]-Table145679[[#This Row],[المحقق]] -> 0 | G8: =IFERROR(E8/D8,"") -> 
B9: =IF($B8<'الهدف الاستراتيجى'!$D$3,'8'!$B8+1,"") -> 2018-01-02 | C9: =TEXT(B9,"dddd") -> الثلاثاء | F9: =Table145679[[#This Row],[التارجيت]]-Table145679[[#This Row],[المحقق]] -> 0 | G9: =IFERROR(E9/D9,"") -> 
B10: =IF($B9<'الهدف الاستراتيجى'!$D$3,'8'!$B9+1,"") -> 2018-01-03 | C10: الأربعاء | F10: =Table145679[[#This Row],[التارجيت]]-Table145679[[#This Row],[المحقق]] -> 0
B11: =IF($B10<'الهدف الاستراتيجى'!$D$3,'8'!$B10+1,"") -> 2018-01-04 | C11: الخميس | F11: =Table145679[[#This Row],[التارجيت]]-Table145679[[#This Row],[المحقق]] -> 0
B12: =IF($B11<'الهدف الاستراتيجى'!$D$3,'8'!$B11+1,"") -> 2018-01-05 | C12: الجمعة | F12: =Table145679[[#This Row],[التارجيت]]-Table145679[[#This Row],[المحقق]] -> 0
B13: =IF($B12<'الهدف الاستراتيجى'!$D$3,'8'!$B12+1,"") -> 2018-01-06 | C13: السبت | F13: =Table145679[[#This Row],[التارجيت]]-Table145679[[#This Row],[المحقق]] -> 0
B14: =IF($B13<'الهدف الاستراتيجى'!$D$3,'8'!$B13+1,"") -> 2018-01-07 | C14: الأحد | F14: =Table145679[[#This Row],[التارجيت]]-Table145679[[#This Row],[المحقق]] -> 0
B15: =IF($B14<'الهدف الاستراتيجى'!$D$3,'8'!$B14+1,"") -> 2018-01-08 | C15: الإثنين | F15: =Table145679[[#This Row],[التارجيت]]-Table145679[[#This Row],[المحقق]] -> 0
B16: =IF($B15<'الهدف الاستراتيجى'!$D$3,'8'!$B15+1,"") -> 2018-01-09 | C16: الثلاثاء | F16: =Table145679[[#This Row],[التارجيت]]-Table145679[[#This Row],[المحقق]] -> 0
B17: =IF($B16<'الهدف الاستراتيجى'!$D$3,'8'!$B16+1,"") -> 2018-01-10 | C17: الأربعاء | F17: =Table145679[[#This Row],[التارجيت]]-Table145679[[#This Row],[المحقق]] -> 0
B18: =IF($B17<'الهدف الاستراتيجى'!$D$3,'8'!$B17+1,"") -> 2018-01-11 | C18: الخميس | F18: =Table145679[[#This Row],[التارجيت]]-Table145679[[#This Row],[المحقق]] -> 0
B19: =IF($B18<'الهدف الاستراتيجى'!$D$3,'8'!$B18+1,"") -> 2018-01-12 | C19: الجمعة | F19: =Table145679[[#This Row],[التارجيت]]-Table145679[[#This Row],[المحقق]] -> 0
B20: =IF($B19<'الهدف الاستراتيجى'!$D$3,'8'!$B19+1,"") -> 2018-01-13 | C20: السبت | F20: =Table145679[[#This Row],[التارجيت]]-Table145679[[#This Row],[المحقق]] -> 0
B21: =IF($B20<'الهدف الاستراتيجى'!$D$3,'8'!$B20+1,"") -> 2018-01-14 | C21: الأحد | F21: =Table145679[[#This Row],[التارجيت]]-Table145679[[#This Row],[المحقق]] -> 0
B22: =IF($B21<'الهدف الاستراتيجى'!$D$3,'8'!$B21+1,"") -> 2018-01-15 | C22: الإثنين | F22: =Table145679[[#This Row],[التارجيت]]-Table145679[[#This Row],[المحقق]] -> 0
B23: =IF($B22<'الهدف الاستراتيجى'!$D$3,'8'!$B22+1,"") -> 2018-01-16 | C23: الثلاثاء | F23: =Table145679[[#This Row],[التارجيت]]-Table145679[[#This Row],[المحقق]] -> 0
B24: =IF($B23<'الهدف الاستراتيجى'!$D$3,'8'!$B23+1,"") -> 2018-01-17 | C24: الأربعاء | F24: =Table145679[[#This Row],[التارجيت]]-Table145679[[#This Row],[المحقق]] -> 0
B25: =IF($B24<'الهدف الاستراتيجى'!$D$3,'8'!$B24+1,"") -> 2018-01-18 | C25: الخميس | F25: =Table145679[[#This Row],[التارجيت]]-Table145679[[#This Row],[المحقق]] -> 0
B26: =IF($B25<'الهدف الاستراتيجى'!$D$3,'8'!$B25+1,"") -> 2018-01-19 | C26: الجمعة | F26: =Table145679[[#This Row],[التارجيت]]-Table145679[[#This Row],[المحقق]] -> 0
B27: =IF($B26<'الهدف الاستراتيجى'!$D$3,'8'!$B26+1,"") -> 2018-01-20 | C27: السبت | F27: =Table145679[[#This Row],[التارجيت]]-Table145679[[#This Row],[المحقق]] -> 0
B28: =IF($B27<'الهدف الاستراتيجى'!$D$3,'8'!$B27+1,"") -> 2018-01-21 | C28: الأحد | F28: =Table145679[[#This Row],[التارجيت]]-Table145679[[#This Row],[المحقق]] -> 0
B29: =IF($B28<'الهدف الاستراتيجى'!$D$3,'8'!$B28+1,"") -> 2018-01-22 | C29: الإثنين | F29: =Table145679[[#This Row],[التارجيت]]-Table145679[[#This Row],[المحقق]] -> 0
B30: =IF($B29<'الهدف الاستراتيجى'!$D$3,'8'!$B29+1,"") -> 2018-01-23 | C30: الثلاثاء | F30: =Table145679[[#This Row],[التارجيت]]-Table145679[[#This Row],[المحقق]] -> 0
B31: =IF($B30<'الهدف الاستراتيجى'!$D$3,'8'!$B30+1,"") -> 2018-01-24 | C31: الأربعاء | F31: =Table145679[[#This Row],[التارجيت]]-Table145679[[#This Row],[المحقق]] -> 0
B32: =IF($B31<'الهدف الاستراتيجى'!$D$3,'8'!$B31+1,"") -> 2018-01-25 | C32: الخميس | F32: =Table145679[[#This Row],[التارجيت]]-Table145679[[#This Row],[المحقق]] -> 0
B33: =IF($B32<'الهدف الاستراتيجى'!$D$3,'8'!$B32+1,"") -> 2018-01-26 | C33: الجمعة | F33: =Table145679[[#This Row],[التارجيت]]-Table145679[[#This Row],[المحقق]] -> 0
B34: =IF($B33<'الهدف الاستراتيجى'!$D$3,'8'!$B33+1,"") -> 2018-01-27 | C34: السبت | F34: =Table145679[[#This Row],[التارجيت]]-Table145679[[#This Row],[المحقق]] -> 0
B35: =IF($B34<'الهدف الاستراتيجى'!$D$3,'8'!$B34+1,"") -> 2018-01-28 | C35: الأحد | F35: =Table145679[[#This Row],[التارجيت]]-Table145679[[#This Row],[المحقق]] -> 0
B36: =IF($B35<'الهدف الاستراتيجى'!$D$3,'8'!$B35+1,"") -> 2018-01-29 | C36: الإثنين | F36: =Table145679[[#This Row],[التارجيت]]-Table145679[[#This Row],[المحقق]] -> 0
B37: =IF($B36<'الهدف الاستراتيجى'!$D$3,'8'!$B36+1,"") -> 2018-01-30 | C37: الثلاثاء | F37: =Table145679[[#This Row],[التارجيت]]-Table145679[[#This Row],[المحقق]] -> 0
B38: =IF($B37<'الهدف الاستراتيجى'!$D$3,'8'!$B37+1,"") -> 2018-01-31 | C38: الأربعاء | F38: =Table145679[[#This Row],[التارجيت]]-Table145679[[#This Row],[المحقق]] -> 0
B39: المجموع | D39: =SUM(D8:D38) -> 0 | E39: =SUM(E8:E38) -> 0 | F39: =Table145679[[#This Row],[التارجيت]]-Table145679[[#This Row],[المحقق]] -> 0
B40: المتوسط اليومى | D40: =AVERAGE(D8:D38) ->  | E40: =AVERAGE(E8:E38) ->  | G40: =AVERAGE(G8:G38) -> 
B41: توزيع التارجيت بشكل صحيح | E41: =D39-G3 -> 0 | H41: =IF($E$41=0,CHAR(252),CHAR(251)) -> ü

Sheet 9
B2: معلومات عن الموظف | E2: معلومات استراتيجية | H2: مؤشر الاداء
B3: الاسم | E3: التارجيت الشهرى المطلوب | H3: اجمالى التارجيت المحقق | I3: =$E$39 -> 0
B4: الفرع | E4: متوسط مبيعات اخر 6 شهور | H4: النسبة المحققة | I4: =G39 -> 
B5: القسم | E5: نسبة التطوير (الزيادة) | G5: =IFERROR(G3/G4-1,"") ->  | H5: القرار الادارى | I5: =IF($I$4>='الهدف الاستراتيجى'!$B$8,'الهدف الاستراتيجى'!$B$10,IF($I$4>='الهدف الاستراتيجى'!$C$8,'الهدف الاستراتيجى'!$C$10,IF($I$4>='الهدف الاستراتيجى'!$D$8,'الهدف الاستراتيجى'!$D$10,""))) -> منح حوافز عالية
B7: التاريخ | C7: اليوم | D7: التارجيت | E7: المحقق | F7: الفرق | G7: نسبة الهدف | H7: الاجراء | I7: ملاحظات
B8: ='الهدف الاستراتيجى'!$B$3 -> 2018-01-01 | C8: =TEXT(B8,"dddd") -> الإثنين | F8: =Table14567910[[#This Row],[التارجيت]]-Table14567910[[#This Row],[المحقق]] -> 0 | G8: =IFERROR(E8/D8,"") -> 
B9: =IF($B8<'الهدف الاستراتيجى'!$D$3,'9'!$B8+1,"") -> 2018-01-02 | C9: =TEXT(B9,"dddd") -> الثلاثاء | F9: =Table14567910[[#This Row],[التارجيت]]-Table14567910[[#This Row],[المحقق]] -> 0 | G9: =IFERROR(E9/D9,"") -> 
B10: =IF($B9<'الهدف الاستراتيجى'!$D$3,'9'!$B9+1,"") -> 2018-01-03 | C10: الأربعاء | F10: =Table14567910[[#This Row],[التارجيت]]-Table14567910[[#This Row],[المحقق]] -> 0
B11: =IF($B10<'الهدف الاستراتيجى'!$D$3,'9'!$B10+1,"") -> 2018-01-04 | C11: الخميس | F11: =Table14567910[[#This Row],[التارجيت]]-Table14567910[[#This Row],[المحقق]] -> 0
B12: =IF($B11<'الهدف الاستراتيجى'!$D$3,'9'!$B11+1,"") -> 2018-01-05 | C12: الجمعة | F12: =Table14567910[[#This Row],[التارجيت]]-Table14567910[[#This Row],[المحقق]] -> 0
B13: =IF($B12<'الهدف الاستراتيجى'!$D$3,'9'!$B12+1,"") -> 2018-01-06 | C13: السبت | F13: =Table14567910[[#This Row],[التارجيت]]-Table14567910[[#This Row],[المحقق]] -> 0
B14: =IF($B13<'الهدف الاستراتيجى'!$D$3,'9'!$B13+1,"") -> 2018-01-07 | C14: الأحد | F14: =Table14567910[[#This Row],[التارجيت]]-Table14567910[[#This Row],[المحقق]] -> 0
B15: =IF($B14<'الهدف الاستراتيجى'!$D$3,'9'!$B14+1,"") -> 2018-01-08 | C15: الإثنين | F15: =Table14567910[[#This Row],[التارجيت]]-Table14567910[[#This Row],[المحقق]] -> 0
B16: =IF($B15<'الهدف الاستراتيجى'!$D$3,'9'!$B15+1,"") -> 2018-01-09 | C16: الثلاثاء | F16: =Table14567910[[#This Row],[التارجيت]]-Table14567910[[#This Row],[المحقق]] -> 0
B17: =IF($B16<'الهدف الاستراتيجى'!$D$3,'9'!$B16+1,"") -> 2018-01-10 | C17: الأربعاء | F17: =Table14567910[[#This Row],[التارجيت]]-Table14567910[[#This Row],[المحقق]] -> 0
B18: =IF($B17<'الهدف الاستراتيجى'!$D$3,'9'!$B17+1,"") -> 2018-01-11 | C18: الخميس | F18: =Table14567910[[#This Row],[التارجيت]]-Table14567910[[#This Row],[المحقق]] -> 0
B19: =IF($B18<'الهدف الاستراتيجى'!$D$3,'9'!$B18+1,"") -> 2018-01-12 | C19: الجمعة | F19: =Table14567910[[#This Row],[التارجيت]]-Table14567910[[#This Row],[المحقق]] -> 0
B20: =IF($B19<'الهدف الاستراتيجى'!$D$3,'9'!$B19+1,"") -> 2018-01-13 | C20: السبت | F20: =Table14567910[[#This Row],[التارجيت]]-Table14567910[[#This Row],[المحقق]] -> 0
B21: =IF($B20<'الهدف الاستراتيجى'!$D$3,'9'!$B20+1,"") -> 2018-01-14 | C21: الأحد | F21: =Table14567910[[#This Row],[التارجيت]]-Table14567910[[#This Row],[المحقق]] -> 0
B22: =IF($B21<'الهدف الاستراتيجى'!$D$3,'9'!$B21+1,"") -> 2018-01-15 | C22: الإثنين | F22: =Table14567910[[#This Row],[التارجيت]]-Table14567910[[#This Row],[المحقق]] -> 0
B23: =IF($B22<'الهدف الاستراتيجى'!$D$3,'9'!$B22+1,"") -> 2018-01-16 | C23: الثلاثاء | F23: =Table14567910[[#This Row],[التارجيت]]-Table14567910[[#This Row],[المحقق]] -> 0
B24: =IF($B23<'الهدف الاستراتيجى'!$D$3,'9'!$B23+1,"") -> 2018-01-17 | C24: الأربعاء | F24: =Table14567910[[#This Row],[التارجيت]]-Table14567910[[#This Row],[المحقق]] -> 0
B25: =IF($B24<'الهدف الاستراتيجى'!$D$3,'9'!$B24+1,"") -> 2018-01-18 | C25: الخميس | F25: =Table14567910[[#This Row],[التارجيت]]-Table14567910[[#This Row],[المحقق]] -> 0
B26: =IF($B25<'الهدف الاستراتيجى'!$D$3,'9'!$B25+1,"") -> 2018-01-19 | C26: الجمعة | F26: =Table14567910[[#This Row],[التارجيت]]-Table14567910[[#This Row],[المحقق]] -> 0
B27: =IF($B26<'الهدف الاستراتيجى'!$D$3,'9'!$B26+1,"") -> 2018-01-20 | C27: السبت | F27: =Table14567910[[#This Row],[التارجيت]]-Table14567910[[#This Row],[المحقق]] -> 0
B28: =IF($B27<'الهدف الاستراتيجى'!$D$3,'9'!$B27+1,"") -> 2018-01-21 | C28: الأحد | F28: =Table14567910[[#This Row],[التارجيت]]-Table14567910[[#This Row],[المحقق]] -> 0
B29: =IF($B28<'الهدف الاستراتيجى'!$D$3,'9'!$B28+1,"") -> 2018-01-22 | C29: الإثنين | F29: =Table14567910[[#This Row],[التارجيت]]-Table14567910[[#This Row],[المحقق]] -> 0
B30: =IF($B29<'الهدف الاستراتيجى'!$D$3,'9'!$B29+1,"") -> 2018-01-23 | C30: الثلاثاء | F30: =Table14567910[[#This Row],[التارجيت]]-Table14567910[[#This Row],[المحقق]] -> 0
B31: =IF($B30<'الهدف الاستراتيجى'!$D$3,'9'!$B30+1,"") -> 2018-01-24 | C31: الأربعاء | F31: =Table14567910[[#This Row],[التارجيت]]-Table14567910[[#This Row],[المحقق]] -> 0
B32: =IF($B31<'الهدف الاستراتيجى'!$D$3,'9'!$B31+1,"") -> 2018-01-25 | C32: الخميس | F32: =Table14567910[[#This Row],[التارجيت]]-Table14567910[[#This Row],[المحقق]] -> 0
B33: =IF($B32<'الهدف الاستراتيجى'!$D$3,'9'!$B32+1,"") -> 2018-01-26 | C33: الجمعة | F33: =Table14567910[[#This Row],[التارجيت]]-Table14567910[[#This Row],[المحقق]] -> 0
B34: =IF($B33<'الهدف الاستراتيجى'!$D$3,'9'!$B33+1,"") -> 2018-01-27 | C34: السبت | F34: =Table14567910[[#This Row],[التارجيت]]-Table14567910[[#This Row],[المحقق]] -> 0
B35: =IF($B34<'الهدف الاستراتيجى'!$D$3,'9'!$B34+1,"") -> 2018-01-28 | C35: الأحد | F35: =Table14567910[[#This Row],[التارجيت]]-Table14567910[[#This Row],[المحقق]] -> 0
B36: =IF($B35<'الهدف الاستراتيجى'!$D$3,'9'!$B35+1,"") -> 2018-01-29 | C36: الإثنين | F36: =Table14567910[[#This Row],[التارجيت]]-Table14567910[[#This Row],[المحقق]] -> 0
B37: =IF($B36<'الهدف الاستراتيجى'!$D$3,'9'!$B36+1,"") -> 2018-01-30 | C37: الثلاثاء | F37: =Table14567910[[#This Row],[التارجيت]]-Table14567910[[#This Row],[المحقق]] -> 0
B38: =IF($B37<'الهدف الاستراتيجى'!$D$3,'9'!$B37+1,"") -> 2018-01-31 | C38: الأربعاء | F38: =Table14567910[[#This Row],[التارجيت]]-Table14567910[[#This Row],[المحقق]] -> 0
B39: المجموع | D39: =SUM(D8:D38) -> 0 | E39: =SUM(E8:E38) -> 0 | F39: =Table14567910[[#This Row],[التارجيت]]-Table14567910[[#This Row],[المحقق]] -> 0
B40: المتوسط اليومى | D40: =AVERAGE(D8:D38) ->  | E40: =AVERAGE(E8:E38) ->  | G40: =AVERAGE(G8:G38) -> 
B41: توزيع التارجيت بشكل صحيح | E41: =D39-G3 -> 0 | H41: =IF($E$41=0,CHAR(252),CHAR(251)) -> ü

Sheet 10
B2: معلومات عن الموظف | E2: معلومات استراتيجية | H2: مؤشر الاداء
B3: الاسم | C3: هلال | E3: التارجيت الشهرى المطلوب | H3: اجمالى التارجيت المحقق | I3: =$E$39 -> 0
B4: الفرع | E4: متوسط مبيعات اخر 6 شهور | H4: النسبة المحققة | I4: =G39 -> 
B5: القسم | E5: نسبة التطوير (الزيادة) | G5: =IFERROR(G3/G4-1,"") ->  | H5: القرار الادارى | I5: =IF($I$4>='الهدف الاستراتيجى'!$B$8,'الهدف الاستراتيجى'!$B$10,IF($I$4>='الهدف الاستراتيجى'!$C$8,'الهدف الاستراتيجى'!$C$10,IF($I$4>='الهدف الاستراتيجى'!$D$8,'الهدف الاستراتيجى'!$D$10,""))) -> منح حوافز عالية
B7: التاريخ | C7: اليوم | D7: التارجيت | E7: المحقق | F7: الفرق | G7: نسبة الهدف | H7: الاجراء | I7: ملاحظات
B8: ='الهدف الاستراتيجى'!$B$3 -> 2018-01-01 | C8: =TEXT(B8,"dddd") -> الإثنين | F8: =Table145679101122[[#This Row],[التارجيت]]-Table145679101122[[#This Row],[المحقق]] -> 0 | G8: =IFERROR(E8/D8,"") -> 
B9: =IF($B8<'الهدف الاستراتيجى'!$D$3,'10'!$B8+1,"") -> 2018-01-02 | C9: =TEXT(B9,"dddd") -> الثلاثاء | F9: =Table145679101122[[#This Row],[التارجيت]]-Table145679101122[[#This Row],[المحقق]] -> 0 | G9: =IFERROR(E9/D9,"") -> 
B10: =IF($B9<'الهدف الاستراتيجى'!$D$3,'10'!$B9+1,"") -> 2018-01-03 | C10: الأربعاء | F10: =Table145679101122[[#This Row],[التارجيت]]-Table145679101122[[#This Row],[المحقق]] -> 0
B11: =IF($B10<'الهدف الاستراتيجى'!$D$3,'10'!$B10+1,"") -> 2018-01-04 | C11: الخميس | F11: =Table145679101122[[#This Row],[التارجيت]]-Table145679101122[[#This Row],[المحقق]] -> 0
B12: =IF($B11<'الهدف الاستراتيجى'!$D$3,'10'!$B11+1,"") -> 2018-01-05 | C12: الجمعة | F12: =Table145679101122[[#This Row],[التارجيت]]-Table145679101122[[#This Row],[المحقق]] -> 0
B13: =IF($B12<'الهدف الاستراتيجى'!$D$3,'10'!$B12+1,"") -> 2018-01-06 | C13: السبت | F13: =Table145679101122[[#This Row],[التارجيت]]-Table145679101122[[#This Row],[المحقق]] -> 0
B14: =IF($B13<'الهدف الاستراتيجى'!$D$3,'10'!$B13+1,"") -> 2018-01-07 | C14: الأحد | F14: =Table145679101122[[#This Row],[التارجيت]]-Table145679101122[[#This Row],[المحقق]] -> 0
B15: =IF($B14<'الهدف الاستراتيجى'!$D$3,'10'!$B14+1,"") -> 2018-01-08 | C15: الإثنين | F15: =Table145679101122[[#This Row],[التارجيت]]-Table145679101122[[#This Row],[المحقق]] -> 0
B16: =IF($B15<'الهدف الاستراتيجى'!$D$3,'10'!$B15+1,"") -> 2018-01-09 | C16: الثلاثاء | F16: =Table145679101122[[#This Row],[التارجيت]]-Table145679101122[[#This Row],[المحقق]] -> 0
B17: =IF($B16<'الهدف الاستراتيجى'!$D$3,'10'!$B16+1,"") -> 2018-01-10 | C17: الأربعاء | F17: =Table145679101122[[#This Row],[التارجيت]]-Table145679101122[[#This Row],[المحقق]] -> 0
B18: =IF($B17<'الهدف الاستراتيجى'!$D$3,'10'!$B17+1,"") -> 2018-01-11 | C18: الخميس | F18: =Table145679101122[[#This Row],[التارجيت]]-Table145679101122[[#This Row],[المحقق]] -> 0
B19: =IF($B18<'الهدف الاستراتيجى'!$D$3,'10'!$B18+1,"") -> 2018-01-12 | C19: الجمعة | F19: =Table145679101122[[#This Row],[التارجيت]]-Table145679101122[[#This Row],[المحقق]] -> 0
B20: =IF($B19<'الهدف الاستراتيجى'!$D$3,'10'!$B19+1,"") -> 2018-01-13 | C20: السبت | F20: =Table145679101122[[#This Row],[التارجيت]]-Table145679101122[[#This Row],[المحقق]] -> 0
B21: =IF($B20<'الهدف الاستراتيجى'!$D$3,'10'!$B20+1,"") -> 2018-01-14 | C21: الأحد | F21: =Table145679101122[[#This Row],[التارجيت]]-Table145679101122[[#This Row],[المحقق]] -> 0
B22: =IF($B21<'الهدف الاستراتيجى'!$D$3,'10'!$B21+1,"") -> 2018-01-15 | C22: الإثنين | F22: =Table145679101122[[#This Row],[التارجيت]]-Table145679101122[[#This Row],[المحقق]] -> 0
B23: =IF($B22<'الهدف الاستراتيجى'!$D$3,'10'!$B22+1,"") -> 2018-01-16 | C23: الثلاثاء | F23: =Table145679101122[[#This Row],[التارجيت]]-Table145679101122[[#This Row],[المحقق]] -> 0
B24: =IF($B23<'الهدف الاستراتيجى'!$D$3,'10'!$B23+1,"") -> 2018-01-17 | C24: الأربعاء | F24: =Table145679101122[[#This Row],[التارجيت]]-Table145679101122[[#This Row],[المحقق]] -> 0
B25: =IF($B24<'الهدف الاستراتيجى'!$D$3,'10'!$B24+1,"") -> 2018-01-18 | C25: الخميس | F25: =Table145679101122[[#This Row],[التارجيت]]-Table145679101122[[#This Row],[المحقق]] -> 0
B26: =IF($B25<'الهدف الاستراتيجى'!$D$3,'10'!$B25+1,"") -> 2018-01-19 | C26: الجمعة | F26: =Table145679101122[[#This Row],[التارجيت]]-Table145679101122[[#This Row],[المحقق]] -> 0
B27: =IF($B26<'الهدف الاستراتيجى'!$D$3,'10'!$B26+1,"") -> 2018-01-20 | C27: السبت | F27: =Table145679101122[[#This Row],[التارجيت]]-Table145679101122[[#This Row],[المحقق]] -> 0
B28: =IF($B27<'الهدف الاستراتيجى'!$D$3,'10'!$B27+1,"") -> 2018-01-21 | C28: الأحد | F28: =Table145679101122[[#This Row],[التارجيت]]-Table145679101122[[#This Row],[المحقق]] -> 0
B29: =IF($B28<'الهدف الاستراتيجى'!$D$3,'10'!$B28+1,"") -> 2018-01-22 | C29: الإثنين | F29: =Table145679101122[[#This Row],[التارجيت]]-Table145679101122[[#This Row],[المحقق]] -> 0
B30: =IF($B29<'الهدف الاستراتيجى'!$D$3,'10'!$B29+1,"") -> 2018-01-23 | C30: الثلاثاء | F30: =Table145679101122[[#This Row],[التارجيت]]-Table145679101122[[#This Row],[المحقق]] -> 0
B31: =IF($B30<'الهدف الاستراتيجى'!$D$3,'10'!$B30+1,"") -> 2018-01-24 | C31: الأربعاء | F31: =Table145679101122[[#This Row],[التارجيت]]-Table145679101122[[#This Row],[المحقق]] -> 0
B32: =IF($B31<'الهدف الاستراتيجى'!$D$3,'10'!$B31+1,"") -> 2018-01-25 | C32: الخميس | F32: =Table145679101122[[#This Row],[التارجيت]]-Table145679101122[[#This Row],[المحقق]] -> 0
B33: =IF($B32<'الهدف الاستراتيجى'!$D$3,'10'!$B32+1,"") -> 2018-01-26 | C33: الجمعة | F33: =Table145679101122[[#This Row],[التارجيت]]-Table145679101122[[#This Row],[المحقق]] -> 0
B34: =IF($B33<'الهدف الاستراتيجى'!$D$3,'10'!$B33+1,"") -> 2018-01-27 | C34: السبت | F34: =Table145679101122[[#This Row],[التارجيت]]-Table145679101122[[#This Row],[المحقق]] -> 0
B35: =IF($B34<'الهدف الاستراتيجى'!$D$3,'10'!$B34+1,"") -> 2018-01-28 | C35: الأحد | F35: =Table145679101122[[#This Row],[التارجيت]]-Table145679101122[[#This Row],[المحقق]] -> 0
B36: =IF($B35<'الهدف الاستراتيجى'!$D$3,'10'!$B35+1,"") -> 2018-01-29 | C36: الإثنين | F36: =Table145679101122[[#This Row],[التارجيت]]-Table145679101122[[#This Row],[المحقق]] -> 0
B37: =IF($B36<'الهدف الاستراتيجى'!$D$3,'10'!$B36+1,"") -> 2018-01-30 | C37: الثلاثاء | F37: =Table145679101122[[#This Row],[التارجيت]]-Table145679101122[[#This Row],[المحقق]] -> 0
B38: =IF($B37<'الهدف الاستراتيجى'!$D$3,'10'!$B37+1,"") -> 2018-01-31 | C38: الأربعاء | F38: =Table145679101122[[#This Row],[التارجيت]]-Table145679101122[[#This Row],[المحقق]] -> 0
B39: المجموع | D39: =SUM(D8:D38) -> 0 | E39: =SUM(E8:E38) -> 0 | F39: =Table145679101122[[#This Row],[التارجيت]]-Table145679101122[[#This Row],[المحقق]] -> 0
B40: المتوسط اليومى | D40: =AVERAGE(D8:D38) ->  | E40: =AVERAGE(E8:E38) ->  | G40: =AVERAGE(G8:G38) -> 
B41: توزيع التارجيت بشكل صحيح | E41: =D39-G3 -> 0 | H41: =IF($E$41=0,CHAR(252),CHAR(251)) -> ü

Sheet 11
B2: معلومات عن الموظف | E2: معلومات استراتيجية | H2: مؤشر الاداء
B3: الاسم | C3: هلال | E3: التارجيت الشهرى المطلوب | H3: اجمالى التارجيت المحقق | I3: =$E$39 -> 0
B4: الفرع | E4: متوسط مبيعات اخر 6 شهور | H4: النسبة المحققة | I4: =G39 -> 
B5: القسم | E5: نسبة التطوير (الزيادة) | G5: =IFERROR(G3/G4-1,"") ->  | H5: القرار الادارى | I5: =IF($I$4>='الهدف الاستراتيجى'!$B$8,'الهدف الاستراتيجى'!$B$10,IF($I$4>='الهدف الاستراتيجى'!$C$8,'الهدف الاستراتيجى'!$C$10,IF($I$4>='الهدف الاستراتيجى'!$D$8,'الهدف الاستراتيجى'!$D$10,""))) -> منح حوافز عالية
B7: التاريخ | C7: اليوم | D7: التارجيت | E7: المحقق | F7: الفرق | G7: نسبة الهدف | H7: الاجراء | I7: ملاحظات
B8: ='الهدف الاستراتيجى'!$B$3 -> 2018-01-01 | C8: =TEXT(B8,"dddd") -> الإثنين | F8: =Table1456791011[[#This Row],[التارجيت]]-Table1456791011[[#This Row],[المحقق]] -> 0 | G8: =IFERROR(E8/D8,"") -> 
B9: =IF($B8<'الهدف الاستراتيجى'!$D$3,'11'!$B8+1,"") -> 2018-01-02 | C9: =TEXT(B9,"dddd") -> الثلاثاء | F9: =Table1456791011[[#This Row],[التارجيت]]-Table1456791011[[#This Row],[المحقق]] -> 0 | G9: =IFERROR(E9/D9,"") -> 
B10: =IF($B9<'الهدف الاستراتيجى'!$D$3,'11'!$B9+1,"") -> 2018-01-03 | C10: الأربعاء | F10: =Table1456791011[[#This Row],[التارجيت]]-Table1456791011[[#This Row],[المحقق]] -> 0
B11: =IF($B10<'الهدف الاستراتيجى'!$D$3,'11'!$B10+1,"") -> 2018-01-04 | C11: الخميس | F11: =Table1456791011[[#This Row],[التارجيت]]-Table1456791011[[#This Row],[المحقق]] -> 0
B12: =IF($B11<'الهدف الاستراتيجى'!$D$3,'11'!$B11+1,"") -> 2018-01-05 | C12: الجمعة | F12: =Table1456791011[[#This Row],[التارجيت]]-Table1456791011[[#This Row],[المحقق]] -> 0
B13: =IF($B12<'الهدف الاستراتيجى'!$D$3,'11'!$B12+1,"") -> 2018-01-06 | C13: السبت | F13: =Table1456791011[[#This Row],[التارجيت]]-Table1456791011[[#This Row],[المحقق]] -> 0
B14: =IF($B13<'الهدف الاستراتيجى'!$D$3,'11'!$B13+1,"") -> 2018-01-07 | C14: الأحد | F14: =Table1456791011[[#This Row],[التارجيت]]-Table1456791011[[#This Row],[المحقق]] -> 0
B15: =IF($B14<'الهدف الاستراتيجى'!$D$3,'11'!$B14+1,"") -> 2018-01-08 | C15: الإثنين | F15: =Table1456791011[[#This Row],[التارجيت]]-Table1456791011[[#This Row],[المحقق]] -> 0
B16: =IF($B15<'الهدف الاستراتيجى'!$D$3,'11'!$B15+1,"") -> 2018-01-09 | C16: الثلاثاء | F16: =Table1456791011[[#This Row],[التارجيت]]-Table1456791011[[#This Row],[المحقق]] -> 0
B17: =IF($B16<'الهدف الاستراتيجى'!$D$3,'11'!$B16+1,"") -> 2018-01-10 | C17: الأربعاء | F17: =Table1456791011[[#This Row],[التارجيت]]-Table1456791011[[#This Row],[المحقق]] -> 0
B18: =IF($B17<'الهدف الاستراتيجى'!$D$3,'11'!$B17+1,"") -> 2018-01-11 | C18: الخميس | F18: =Table1456791011[[#This Row],[التارجيت]]-Table1456791011[[#This Row],[المحقق]] -> 0
B19: =IF($B18<'الهدف الاستراتيجى'!$D$3,'11'!$B18+1,"") -> 2018-01-12 | C19: الجمعة | F19: =Table1456791011[[#This Row],[التارجيت]]-Table1456791011[[#This Row],[المحقق]] -> 0
B20: =IF($B19<'الهدف الاستراتيجى'!$D$3,'11'!$B19+1,"") -> 2018-01-13 | C20: السبت | F20: =Table1456791011[[#This Row],[التارجيت]]-Table1456791011[[#This Row],[المحقق]] -> 0
B21: =IF($B20<'الهدف الاستراتيجى'!$D$3,'11'!$B20+1,"") -> 2018-01-14 | C21: الأحد | F21: =Table1456791011[[#This Row],[التارجيت]]-Table1456791011[[#This Row],[المحقق]] -> 0
B22: =IF($B21<'الهدف الاستراتيجى'!$D$3,'11'!$B21+1,"") -> 2018-01-15 | C22: الإثنين | F22: =Table1456791011[[#This Row],[التارجيت]]-Table1456791011[[#This Row],[المحقق]] -> 0
B23: =IF($B22<'الهدف الاستراتيجى'!$D$3,'11'!$B22+1,"") -> 2018-01-16 | C23: الثلاثاء | F23: =Table1456791011[[#This Row],[التارجيت]]-Table1456791011[[#This Row],[المحقق]] -> 0
B24: =IF($B23<'الهدف الاستراتيجى'!$D$3,'11'!$B23+1,"") -> 2018-01-17 | C24: الأربعاء | F24: =Table1456791011[[#This Row],[التارجيت]]-Table1456791011[[#This Row],[المحقق]] -> 0
B25: =IF($B24<'الهدف الاستراتيجى'!$D$3,'11'!$B24+1,"") -> 2018-01-18 | C25: الخميس | F25: =Table1456791011[[#This Row],[التارجيت]]-Table1456791011[[#This Row],[المحقق]] -> 0
B26: =IF($B25<'الهدف الاستراتيجى'!$D$3,'11'!$B25+1,"") -> 2018-01-19 | C26: الجمعة | F26: =Table1456791011[[#This Row],[التارجيت]]-Table1456791011[[#This Row],[المحقق]] -> 0
B27: =IF($B26<'الهدف الاستراتيجى'!$D$3,'11'!$B26+1,"") -> 2018-01-20 | C27: السبت | F27: =Table1456791011[[#This Row],[التارجيت]]-Table1456791011[[#This Row],[المحقق]] -> 0
B28: =IF($B27<'الهدف الاستراتيجى'!$D$3,'11'!$B27+1,"") -> 2018-01-21 | C28: الأحد | F28: =Table1456791011[[#This Row],[التارجيت]]-Table1456791011[[#This Row],[المحقق]] -> 0
B29: =IF($B28<'الهدف الاستراتيجى'!$D$3,'11'!$B28+1,"") -> 2018-01-22 | C29: الإثنين | F29: =Table1456791011[[#This Row],[التارجيت]]-Table1456791011[[#This Row],[المحقق]] -> 0
B30: =IF($B29<'الهدف الاستراتيجى'!$D$3,'11'!$B29+1,"") -> 2018-01-23 | C30: الثلاثاء | F30: =Table1456791011[[#This Row],[التارجيت]]-Table1456791011[[#This Row],[المحقق]] -> 0
B31: =IF($B30<'الهدف الاستراتيجى'!$D$3,'11'!$B30+1,"") -> 2018-01-24 | C31: الأربعاء | F31: =Table1456791011[[#This Row],[التارجيت]]-Table1456791011[[#This Row],[المحقق]] -> 0
B32: =IF($B31<'الهدف الاستراتيجى'!$D$3,'11'!$B31+1,"") -> 2018-01-25 | C32: الخميس | F32: =Table1456791011[[#This Row],[التارجيت]]-Table1456791011[[#This Row],[المحقق]] -> 0
B33: =IF($B32<'الهدف الاستراتيجى'!$D$3,'11'!$B32+1,"") -> 2018-01-26 | C33: الجمعة | F33: =Table1456791011[[#This Row],[التارجيت]]-Table1456791011[[#This Row],[المحقق]] -> 0
B34: =IF($B33<'الهدف الاستراتيجى'!$D$3,'11'!$B33+1,"") -> 2018-01-27 | C34: السبت | F34: =Table1456791011[[#This Row],[التارجيت]]-Table1456791011[[#This Row],[المحقق]] -> 0
B35: =IF($B34<'الهدف الاستراتيجى'!$D$3,'11'!$B34+1,"") -> 2018-01-28 | C35: الأحد | F35: =Table1456791011[[#This Row],[التارجيت]]-Table1456791011[[#This Row],[المحقق]] -> 0
B36: =IF($B35<'الهدف الاستراتيجى'!$D$3,'11'!$B35+1,"") -> 2018-01-29 | C36: الإثنين | F36: =Table1456791011[[#This Row],[التارجيت]]-Table1456791011[[#This Row],[المحقق]] -> 0
B37: =IF($B36<'الهدف الاستراتيجى'!$D$3,'11'!$B36+1,"") -> 2018-01-30 | C37: الثلاثاء | F37: =Table1456791011[[#This Row],[التارجيت]]-Table1456791011[[#This Row],[المحقق]] -> 0
B38: =IF($B37<'الهدف الاستراتيجى'!$D$3,'11'!$B37+1,"") -> 2018-01-31 | C38: الأربعاء | F38: =Table1456791011[[#This Row],[التارجيت]]-Table1456791011[[#This Row],[المحقق]] -> 0
B39: المجموع | D39: =SUM(D8:D38) -> 0 | E39: =SUM(E8:E38) -> 0 | F39: =Table1456791011[[#This Row],[التارجيت]]-Table1456791011[[#This Row],[المحقق]] -> 0
B40: المتوسط اليومى | D40: =AVERAGE(D8:D38) ->  | E40: =AVERAGE(E8:E38) ->  | G40: =AVERAGE(G8:G38) -> 
B41: توزيع التارجيت بشكل صحيح | E41: =D39-G3 -> 0 | H41: =IF($E$41=0,CHAR(252),CHAR(251)) -> ü

Sheet 12
B2: معلومات عن الموظف | E2: معلومات استراتيجية | H2: مؤشر الاداء
B3: الاسم | E3: التارجيت الشهرى المطلوب | H3: اجمالى التارجيت المحقق | I3: =$E$39 -> 0
B4: الفرع | E4: متوسط مبيعات اخر 6 شهور | H4: النسبة المحققة | I4: =G39 -> 
B5: القسم | E5: نسبة التطوير (الزيادة) | G5: =IFERROR(G3/G4-1,"") ->  | H5: القرار الادارى | I5: =IF($I$4>='الهدف الاستراتيجى'!$B$8,'الهدف الاستراتيجى'!$B$10,IF($I$4>='الهدف الاستراتيجى'!$C$8,'الهدف الاستراتيجى'!$C$10,IF($I$4>='الهدف الاستراتيجى'!$D$8,'الهدف الاستراتيجى'!$D$10,""))) -> منح حوافز عالية
B7: التاريخ | C7: اليوم | D7: التارجيت | E7: المحقق | F7: الفرق | G7: نسبة الهدف | H7: الاجراء | I7: ملاحظات
B8: ='الهدف الاستراتيجى'!$B$3 -> 2018-01-01 | C8: =TEXT(B8,"dddd") -> الإثنين | F8: =Table145679101112[[#This Row],[التارجيت]]-Table145679101112[[#This Row],[المحقق]] -> 0 | G8: =IFERROR(E8/D8,"") -> 
B9: =IF($B8<'الهدف الاستراتيجى'!$D$3,'12'!$B8+1,"") -> 2018-01-02 | C9: =TEXT(B9,"dddd") -> الثلاثاء | F9: =Table145679101112[[#This Row],[التارجيت]]-Table145679101112[[#This Row],[المحقق]] -> 0 | G9: =IFERROR(E9/D9,"") -> 
B10: =IF($B9<'الهدف الاستراتيجى'!$D$3,'12'!$B9+1,"") -> 2018-01-03 | C10: الأربعاء | F10: =Table145679101112[[#This Row],[التارجيت]]-Table145679101112[[#This Row],[المحقق]] -> 0
B11: =IF($B10<'الهدف الاستراتيجى'!$D$3,'12'!$B10+1,"") -> 2018-01-04 | C11: الخميس | F11: =Table145679101112[[#This Row],[التارجيت]]-Table145679101112[[#This Row],[المحقق]] -> 0
B12: =IF($B11<'الهدف الاستراتيجى'!$D$3,'12'!$B11+1,"") -> 2018-01-05 | C12: الجمعة | F12: =Table145679101112[[#This Row],[التارجيت]]-Table145679101112[[#This Row],[المحقق]] -> 0
B13: =IF($B12<'الهدف الاستراتيجى'!$D$3,'12'!$B12+1,"") -> 2018-01-06 | C13: السبت | F13: =Table145679101112[[#This Row],[التارجيت]]-Table145679101112[[#This Row],[المحقق]] -> 0
B14: =IF($B13<'الهدف الاستراتيجى'!$D$3,'12'!$B13+1,"") -> 2018-01-07 | C14: الأحد | F14: =Table145679101112[[#This Row],[التارجيت]]-Table145679101112[[#This Row],[المحقق]] -> 0
B15: =IF($B14<'الهدف الاستراتيجى'!$D$3,'12'!$B14+1,"") -> 2018-01-08 | C15: الإثنين | F15: =Table145679101112[[#This Row],[التارجيت]]-Table145679101112[[#This Row],[المحقق]] -> 0
B16: =IF($B15<'الهدف الاستراتيجى'!$D$3,'12'!$B15+1,"") -> 2018-01-09 | C16: الثلاثاء | F16: =Table145679101112[[#This Row],[التارجيت]]-Table145679101112[[#This Row],[المحقق]] -> 0
B17: =IF($B16<'الهدف الاستراتيجى'!$D$3,'12'!$B16+1,"") -> 2018-01-10 | C17: الأربعاء | F17: =Table145679101112[[#This Row],[التارجيت]]-Table145679101112[[#This Row],[المحقق]] -> 0
B18: =IF($B17<'الهدف الاستراتيجى'!$D$3,'12'!$B17+1,"") -> 2018-01-11 | C18: الخميس | F18: =Table145679101112[[#This Row],[التارجيت]]-Table145679101112[[#This Row],[المحقق]] -> 0
B19: =IF($B18<'الهدف الاستراتيجى'!$D$3,'12'!$B18+1,"") -> 2018-01-12 | C19: الجمعة | F19: =Table145679101112[[#This Row],[التارجيت]]-Table145679101112[[#This Row],[المحقق]] -> 0
B20: =IF($B19<'الهدف الاستراتيجى'!$D$3,'12'!$B19+1,"") -> 2018-01-13 | C20: السبت | F20: =Table145679101112[[#This Row],[التارجيت]]-Table145679101112[[#This Row],[المحقق]] -> 0
B21: =IF($B20<'الهدف الاستراتيجى'!$D$3,'12'!$B20+1,"") -> 2018-01-14 | C21: الأحد | F21: =Table145679101112[[#This Row],[التارجيت]]-Table145679101112[[#This Row],[المحقق]] -> 0
B22: =IF($B21<'الهدف الاستراتيجى'!$D$3,'12'!$B21+1,"") -> 2018-01-15 | C22: الإثنين | F22: =Table145679101112[[#This Row],[التارجيت]]-Table145679101112[[#This Row],[المحقق]] -> 0
B23: =IF($B22<'الهدف الاستراتيجى'!$D$3,'12'!$B22+1,"") -> 2018-01-16 | C23: الثلاثاء | F23: =Table145679101112[[#This Row],[التارجيت]]-Table145679101112[[#This Row],[المحقق]] -> 0
B24: =IF($B23<'الهدف الاستراتيجى'!$D$3,'12'!$B23+1,"") -> 2018-01-17 | C24: الأربعاء | F24: =Table145679101112[[#This Row],[التارجيت]]-Table145679101112[[#This Row],[المحقق]] -> 0
B25: =IF($B24<'الهدف الاستراتيجى'!$D$3,'12'!$B24+1,"") -> 2018-01-18 | C25: الخميس | F25: =Table145679101112[[#This Row],[التارجيت]]-Table145679101112[[#This Row],[المحقق]] -> 0
B26: =IF($B25<'الهدف الاستراتيجى'!$D$3,'12'!$B25+1,"") -> 2018-01-19 | C26: الجمعة | F26: =Table145679101112[[#This Row],[التارجيت]]-Table145679101112[[#This Row],[المحقق]] -> 0
B27: =IF($B26<'الهدف الاستراتيجى'!$D$3,'12'!$B26+1,"") -> 2018-01-20 | C27: السبت | F27: =Table145679101112[[#This Row],[التارجيت]]-Table145679101112[[#This Row],[المحقق]] -> 0
B28: =IF($B27<'الهدف الاستراتيجى'!$D$3,'12'!$B27+1,"") -> 2018-01-21 | C28: الأحد | F28: =Table145679101112[[#This Row],[التارجيت]]-Table145679101112[[#This Row],[المحقق]] -> 0
B29: =IF($B28<'الهدف الاستراتيجى'!$D$3,'12'!$B28+1,"") -> 2018-01-22 | C29: الإثنين | F29: =Table145679101112[[#This Row],[التارجيت]]-Table145679101112[[#This Row],[المحقق]] -> 0
B30: =IF($B29<'الهدف الاستراتيجى'!$D$3,'12'!$B29+1,"") -> 2018-01-23 | C30: الثلاثاء | F30: =Table145679101112[[#This Row],[التارجيت]]-Table145679101112[[#This Row],[المحقق]] -> 0
B31: =IF($B30<'الهدف الاستراتيجى'!$D$3,'12'!$B30+1,"") -> 2018-01-24 | C31: الأربعاء | F31: =Table145679101112[[#This Row],[التارجيت]]-Table145679101112[[#This Row],[المحقق]] -> 0
B32: =IF($B31<'الهدف الاستراتيجى'!$D$3,'12'!$B31+1,"") -> 2018-01-25 | C32: الخميس | F32: =Table145679101112[[#This Row],[التارجيت]]-Table145679101112[[#This Row],[المحقق]] -> 0
B33: =IF($B32<'الهدف الاستراتيجى'!$D$3,'12'!$B32+1,"") -> 2018-01-26 | C33: الجمعة | F33: =Table145679101112[[#This Row],[التارجيت]]-Table145679101112[[#This Row],[المحقق]] -> 0
B34: =IF($B33<'الهدف الاستراتيجى'!$D$3,'12'!$B33+1,"") -> 2018-01-27 | C34: السبت | F34: =Table145679101112[[#This Row],[التارجيت]]-Table145679101112[[#This Row],[المحقق]] -> 0
B35: =IF($B34<'الهدف الاستراتيجى'!$D$3,'12'!$B34+1,"") -> 2018-01-28 | C35: الأحد | F35: =Table145679101112[[#This Row],[التارجيت]]-Table145679101112[[#This Row],[المحقق]] -> 0
B36: =IF($B35<'الهدف الاستراتيجى'!$D$3,'12'!$B35+1,"") -> 2018-01-29 | C36: الإثنين | F36: =Table145679101112[[#This Row],[التارجيت]]-Table145679101112[[#This Row],[المحقق]] -> 0
B37: =IF($B36<'الهدف الاستراتيجى'!$D$3,'12'!$B36+1,"") -> 2018-01-30 | C37: الثلاثاء | F37: =Table145679101112[[#This Row],[التارجيت]]-Table145679101112[[#This Row],[المحقق]] -> 0
B38: =IF($B37<'الهدف الاستراتيجى'!$D$3,'12'!$B37+1,"") -> 2018-01-31 | C38: الأربعاء | F38: =Table145679101112[[#This Row],[التارجيت]]-Table145679101112[[#This Row],[المحقق]] -> 0
B39: المجموع | D39: =SUM(D8:D38) -> 0 | E39: =SUM(E8:E38) -> 0 | F39: =Table145679101112[[#This Row],[التارجيت]]-Table145679101112[[#This Row],[المحقق]] -> 0
B40: المتوسط اليومى | D40: =AVERAGE(D8:D38) ->  | E40: =AVERAGE(E8:E38) ->  | G40: =AVERAGE(G8:G38) -> 
B41: توزيع التارجيت بشكل صحيح | E41: =D39-G3 -> 0 | H41: =IF($E$41=0,CHAR(252),CHAR(251)) -> ü

Sheet 13
B2: معلومات عن الموظف | E2: معلومات استراتيجية | H2: مؤشر الاداء
B3: الاسم | E3: التارجيت الشهرى المطلوب | H3: اجمالى التارجيت المحقق | I3: =$E$39 -> 0
B4: الفرع | E4: متوسط مبيعات اخر 6 شهور | H4: النسبة المحققة | I4: =G39 -> 
B5: القسم | E5: نسبة التطوير (الزيادة) | G5: =IFERROR(G3/G4-1,"") ->  | H5: القرار الادارى | I5: =IF($I$4>='الهدف الاستراتيجى'!$B$8,'الهدف الاستراتيجى'!$B$10,IF($I$4>='الهدف الاستراتيجى'!$C$8,'الهدف الاستراتيجى'!$C$10,IF($I$4>='الهدف الاستراتيجى'!$D$8,'الهدف الاستراتيجى'!$D$10,""))) -> منح حوافز عالية
B7: التاريخ | C7: اليوم | D7: التارجيت | E7: المحقق | F7: الفرق | G7: نسبة الهدف | H7: الاجراء | I7: ملاحظات
B8: ='الهدف الاستراتيجى'!$B$3 -> 2018-01-01 | C8: =TEXT(B8,"dddd") -> الإثنين | F8: =Table14567910111213[[#This Row],[التارجيت]]-Table14567910111213[[#This Row],[المحقق]] -> 0 | G8: =IFERROR(E8/D8,"") -> 
B9: =IF($B8<'الهدف الاستراتيجى'!$D$3,'13'!$B8+1,"") -> 2018-01-02 | C9: =TEXT(B9,"dddd") -> الثلاثاء | F9: =Table14567910111213[[#This Row],[التارجيت]]-Table14567910111213[[#This Row],[المحقق]] -> 0 | G9: =IFERROR(E9/D9,"") -> 
B10: =IF($B9<'الهدف الاستراتيجى'!$D$3,'13'!$B9+1,"") -> 2018-01-03 | C10: الأربعاء | F10: =Table14567910111213[[#This Row],[التارجيت]]-Table14567910111213[[#This Row],[المحقق]] -> 0
B11: =IF($B10<'الهدف الاستراتيجى'!$D$3,'13'!$B10+1,"") -> 2018-01-04 | C11: الخميس | F11: =Table14567910111213[[#This Row],[التارجيت]]-Table14567910111213[[#This Row],[المحقق]] -> 0
B12: =IF($B11<'الهدف الاستراتيجى'!$D$3,'13'!$B11+1,"") -> 2018-01-05 | C12: الجمعة | F12: =Table14567910111213[[#This Row],[التارجيت]]-Table14567910111213[[#This Row],[المحقق]] -> 0
B13: =IF($B12<'الهدف الاستراتيجى'!$D$3,'13'!$B12+1,"") -> 2018-01-06 | C13: السبت | F13: =Table14567910111213[[#This Row],[التارجيت]]-Table14567910111213[[#This Row],[المحقق]] -> 0
B14: =IF($B13<'الهدف الاستراتيجى'!$D$3,'13'!$B13+1,"") -> 2018-01-07 | C14: الأحد | F14: =Table14567910111213[[#This Row],[التارجيت]]-Table14567910111213[[#This Row],[المحقق]] -> 0
B15: =IF($B14<'الهدف الاستراتيجى'!$D$3,'13'!$B14+1,"") -> 2018-01-08 | C15: الإثنين | F15: =Table14567910111213[[#This Row],[التارجيت]]-Table14567910111213[[#This Row],[المحقق]] -> 0
B16: =IF($B15<'الهدف الاستراتيجى'!$D$3,'13'!$B15+1,"") -> 2018-01-09 | C16: الثلاثاء | F16: =Table14567910111213[[#This Row],[التارجيت]]-Table14567910111213[[#This Row],[المحقق]] -> 0
B17: =IF($B16<'الهدف الاستراتيجى'!$D$3,'13'!$B16+1,"") -> 2018-01-10 | C17: الأربعاء | F17: =Table14567910111213[[#This Row],[التارجيت]]-Table14567910111213[[#This Row],[المحقق]] -> 0
B18: =IF($B17<'الهدف الاستراتيجى'!$D$3,'13'!$B17+1,"") -> 2018-01-11 | C18: الخميس | F18: =Table14567910111213[[#This Row],[التارجيت]]-Table14567910111213[[#This Row],[المحقق]] -> 0
B19: =IF($B18<'الهدف الاستراتيجى'!$D$3,'13'!$B18+1,"") -> 2018-01-12 | C19: الجمعة | F19: =Table14567910111213[[#This Row],[التارجيت]]-Table14567910111213[[#This Row],[المحقق]] -> 0
B20: =IF($B19<'الهدف الاستراتيجى'!$D$3,'13'!$B19+1,"") -> 2018-01-13 | C20: السبت | F20: =Table14567910111213[[#This Row],[التارجيت]]-Table14567910111213[[#This Row],[المحقق]] -> 0
B21: =IF($B20<'الهدف الاستراتيجى'!$D$3,'13'!$B20+1,"") -> 2018-01-14 | C21: الأحد | F21: =Table14567910111213[[#This Row],[التارجيت]]-Table14567910111213[[#This Row],[المحقق]] -> 0
B22: =IF($B21<'الهدف الاستراتيجى'!$D$3,'13'!$B21+1,"") -> 2018-01-15 | C22: الإثنين | F22: =Table14567910111213[[#This Row],[التارجيت]]-Table14567910111213[[#This Row],[المحقق]] -> 0
B23: =IF($B22<'الهدف الاستراتيجى'!$D$3,'13'!$B22+1,"") -> 2018-01-16 | C23: الثلاثاء | F23: =Table14567910111213[[#This Row],[التارجيت]]-Table14567910111213[[#This Row],[المحقق]] -> 0
B24: =IF($B23<'الهدف الاستراتيجى'!$D$3,'13'!$B23+1,"") -> 2018-01-17 | C24: الأربعاء | F24: =Table14567910111213[[#This Row],[التارجيت]]-Table14567910111213[[#This Row],[المحقق]] -> 0
B25: =IF($B24<'الهدف الاستراتيجى'!$D$3,'13'!$B24+1,"") -> 2018-01-18 | C25: الخميس | F25: =Table14567910111213[[#This Row],[التارجيت]]-Table14567910111213[[#This Row],[المحقق]] -> 0
B26: =IF($B25<'الهدف الاستراتيجى'!$D$3,'13'!$B25+1,"") -> 2018-01-19 | C26: الجمعة | F26: =Table14567910111213[[#This Row],[التارجيت]]-Table14567910111213[[#This Row],[المحقق]] -> 0
B27: =IF($B26<'الهدف الاستراتيجى'!$D$3,'13'!$B26+1,"") -> 2018-01-20 | C27: السبت | F27: =Table14567910111213[[#This Row],[التارجيت]]-Table14567910111213[[#This Row],[المحقق]] -> 0
B28: =IF($B27<'الهدف الاستراتيجى'!$D$3,'13'!$B27+1,"") -> 2018-01-21 | C28: الأحد | F28: =Table14567910111213[[#This Row],[التارجيت]]-Table14567910111213[[#This Row],[المحقق]] -> 0
B29: =IF($B28<'الهدف الاستراتيجى'!$D$3,'13'!$B28+1,"") -> 2018-01-22 | C29: الإثنين | F29: =Table14567910111213[[#This Row],[التارجيت]]-Table14567910111213[[#This Row],[المحقق]] -> 0
B30: =IF($B29<'الهدف الاستراتيجى'!$D$3,'13'!$B29+1,"") -> 2018-01-23 | C30: الثلاثاء | F30: =Table14567910111213[[#This Row],[التارجيت]]-Table14567910111213[[#This Row],[المحقق]] -> 0
B31: =IF($B30<'الهدف الاستراتيجى'!$D$3,'13'!$B30+1,"") -> 2018-01-24 | C31: الأربعاء | F31: =Table14567910111213[[#This Row],[التارجيت]]-Table14567910111213[[#This Row],[المحقق]] -> 0
B32: =IF($B31<'الهدف الاستراتيجى'!$D$3,'13'!$B31+1,"") -> 2018-01-25 | C32: الخميس | F32: =Table14567910111213[[#This Row],[التارجيت]]-Table14567910111213[[#This Row],[المحقق]] -> 0
B33: =IF($B32<'الهدف الاستراتيجى'!$D$3,'13'!$B32+1,"") -> 2018-01-26 | C33: الجمعة | F33: =Table14567910111213[[#This Row],[التارجيت]]-Table14567910111213[[#This Row],[المحقق]] -> 0
B34: =IF($B33<'الهدف الاستراتيجى'!$D$3,'13'!$B33+1,"") -> 2018-01-27 | C34: السبت | F34: =Table14567910111213[[#This Row],[التارجيت]]-Table14567910111213[[#This Row],[المحقق]] -> 0
B35: =IF($B34<'الهدف الاستراتيجى'!$D$3,'13'!$B34+1,"") -> 2018-01-28 | C35: الأحد | F35: =Table14567910111213[[#This Row],[التارجيت]]-Table14567910111213[[#This Row],[المحقق]] -> 0
B36: =IF($B35<'الهدف الاستراتيجى'!$D$3,'13'!$B35+1,"") -> 2018-01-29 | C36: الإثنين | F36: =Table14567910111213[[#This Row],[التارجيت]]-Table14567910111213[[#This Row],[المحقق]] -> 0
B37: =IF($B36<'الهدف الاستراتيجى'!$D$3,'13'!$B36+1,"") -> 2018-01-30 | C37: الثلاثاء | F37: =Table14567910111213[[#This Row],[التارجيت]]-Table14567910111213[[#This Row],[المحقق]] -> 0
B38: =IF($B37<'الهدف الاستراتيجى'!$D$3,'13'!$B37+1,"") -> 2018-01-31 | C38: الأربعاء | F38: =Table14567910111213[[#This Row],[التارجيت]]-Table14567910111213[[#This Row],[المحقق]] -> 0
B39: المجموع | D39: =SUM(D8:D38) -> 0 | E39: =SUM(E8:E38) -> 0 | F39: =Table14567910111213[[#This Row],[التارجيت]]-Table14567910111213[[#This Row],[المحقق]] -> 0
B40: المتوسط اليومى | D40: =AVERAGE(D8:D38) ->  | E40: =AVERAGE(E8:E38) ->  | G40: =AVERAGE(G8:G38) -> 
B41: توزيع التارجيت بشكل صحيح | E41: =D39-G3 -> 0 | H41: =IF($E$41=0,CHAR(252),CHAR(251)) -> ü

Sheet 14
B2: معلومات عن الموظف | E2: معلومات استراتيجية | H2: مؤشر الاداء
B3: الاسم | E3: التارجيت الشهرى المطلوب | H3: اجمالى التارجيت المحقق | I3: =$E$39 -> 0
B4: الفرع | E4: متوسط مبيعات اخر 6 شهور | H4: النسبة المحققة | I4: =G39 -> 
B5: القسم | E5: نسبة التطوير (الزيادة) | G5: =IFERROR(G3/G4-1,"") ->  | H5: القرار الادارى | I5: =IF($I$4>='الهدف الاستراتيجى'!$B$8,'الهدف الاستراتيجى'!$B$10,IF($I$4>='الهدف الاستراتيجى'!$C$8,'الهدف الاستراتيجى'!$C$10,IF($I$4>='الهدف الاستراتيجى'!$D$8,'الهدف الاستراتيجى'!$D$10,""))) -> منح حوافز عالية
B7: التاريخ | C7: اليوم | D7: التارجيت | E7: المحقق | F7: الفرق | G7: نسبة الهدف | H7: الاجراء | I7: ملاحظات
B8: ='الهدف الاستراتيجى'!$B$3 -> 2018-01-01 | C8: =TEXT(B8,"dddd") -> الإثنين | F8: =Table1456791011121314[[#This Row],[التارجيت]]-Table1456791011121314[[#This Row],[المحقق]] -> 0 | G8: =IFERROR(E8/D8,"") -> 
B9: =IF($B8<'الهدف الاستراتيجى'!$D$3,'14'!$B8+1,"") -> 2018-01-02 | C9: =TEXT(B9,"dddd") -> الثلاثاء | F9: =Table1456791011121314[[#This Row],[التارجيت]]-Table1456791011121314[[#This Row],[المحقق]] -> 0 | G9: =IFERROR(E9/D9,"") -> 
B10: =IF($B9<'الهدف الاستراتيجى'!$D$3,'14'!$B9+1,"") -> 2018-01-03 | C10: الأربعاء | F10: =Table1456791011121314[[#This Row],[التارجيت]]-Table1456791011121314[[#This Row],[المحقق]] -> 0
B11: =IF($B10<'الهدف الاستراتيجى'!$D$3,'14'!$B10+1,"") -> 2018-01-04 | C11: الخميس | F11: =Table1456791011121314[[#This Row],[التارجيت]]-Table1456791011121314[[#This Row],[المحقق]] -> 0
B12: =IF($B11<'الهدف الاستراتيجى'!$D$3,'14'!$B11+1,"") -> 2018-01-05 | C12: الجمعة | F12: =Table1456791011121314[[#This Row],[التارجيت]]-Table1456791011121314[[#This Row],[المحقق]] -> 0
B13: =IF($B12<'الهدف الاستراتيجى'!$D$3,'14'!$B12+1,"") -> 2018-01-06 | C13: السبت | F13: =Table1456791011121314[[#This Row],[التارجيت]]-Table1456791011121314[[#This Row],[المحقق]] -> 0
B14: =IF($B13<'الهدف الاستراتيجى'!$D$3,'14'!$B13+1,"") -> 2018-01-07 | C14: الأحد | F14: =Table1456791011121314[[#This Row],[التارجيت]]-Table1456791011121314[[#This Row],[المحقق]] -> 0
B15: =IF($B14<'الهدف الاستراتيجى'!$D$3,'14'!$B14+1,"") -> 2018-01-08 | C15: الإثنين | F15: =Table1456791011121314[[#This Row],[التارجيت]]-Table1456791011121314[[#This Row],[المحقق]] -> 0
B16: =IF($B15<'الهدف الاستراتيجى'!$D$3,'14'!$B15+1,"") -> 2018-01-09 | C16: الثلاثاء | F16: =Table1456791011121314[[#This Row],[التارجيت]]-Table1456791011121314[[#This Row],[المحقق]] -> 0
B17: =IF($B16<'الهدف الاستراتيجى'!$D$3,'14'!$B16+1,"") -> 2018-01-10 | C17: الأربعاء | F17: =Table1456791011121314[[#This Row],[التارجيت]]-Table1456791011121314[[#This Row],[المحقق]] -> 0
B18: =IF($B17<'الهدف الاستراتيجى'!$D$3,'14'!$B17+1,"") -> 2018-01-11 | C18: الخميس | F18: =Table1456791011121314[[#This Row],[التارجيت]]-Table1456791011121314[[#This Row],[المحقق]] -> 0
B19: =IF($B18<'الهدف الاستراتيجى'!$D$3,'14'!$B18+1,"") -> 2018-01-12 | C19: الجمعة | F19: =Table1456791011121314[[#This Row],[التارجيت]]-Table1456791011121314[[#This Row],[المحقق]] -> 0
B20: =IF($B19<'الهدف الاستراتيجى'!$D$3,'14'!$B19+1,"") -> 2018-01-13 | C20: السبت | F20: =Table1456791011121314[[#This Row],[التارجيت]]-Table1456791011121314[[#This Row],[المحقق]] -> 0
B21: =IF($B20<'الهدف الاستراتيجى'!$D$3,'14'!$B20+1,"") -> 2018-01-14 | C21: الأحد | F21: =Table1456791011121314[[#This Row],[التارجيت]]-Table1456791011121314[[#This Row],[المحقق]] -> 0
B22: =IF($B21<'الهدف الاستراتيجى'!$D$3,'14'!$B21+1,"") -> 2018-01-15 | C22: الإثنين | F22: =Table1456791011121314[[#This Row],[التارجيت]]-Table1456791011121314[[#This Row],[المحقق]] -> 0
B23: =IF($B22<'الهدف الاستراتيجى'!$D$3,'14'!$B22+1,"") -> 2018-01-16 | C23: الثلاثاء | F23: =Table1456791011121314[[#This Row],[التارجيت]]-Table1456791011121314[[#This Row],[المحقق]] -> 0
B24: =IF($B23<'الهدف الاستراتيجى'!$D$3,'14'!$B23+1,"") -> 2018-01-17 | C24: الأربعاء | F24: =Table1456791011121314[[#This Row],[التارجيت]]-Table1456791011121314[[#This Row],[المحقق]] -> 0
B25: =IF($B24<'الهدف الاستراتيجى'!$D$3,'14'!$B24+1,"") -> 2018-01-18 | C25: الخميس | F25: =Table1456791011121314[[#This Row],[التارجيت]]-Table1456791011121314[[#This Row],[المحقق]] -> 0
B26: =IF($B25<'الهدف الاستراتيجى'!$D$3,'14'!$B25+1,"") -> 2018-01-19 | C26: الجمعة | F26: =Table1456791011121314[[#This Row],[التارجيت]]-Table1456791011121314[[#This Row],[المحقق]] -> 0
B27: =IF($B26<'الهدف الاستراتيجى'!$D$3,'14'!$B26+1,"") -> 2018-01-20 | C27: السبت | F27: =Table1456791011121314[[#This Row],[التارجيت]]-Table1456791011121314[[#This Row],[المحقق]] -> 0
B28: =IF($B27<'الهدف الاستراتيجى'!$D$3,'14'!$B27+1,"") -> 2018-01-21 | C28: الأحد | F28: =Table1456791011121314[[#This Row],[التارجيت]]-Table1456791011121314[[#This Row],[المحقق]] -> 0
B29: =IF($B28<'الهدف الاستراتيجى'!$D$3,'14'!$B28+1,"") -> 2018-01-22 | C29: الإثنين | F29: =Table1456791011121314[[#This Row],[التارجيت]]-Table1456791011121314[[#This Row],[المحقق]] -> 0
B30: =IF($B29<'الهدف الاستراتيجى'!$D$3,'14'!$B29+1,"") -> 2018-01-23 | C30: الثلاثاء | F30: =Table1456791011121314[[#This Row],[التارجيت]]-Table1456791011121314[[#This Row],[المحقق]] -> 0
B31: =IF($B30<'الهدف الاستراتيجى'!$D$3,'14'!$B30+1,"") -> 2018-01-24 | C31: الأربعاء | F31: =Table1456791011121314[[#This Row],[التارجيت]]-Table1456791011121314[[#This Row],[المحقق]] -> 0
B32: =IF($B31<'الهدف الاستراتيجى'!$D$3,'14'!$B31+1,"") -> 2018-01-25 | C32: الخميس | F32: =Table1456791011121314[[#This Row],[التارجيت]]-Table1456791011121314[[#This Row],[المحقق]] -> 0
B33: =IF($B32<'الهدف الاستراتيجى'!$D$3,'14'!$B32+1,"") -> 2018-01-26 | C33: الجمعة | F33: =Table1456791011121314[[#This Row],[التارجيت]]-Table1456791011121314[[#This Row],[المحقق]] -> 0
B34: =IF($B33<'الهدف الاستراتيجى'!$D$3,'14'!$B33+1,"") -> 2018-01-27 | C34: السبت | F34: =Table1456791011121314[[#This Row],[التارجيت]]-Table1456791011121314[[#This Row],[المحقق]] -> 0
B35: =IF($B34<'الهدف الاستراتيجى'!$D$3,'14'!$B34+1,"") -> 2018-01-28 | C35: الأحد | F35: =Table1456791011121314[[#This Row],[التارجيت]]-Table1456791011121314[[#This Row],[المحقق]] -> 0
B36: =IF($B35<'الهدف الاستراتيجى'!$D$3,'14'!$B35+1,"") -> 2018-01-29 | C36: الإثنين | F36: =Table1456791011121314[[#This Row],[التارجيت]]-Table1456791011121314[[#This Row],[المحقق]] -> 0
B37: =IF($B36<'الهدف الاستراتيجى'!$D$3,'14'!$B36+1,"") -> 2018-01-30 | C37: الثلاثاء | F37: =Table1456791011121314[[#This Row],[التارجيت]]-Table1456791011121314[[#This Row],[المحقق]] -> 0
B38: =IF($B37<'الهدف الاستراتيجى'!$D$3,'14'!$B37+1,"") -> 2018-01-31 | C38: الأربعاء | F38: =Table1456791011121314[[#This Row],[التارجيت]]-Table1456791011121314[[#This Row],[المحقق]] -> 0
B39: المجموع | D39: =SUM(D8:D38) -> 0 | E39: =SUM(E8:E38) -> 0 | F39: =Table1456791011121314[[#This Row],[التارجيت]]-Table1456791011121314[[#This Row],[المحقق]] -> 0
B40: المتوسط اليومى | D40: =AVERAGE(D8:D38) ->  | E40: =AVERAGE(E8:E38) ->  | G40: =AVERAGE(G8:G38) -> 
B41: توزيع التارجيت بشكل صحيح | E41: =D39-G3 -> 0 | H41: =IF($E$41=0,CHAR(252),CHAR(251)) -> ü

Sheet 15
B2: معلومات عن الموظف | E2: معلومات استراتيجية | H2: مؤشر الاداء
B3: الاسم | E3: التارجيت الشهرى المطلوب | H3: اجمالى التارجيت المحقق | I3: =$E$39 -> 0
B4: الفرع | E4: متوسط مبيعات اخر 6 شهور | H4: النسبة المحققة | I4: =G39 -> 
B5: القسم | E5: نسبة التطوير (الزيادة) | G5: =IFERROR(G3/G4-1,"") ->  | H5: القرار الادارى | I5: =IF($I$4>='الهدف الاستراتيجى'!$B$8,'الهدف الاستراتيجى'!$B$10,IF($I$4>='الهدف الاستراتيجى'!$C$8,'الهدف الاستراتيجى'!$C$10,IF($I$4>='الهدف الاستراتيجى'!$D$8,'الهدف الاستراتيجى'!$D$10,""))) -> منح حوافز عالية
B7: التاريخ | C7: اليوم | D7: التارجيت | E7: المحقق | F7: الفرق | G7: نسبة الهدف | H7: الاجراء | I7: ملاحظات
B8: ='الهدف الاستراتيجى'!$B$3 -> 2018-01-01 | C8: =TEXT(B8,"dddd") -> الإثنين | F8: =Table145679101112131415[[#This Row],[التارجيت]]-Table145679101112131415[[#This Row],[المحقق]] -> 0 | G8: =IFERROR(E8/D8,"") -> 
B9: =IF($B8<'الهدف الاستراتيجى'!$D$3,'15'!$B8+1,"") -> 2018-01-02 | C9: =TEXT(B9,"dddd") -> الثلاثاء | F9: =Table145679101112131415[[#This Row],[التارجيت]]-Table145679101112131415[[#This Row],[المحقق]] -> 0 | G9: =IFERROR(E9/D9,"") -> 
B10: =IF($B9<'الهدف الاستراتيجى'!$D$3,'15'!$B9+1,"") -> 2018-01-03 | C10: الأربعاء | F10: =Table145679101112131415[[#This Row],[التارجيت]]-Table145679101112131415[[#This Row],[المحقق]] -> 0
B11: =IF($B10<'الهدف الاستراتيجى'!$D$3,'15'!$B10+1,"") -> 2018-01-04 | C11: الخميس | F11: =Table145679101112131415[[#This Row],[التارجيت]]-Table145679101112131415[[#This Row],[المحقق]] -> 0
B12: =IF($B11<'الهدف الاستراتيجى'!$D$3,'15'!$B11+1,"") -> 2018-01-05 | C12: الجمعة | F12: =Table145679101112131415[[#This Row],[التارجيت]]-Table145679101112131415[[#This Row],[المحقق]] -> 0
B13: =IF($B12<'الهدف الاستراتيجى'!$D$3,'15'!$B12+1,"") -> 2018-01-06 | C13: السبت | F13: =Table145679101112131415[[#This Row],[التارجيت]]-Table145679101112131415[[#This Row],[المحقق]] -> 0
B14: =IF($B13<'الهدف الاستراتيجى'!$D$3,'15'!$B13+1,"") -> 2018-01-07 | C14: الأحد | F14: =Table145679101112131415[[#This Row],[التارجيت]]-Table145679101112131415[[#This Row],[المحقق]] -> 0
B15: =IF($B14<'الهدف الاستراتيجى'!$D$3,'15'!$B14+1,"") -> 2018-01-08 | C15: الإثنين | F15: =Table145679101112131415[[#This Row],[التارجيت]]-Table145679101112131415[[#This Row],[المحقق]] -> 0
B16: =IF($B15<'الهدف الاستراتيجى'!$D$3,'15'!$B15+1,"") -> 2018-01-09 | C16: الثلاثاء | F16: =Table145679101112131415[[#This Row],[التارجيت]]-Table145679101112131415[[#This Row],[المحقق]] -> 0
B17: =IF($B16<'الهدف الاستراتيجى'!$D$3,'15'!$B16+1,"") -> 2018-01-10 | C17: الأربعاء | F17: =Table145679101112131415[[#This Row],[التارجيت]]-Table145679101112131415[[#This Row],[المحقق]] -> 0
B18: =IF($B17<'الهدف الاستراتيجى'!$D$3,'15'!$B17+1,"") -> 2018-01-11 | C18: الخميس | F18: =Table145679101112131415[[#This Row],[التارجيت]]-Table145679101112131415[[#This Row],[المحقق]] -> 0
B19: =IF($B18<'الهدف الاستراتيجى'!$D$3,'15'!$B18+1,"") -> 2018-01-12 | C19: الجمعة | F19: =Table145679101112131415[[#This Row],[التارجيت]]-Table145679101112131415[[#This Row],[المحقق]] -> 0
B20: =IF($B19<'الهدف الاستراتيجى'!$D$3,'15'!$B19+1,"") -> 2018-01-13 | C20: السبت | F20: =Table145679101112131415[[#This Row],[التارجيت]]-Table145679101112131415[[#This Row],[المحقق]] -> 0
B21: =IF($B20<'الهدف الاستراتيجى'!$D$3,'15'!$B20+1,"") -> 2018-01-14 | C21: الأحد | F21: =Table145679101112131415[[#This Row],[التارجيت]]-Table145679101112131415[[#This Row],[المحقق]] -> 0
B22: =IF($B21<'الهدف الاستراتيجى'!$D$3,'15'!$B21+1,"") -> 2018-01-15 | C22: الإثنين | F22: =Table145679101112131415[[#This Row],[التارجيت]]-Table145679101112131415[[#This Row],[المحقق]] -> 0
B23: =IF($B22<'الهدف الاستراتيجى'!$D$3,'15'!$B22+1,"") -> 2018-01-16 | C23: الثلاثاء | F23: =Table145679101112131415[[#This Row],[التارجيت]]-Table145679101112131415[[#This Row],[المحقق]] -> 0
B24: =IF($B23<'الهدف الاستراتيجى'!$D$3,'15'!$B23+1,"") -> 2018-01-17 | C24: الأربعاء | F24: =Table145679101112131415[[#This Row],[التارجيت]]-Table145679101112131415[[#This Row],[المحقق]] -> 0
B25: =IF($B24<'الهدف الاستراتيجى'!$D$3,'15'!$B24+1,"") -> 2018-01-18 | C25: الخميس | F25: =Table145679101112131415[[#This Row],[التارجيت]]-Table145679101112131415[[#This Row],[المحقق]] -> 0
B26: =IF($B25<'الهدف الاستراتيجى'!$D$3,'15'!$B25+1,"") -> 2018-01-19 | C26: الجمعة | F26: =Table145679101112131415[[#This Row],[التارجيت]]-Table145679101112131415[[#This Row],[المحقق]] -> 0
B27: =IF($B26<'الهدف الاستراتيجى'!$D$3,'15'!$B26+1,"") -> 2018-01-20 | C27: السبت | F27: =Table145679101112131415[[#This Row],[التارجيت]]-Table145679101112131415[[#This Row],[المحقق]] -> 0
B28: =IF($B27<'الهدف الاستراتيجى'!$D$3,'15'!$B27+1,"") -> 2018-01-21 | C28: الأحد | F28: =Table145679101112131415[[#This Row],[التارجيت]]-Table145679101112131415[[#This Row],[المحقق]] -> 0
B29: =IF($B28<'الهدف الاستراتيجى'!$D$3,'15'!$B28+1,"") -> 2018-01-22 | C29: الإثنين | F29: =Table145679101112131415[[#This Row],[التارجيت]]-Table145679101112131415[[#This Row],[المحقق]] -> 0
B30: =IF($B29<'الهدف الاستراتيجى'!$D$3,'15'!$B29+1,"") -> 2018-01-23 | C30: الثلاثاء | F30: =Table145679101112131415[[#This Row],[التارجيت]]-Table145679101112131415[[#This Row],[المحقق]] -> 0
B31: =IF($B30<'الهدف الاستراتيجى'!$D$3,'15'!$B30+1,"") -> 2018-01-24 | C31: الأربعاء | F31: =Table145679101112131415[[#This Row],[التارجيت]]-Table145679101112131415[[#This Row],[المحقق]] -> 0
B32: =IF($B31<'الهدف الاستراتيجى'!$D$3,'15'!$B31+1,"") -> 2018-01-25 | C32: الخميس | F32: =Table145679101112131415[[#This Row],[التارجيت]]-Table145679101112131415[[#This Row],[المحقق]] -> 0
B33: =IF($B32<'الهدف الاستراتيجى'!$D$3,'15'!$B32+1,"") -> 2018-01-26 | C33: الجمعة | F33: =Table145679101112131415[[#This Row],[التارجيت]]-Table145679101112131415[[#This Row],[المحقق]] -> 0
B34: =IF($B33<'الهدف الاستراتيجى'!$D$3,'15'!$B33+1,"") -> 2018-01-27 | C34: السبت | F34: =Table145679101112131415[[#This Row],[التارجيت]]-Table145679101112131415[[#This Row],[المحقق]] -> 0
B35: =IF($B34<'الهدف الاستراتيجى'!$D$3,'15'!$B34+1,"") -> 2018-01-28 | C35: الأحد | F35: =Table145679101112131415[[#This Row],[التارجيت]]-Table145679101112131415[[#This Row],[المحقق]] -> 0
B36: =IF($B35<'الهدف الاستراتيجى'!$D$3,'15'!$B35+1,"") -> 2018-01-29 | C36: الإثنين | F36: =Table145679101112131415[[#This Row],[التارجيت]]-Table145679101112131415[[#This Row],[المحقق]] -> 0
B37: =IF($B36<'الهدف الاستراتيجى'!$D$3,'15'!$B36+1,"") -> 2018-01-30 | C37: الثلاثاء | F37: =Table145679101112131415[[#This Row],[التارجيت]]-Table145679101112131415[[#This Row],[المحقق]] -> 0
B38: =IF($B37<'الهدف الاستراتيجى'!$D$3,'15'!$B37+1,"") -> 2018-01-31 | C38: الأربعاء | F38: =Table145679101112131415[[#This Row],[التارجيت]]-Table145679101112131415[[#This Row],[المحقق]] -> 0
B39: المجموع | D39: =SUM(D8:D38) -> 0 | E39: =SUM(E8:E38) -> 0 | F39: =Table145679101112131415[[#This Row],[التارجيت]]-Table145679101112131415[[#This Row],[المحقق]] -> 0
B40: المتوسط اليومى | D40: =AVERAGE(D8:D38) ->  | E40: =AVERAGE(E8:E38) ->  | G40: =AVERAGE(G8:G38) -> 
B41: توزيع التارجيت بشكل صحيح | E41: =D39-G3 -> 0 | H41: =IF($E$41=0,CHAR(252),CHAR(251)) -> ü

Sheet 16
B2: معلومات عن الموظف | E2: معلومات استراتيجية | H2: مؤشر الاداء
B3: الاسم | C3: حسين | E3: التارجيت الشهرى المطلوب | H3: اجمالى التارجيت المحقق | I3: =$E$39 -> 0
B4: الفرع | E4: متوسط مبيعات اخر 6 شهور | H4: النسبة المحققة | I4: =G39 -> 
B5: القسم | E5: نسبة التطوير (الزيادة) | G5: =IFERROR(G3/G4-1,"") ->  | H5: القرار الادارى | I5: =IF($I$4>='الهدف الاستراتيجى'!$B$8,'الهدف الاستراتيجى'!$B$10,IF($I$4>='الهدف الاستراتيجى'!$C$8,'الهدف الاستراتيجى'!$C$10,IF($I$4>='الهدف الاستراتيجى'!$D$8,'الهدف الاستراتيجى'!$D$10,""))) -> منح حوافز عالية
B7: التاريخ | C7: اليوم | D7: التارجيت | E7: المحقق | F7: الفرق | G7: نسبة الهدف | H7: الاجراء | I7: ملاحظات
B8: ='الهدف الاستراتيجى'!$B$3 -> 2018-01-01 | C8: =TEXT(B8,"dddd") -> الإثنين | F8: =Table14567910111213141516[[#This Row],[التارجيت]]-Table14567910111213141516[[#This Row],[المحقق]] -> 0 | G8: =IFERROR(E8/D8,"") -> 
B9: =IF($B8<'الهدف الاستراتيجى'!$D$3,'16'!$B8+1,"") -> 2018-01-02 | C9: =TEXT(B9,"dddd") -> الثلاثاء | F9: =Table14567910111213141516[[#This Row],[التارجيت]]-Table14567910111213141516[[#This Row],[المحقق]] -> 0 | G9: =IFERROR(E9/D9,"") -> 
B10: =IF($B9<'الهدف الاستراتيجى'!$D$3,'16'!$B9+1,"") -> 2018-01-03 | C10: الأربعاء | F10: =Table14567910111213141516[[#This Row],[التارجيت]]-Table14567910111213141516[[#This Row],[المحقق]] -> 0
B11: =IF($B10<'الهدف الاستراتيجى'!$D$3,'16'!$B10+1,"") -> 2018-01-04 | C11: الخميس | F11: =Table14567910111213141516[[#This Row],[التارجيت]]-Table14567910111213141516[[#This Row],[المحقق]] -> 0
B12: =IF($B11<'الهدف الاستراتيجى'!$D$3,'16'!$B11+1,"") -> 2018-01-05 | C12: الجمعة | F12: =Table14567910111213141516[[#This Row],[التارجيت]]-Table14567910111213141516[[#This Row],[المحقق]] -> 0
B13: =IF($B12<'الهدف الاستراتيجى'!$D$3,'16'!$B12+1,"") -> 2018-01-06 | C13: السبت | F13: =Table14567910111213141516[[#This Row],[التارجيت]]-Table14567910111213141516[[#This Row],[المحقق]] -> 0
B14: =IF($B13<'الهدف الاستراتيجى'!$D$3,'16'!$B13+1,"") -> 2018-01-07 | C14: الأحد | F14: =Table14567910111213141516[[#This Row],[التارجيت]]-Table14567910111213141516[[#This Row],[المحقق]] -> 0
B15: =IF($B14<'الهدف الاستراتيجى'!$D$3,'16'!$B14+1,"") -> 2018-01-08 | C15: الإثنين | F15: =Table14567910111213141516[[#This Row],[التارجيت]]-Table14567910111213141516[[#This Row],[المحقق]] -> 0
B16: =IF($B15<'الهدف الاستراتيجى'!$D$3,'16'!$B15+1,"") -> 2018-01-09 | C16: الثلاثاء | F16: =Table14567910111213141516[[#This Row],[التارجيت]]-Table14567910111213141516[[#This Row],[المحقق]] -> 0
B17: =IF($B16<'الهدف الاستراتيجى'!$D$3,'16'!$B16+1,"") -> 2018-01-10 | C17: الأربعاء | F17: =Table14567910111213141516[[#This Row],[التارجيت]]-Table14567910111213141516[[#This Row],[المحقق]] -> 0
B18: =IF($B17<'الهدف الاستراتيجى'!$D$3,'16'!$B17+1,"") -> 2018-01-11 | C18: الخميس | F18: =Table14567910111213141516[[#This Row],[التارجيت]]-Table14567910111213141516[[#This Row],[المحقق]] -> 0
B19: =IF($B18<'الهدف الاستراتيجى'!$D$3,'16'!$B18+1,"") -> 2018-01-12 | C19: الجمعة | F19: =Table14567910111213141516[[#This Row],[التارجيت]]-Table14567910111213141516[[#This Row],[المحقق]] -> 0
B20: =IF($B19<'الهدف الاستراتيجى'!$D$3,'16'!$B19+1,"") -> 2018-01-13 | C20: السبت | F20: =Table14567910111213141516[[#This Row],[التارجيت]]-Table14567910111213141516[[#This Row],[المحقق]] -> 0
B21: =IF($B20<'الهدف الاستراتيجى'!$D$3,'16'!$B20+1,"") -> 2018-01-14 | C21: الأحد | F21: =Table14567910111213141516[[#This Row],[التارجيت]]-Table14567910111213141516[[#This Row],[المحقق]] -> 0
B22: =IF($B21<'الهدف الاستراتيجى'!$D$3,'16'!$B21+1,"") -> 2018-01-15 | C22: الإثنين | F22: =Table14567910111213141516[[#This Row],[التارجيت]]-Table14567910111213141516[[#This Row],[المحقق]] -> 0
B23: =IF($B22<'الهدف الاستراتيجى'!$D$3,'16'!$B22+1,"") -> 2018-01-16 | C23: الثلاثاء | F23: =Table14567910111213141516[[#This Row],[التارجيت]]-Table14567910111213141516[[#This Row],[المحقق]] -> 0
B24: =IF($B23<'الهدف الاستراتيجى'!$D$3,'16'!$B23+1,"") -> 2018-01-17 | C24: الأربعاء | F24: =Table14567910111213141516[[#This Row],[التارجيت]]-Table14567910111213141516[[#This Row],[المحقق]] -> 0
B25: =IF($B24<'الهدف الاستراتيجى'!$D$3,'16'!$B24+1,"") -> 2018-01-18 | C25: الخميس | F25: =Table14567910111213141516[[#This Row],[التارجيت]]-Table14567910111213141516[[#This Row],[المحقق]] -> 0
B26: =IF($B25<'الهدف الاستراتيجى'!$D$3,'16'!$B25+1,"") -> 2018-01-19 | C26: الجمعة | F26: =Table14567910111213141516[[#This Row],[التارجيت]]-Table14567910111213141516[[#This Row],[المحقق]] -> 0
B27: =IF($B26<'الهدف الاستراتيجى'!$D$3,'16'!$B26+1,"") -> 2018-01-20 | C27: السبت | F27: =Table14567910111213141516[[#This Row],[التارجيت]]-Table14567910111213141516[[#This Row],[المحقق]] -> 0
B28: =IF($B27<'الهدف الاستراتيجى'!$D$3,'16'!$B27+1,"") -> 2018-01-21 | C28: الأحد | F28: =Table14567910111213141516[[#This Row],[التارجيت]]-Table14567910111213141516[[#This Row],[المحقق]] -> 0
B29: =IF($B28<'الهدف الاستراتيجى'!$D$3,'16'!$B28+1,"") -> 2018-01-22 | C29: الإثنين | F29: =Table14567910111213141516[[#This Row],[التارجيت]]-Table14567910111213141516[[#This Row],[المحقق]] -> 0
B30: =IF($B29<'الهدف الاستراتيجى'!$D$3,'16'!$B29+1,"") -> 2018-01-23 | C30: الثلاثاء | F30: =Table14567910111213141516[[#This Row],[التارجيت]]-Table14567910111213141516[[#This Row],[المحقق]] -> 0
B31: =IF($B30<'الهدف الاستراتيجى'!$D$3,'16'!$B30+1,"") -> 2018-01-24 | C31: الأربعاء | F31: =Table14567910111213141516[[#This Row],[التارجيت]]-Table14567910111213141516[[#This Row],[المحقق]] -> 0
B32: =IF($B31<'الهدف الاستراتيجى'!$D$3,'16'!$B31+1,"") -> 2018-01-25 | C32: الخميس | F32: =Table14567910111213141516[[#This Row],[التارجيت]]-Table14567910111213141516[[#This Row],[المحقق]] -> 0
B33: =IF($B32<'الهدف الاستراتيجى'!$D$3,'16'!$B32+1,"") -> 2018-01-26 | C33: الجمعة | F33: =Table14567910111213141516[[#This Row],[التارجيت]]-Table14567910111213141516[[#This Row],[المحقق]] -> 0
B34: =IF($B33<'الهدف الاستراتيجى'!$D$3,'16'!$B33+1,"") -> 2018-01-27 | C34: السبت | F34: =Table14567910111213141516[[#This Row],[التارجيت]]-Table14567910111213141516[[#This Row],[المحقق]] -> 0
B35: =IF($B34<'الهدف الاستراتيجى'!$D$3,'16'!$B34+1,"") -> 2018-01-28 | C35: الأحد | F35: =Table14567910111213141516[[#This Row],[التارجيت]]-Table14567910111213141516[[#This Row],[المحقق]] -> 0
B36: =IF($B35<'الهدف الاستراتيجى'!$D$3,'16'!$B35+1,"") -> 2018-01-29 | C36: الإثنين | F36: =Table14567910111213141516[[#This Row],[التارجيت]]-Table14567910111213141516[[#This Row],[المحقق]] -> 0
B37: =IF($B36<'الهدف الاستراتيجى'!$D$3,'16'!$B36+1,"") -> 2018-01-30 | C37: الثلاثاء | F37: =Table14567910111213141516[[#This Row],[التارجيت]]-Table14567910111213141516[[#This Row],[المحقق]] -> 0
B38: =IF($B37<'الهدف الاستراتيجى'!$D$3,'16'!$B37+1,"") -> 2018-01-31 | C38: الأربعاء | F38: =Table14567910111213141516[[#This Row],[التارجيت]]-Table14567910111213141516[[#This Row],[المحقق]] -> 0
B39: المجموع | D39: =SUM(D8:D38) -> 0 | E39: =SUM(E8:E38) -> 0 | F39: =Table14567910111213141516[[#This Row],[التارجيت]]-Table14567910111213141516[[#This Row],[المحقق]] -> 0
B40: المتوسط اليومى | D40: =AVERAGE(D8:D38) ->  | E40: =AVERAGE(E8:E38) ->  | G40: =AVERAGE(G8:G38) -> 
B41: توزيع التارجيت بشكل صحيح | E41: =D39-G3 -> 0 | H41: =IF($E$41=0,CHAR(252),CHAR(251)) -> ü

Sheet 17
B2: معلومات عن الموظف | E2: معلومات استراتيجية | H2: مؤشر الاداء
B3: الاسم | E3: التارجيت الشهرى المطلوب | H3: اجمالى التارجيت المحقق | I3: =$E$39 -> 0
B4: الفرع | E4: متوسط مبيعات اخر 6 شهور | H4: النسبة المحققة | I4: =G39 -> 
B5: القسم | E5: نسبة التطوير (الزيادة) | G5: =IFERROR(G3/G4-1,"") ->  | H5: القرار الادارى | I5: =IF($I$4>='الهدف الاستراتيجى'!$B$8,'الهدف الاستراتيجى'!$B$10,IF($I$4>='الهدف الاستراتيجى'!$C$8,'الهدف الاستراتيجى'!$C$10,IF($I$4>='الهدف الاستراتيجى'!$D$8,'الهدف الاستراتيجى'!$D$10,""))) -> منح حوافز عالية
B7: التاريخ | C7: اليوم | D7: التارجيت | E7: المحقق | F7: الفرق | G7: نسبة الهدف | H7: الاجراء | I7: ملاحظات
B8: ='الهدف الاستراتيجى'!$B$3 -> 2018-01-01 | C8: =TEXT(B8,"dddd") -> الإثنين | F8: =Table1456791011121314151617[[#This Row],[التارجيت]]-Table1456791011121314151617[[#This Row],[المحقق]] -> 0 | G8: =IFERROR(E8/D8,"") -> 
B9: =IF($B8<'الهدف الاستراتيجى'!$D$3,'17'!$B8+1,"") -> 2018-01-02 | C9: =TEXT(B9,"dddd") -> الثلاثاء | F9: =Table1456791011121314151617[[#This Row],[التارجيت]]-Table1456791011121314151617[[#This Row],[المحقق]] -> 0 | G9: =IFERROR(E9/D9,"") -> 
B10: =IF($B9<'الهدف الاستراتيجى'!$D$3,'17'!$B9+1,"") -> 2018-01-03 | C10: الأربعاء | F10: =Table1456791011121314151617[[#This Row],[التارجيت]]-Table1456791011121314151617[[#This Row],[المحقق]] -> 0
B11: =IF($B10<'الهدف الاستراتيجى'!$D$3,'17'!$B10+1,"") -> 2018-01-04 | C11: الخميس | F11: =Table1456791011121314151617[[#This Row],[التارجيت]]-Table1456791011121314151617[[#This Row],[المحقق]] -> 0
B12: =IF($B11<'الهدف الاستراتيجى'!$D$3,'17'!$B11+1,"") -> 2018-01-05 | C12: الجمعة | F12: =Table1456791011121314151617[[#This Row],[التارجيت]]-Table1456791011121314151617[[#This Row],[المحقق]] -> 0
B13: =IF($B12<'الهدف الاستراتيجى'!$D$3,'17'!$B12+1,"") -> 2018-01-06 | C13: السبت | F13: =Table1456791011121314151617[[#This Row],[التارجيت]]-Table1456791011121314151617[[#This Row],[المحقق]] -> 0
B14: =IF($B13<'الهدف الاستراتيجى'!$D$3,'17'!$B13+1,"") -> 2018-01-07 | C14: الأحد | F14: =Table1456791011121314151617[[#This Row],[التارجيت]]-Table1456791011121314151617[[#This Row],[المحقق]] -> 0
B15: =IF($B14<'الهدف الاستراتيجى'!$D$3,'17'!$B14+1,"") -> 2018-01-08 | C15: الإثنين | F15: =Table1456791011121314151617[[#This Row],[التارجيت]]-Table1456791011121314151617[[#This Row],[المحقق]] -> 0
B16: =IF($B15<'الهدف الاستراتيجى'!$D$3,'17'!$B15+1,"") -> 2018-01-09 | C16: الثلاثاء | F16: =Table1456791011121314151617[[#This Row],[التارجيت]]-Table1456791011121314151617[[#This Row],[المحقق]] -> 0
B17: =IF($B16<'الهدف الاستراتيجى'!$D$3,'17'!$B16+1,"") -> 2018-01-10 | C17: الأربعاء | F17: =Table1456791011121314151617[[#This Row],[التارجيت]]-Table1456791011121314151617[[#This Row],[المحقق]] -> 0
B18: =IF($B17<'الهدف الاستراتيجى'!$D$3,'17'!$B17+1,"") -> 2018-01-11 | C18: الخميس | F18: =Table1456791011121314151617[[#This Row],[التارجيت]]-Table1456791011121314151617[[#This Row],[المحقق]] -> 0
B19: =IF($B18<'الهدف الاستراتيجى'!$D$3,'17'!$B18+1,"") -> 2018-01-12 | C19: الجمعة | F19: =Table1456791011121314151617[[#This Row],[التارجيت]]-Table1456791011121314151617[[#This Row],[المحقق]] -> 0
B20: =IF($B19<'الهدف الاستراتيجى'!$D$3,'17'!$B19+1,"") -> 2018-01-13 | C20: السبت | F20: =Table1456791011121314151617[[#This Row],[التارجيت]]-Table1456791011121314151617[[#This Row],[المحقق]] -> 0
B21: =IF($B20<'الهدف الاستراتيجى'!$D$3,'17'!$B20+1,"") -> 2018-01-14 | C21: الأحد | F21: =Table1456791011121314151617[[#This Row],[التارجيت]]-Table1456791011121314151617[[#This Row],[المحقق]] -> 0
B22: =IF($B21<'الهدف الاستراتيجى'!$D$3,'17'!$B21+1,"") -> 2018-01-15 | C22: الإثنين | F22: =Table1456791011121314151617[[#This Row],[التارجيت]]-Table1456791011121314151617[[#This Row],[المحقق]] -> 0
B23: =IF($B22<'الهدف الاستراتيجى'!$D$3,'17'!$B22+1,"") -> 2018-01-16 | C23: الثلاثاء | F23: =Table1456791011121314151617[[#This Row],[التارجيت]]-Table1456791011121314151617[[#This Row],[المحقق]] -> 0
B24: =IF($B23<'الهدف الاستراتيجى'!$D$3,'17'!$B23+1,"") -> 2018-01-17 | C24: الأربعاء | F24: =Table1456791011121314151617[[#This Row],[التارجيت]]-Table1456791011121314151617[[#This Row],[المحقق]] -> 0
B25: =IF($B24<'الهدف الاستراتيجى'!$D$3,'17'!$B24+1,"") -> 2018-01-18 | C25: الخميس | F25: =Table1456791011121314151617[[#This Row],[التارجيت]]-Table1456791011121314151617[[#This Row],[المحقق]] -> 0
B26: =IF($B25<'الهدف الاستراتيجى'!$D$3,'17'!$B25+1,"") -> 2018-01-19 | C26: الجمعة | F26: =Table1456791011121314151617[[#This Row],[التارجيت]]-Table1456791011121314151617[[#This Row],[المحقق]] -> 0
B27: =IF($B26<'الهدف الاستراتيجى'!$D$3,'17'!$B26+1,"") -> 2018-01-20 | C27: السبت | F27: =Table1456791011121314151617[[#This Row],[التارجيت]]-Table1456791011121314151617[[#This Row],[المحقق]] -> 0
B28: =IF($B27<'الهدف الاستراتيجى'!$D$3,'17'!$B27+1,"") -> 2018-01-21 | C28: الأحد | F28: =Table1456791011121314151617[[#This Row],[التارجيت]]-Table1456791011121314151617[[#This Row],[المحقق]] -> 0
B29: =IF($B28<'الهدف الاستراتيجى'!$D$3,'17'!$B28+1,"") -> 2018-01-22 | C29: الإثنين | F29: =Table1456791011121314151617[[#This Row],[التارجيت]]-Table1456791011121314151617[[#This Row],[المحقق]] -> 0
B30: =IF($B29<'الهدف الاستراتيجى'!$D$3,'17'!$B29+1,"") -> 2018-01-23 | C30: الثلاثاء | F30: =Table1456791011121314151617[[#This Row],[التارجيت]]-Table1456791011121314151617[[#This Row],[المحقق]] -> 0
B31: =IF($B30<'الهدف الاستراتيجى'!$D$3,'17'!$B30+1,"") -> 2018-01-24 | C31: الأربعاء | F31: =Table1456791011121314151617[[#This Row],[التارجيت]]-Table1456791011121314151617[[#This Row],[المحقق]] -> 0
B32: =IF($B31<'الهدف الاستراتيجى'!$D$3,'17'!$B31+1,"") -> 2018-01-25 | C32: الخميس | F32: =Table1456791011121314151617[[#This Row],[التارجيت]]-Table1456791011121314151617[[#This Row],[المحقق]] -> 0
B33: =IF($B32<'الهدف الاستراتيجى'!$D$3,'17'!$B32+1,"") -> 2018-01-26 | C33: الجمعة | F33: =Table1456791011121314151617[[#This Row],[التارجيت]]-Table1456791011121314151617[[#This Row],[المحقق]] -> 0
B34: =IF($B33<'الهدف الاستراتيجى'!$D$3,'17'!$B33+1,"") -> 2018-01-27 | C34: السبت | F34: =Table1456791011121314151617[[#This Row],[التارجيت]]-Table1456791011121314151617[[#This Row],[المحقق]] -> 0
B35: =IF($B34<'الهدف الاستراتيجى'!$D$3,'17'!$B34+1,"") -> 2018-01-28 | C35: الأحد | F35: =Table1456791011121314151617[[#This Row],[التارجيت]]-Table1456791011121314151617[[#This Row],[المحقق]] -> 0
B36: =IF($B35<'الهدف الاستراتيجى'!$D$3,'17'!$B35+1,"") -> 2018-01-29 | C36: الإثنين | F36: =Table1456791011121314151617[[#This Row],[التارجيت]]-Table1456791011121314151617[[#This Row],[المحقق]] -> 0
B37: =IF($B36<'الهدف الاستراتيجى'!$D$3,'17'!$B36+1,"") -> 2018-01-30 | C37: الثلاثاء | F37: =Table1456791011121314151617[[#This Row],[التارجيت]]-Table1456791011121314151617[[#This Row],[المحقق]] -> 0
B38: =IF($B37<'الهدف الاستراتيجى'!$D$3,'17'!$B37+1,"") -> 2018-01-31 | C38: الأربعاء | F38: =Table1456791011121314151617[[#This Row],[التارجيت]]-Table1456791011121314151617[[#This Row],[المحقق]] -> 0
B39: المجموع | D39: =SUM(D8:D38) -> 0 | E39: =SUM(E8:E38) -> 0 | F39: =Table1456791011121314151617[[#This Row],[التارجيت]]-Table1456791011121314151617[[#This Row],[المحقق]] -> 0
B40: المتوسط اليومى | D40: =AVERAGE(D8:D38) ->  | E40: =AVERAGE(E8:E38) ->  | G40: =AVERAGE(G8:G38) -> 
B41: توزيع التارجيت بشكل صحيح | E41: =D39-G3 -> 0 | H41: =IF($E$41=0,CHAR(252),CHAR(251)) -> ü

Sheet 18
B2: معلومات عن الموظف | E2: معلومات استراتيجية | H2: مؤشر الاداء
B3: الاسم | E3: التارجيت الشهرى المطلوب | H3: اجمالى التارجيت المحقق | I3: =$E$39 -> 0
B4: الفرع | E4: متوسط مبيعات اخر 6 شهور | H4: النسبة المحققة | I4: =G39 -> 
B5: القسم | E5: نسبة التطوير (الزيادة) | G5: =IFERROR(G3/G4-1,"") ->  | H5: القرار الادارى | I5: =IF($I$4>='الهدف الاستراتيجى'!$B$8,'الهدف الاستراتيجى'!$B$10,IF($I$4>='الهدف الاستراتيجى'!$C$8,'الهدف الاستراتيجى'!$C$10,IF($I$4>='الهدف الاستراتيجى'!$D$8,'الهدف الاستراتيجى'!$D$10,""))) -> منح حوافز عالية
B7: التاريخ | C7: اليوم | D7: التارجيت | E7: المحقق | F7: الفرق | G7: نسبة الهدف | H7: الاجراء | I7: ملاحظات
B8: ='الهدف الاستراتيجى'!$B$3 -> 2018-01-01 | C8: =TEXT(B8,"dddd") -> الإثنين | F8: =Table145679101112131415161718[[#This Row],[التارجيت]]-Table145679101112131415161718[[#This Row],[المحقق]] -> 0 | G8: =IFERROR(E8/D8,"") -> 
B9: =IF($B8<'الهدف الاستراتيجى'!$D$3,'18'!$B8+1,"") -> 2018-01-02 | C9: =TEXT(B9,"dddd") -> الثلاثاء | F9: =Table145679101112131415161718[[#This Row],[التارجيت]]-Table145679101112131415161718[[#This Row],[المحقق]] -> 0 | G9: =IFERROR(E9/D9,"") -> 
B10: =IF($B9<'الهدف الاستراتيجى'!$D$3,'18'!$B9+1,"") -> 2018-01-03 | C10: الأربعاء | F10: =Table145679101112131415161718[[#This Row],[التارجيت]]-Table145679101112131415161718[[#This Row],[المحقق]] -> 0
B11: =IF($B10<'الهدف الاستراتيجى'!$D$3,'18'!$B10+1,"") -> 2018-01-04 | C11: الخميس | F11: =Table145679101112131415161718[[#This Row],[التارجيت]]-Table145679101112131415161718[[#This Row],[المحقق]] -> 0
B12: =IF($B11<'الهدف الاستراتيجى'!$D$3,'18'!$B11+1,"") -> 2018-01-05 | C12: الجمعة | F12: =Table145679101112131415161718[[#This Row],[التارجيت]]-Table145679101112131415161718[[#This Row],[المحقق]] -> 0
B13: =IF($B12<'الهدف الاستراتيجى'!$D$3,'18'!$B12+1,"") -> 2018-01-06 | C13: السبت | F13: =Table145679101112131415161718[[#This Row],[التارجيت]]-Table145679101112131415161718[[#This Row],[المحقق]] -> 0
B14: =IF($B13<'الهدف الاستراتيجى'!$D$3,'18'!$B13+1,"") -> 2018-01-07 | C14: الأحد | F14: =Table145679101112131415161718[[#This Row],[التارجيت]]-Table145679101112131415161718[[#This Row],[المحقق]] -> 0
B15: =IF($B14<'الهدف الاستراتيجى'!$D$3,'18'!$B14+1,"") -> 2018-01-08 | C15: الإثنين | F15: =Table145679101112131415161718[[#This Row],[التارجيت]]-Table145679101112131415161718[[#This Row],[المحقق]] -> 0
B16: =IF($B15<'الهدف الاستراتيجى'!$D$3,'18'!$B15+1,"") -> 2018-01-09 | C16: الثلاثاء | F16: =Table145679101112131415161718[[#This Row],[التارجيت]]-Table145679101112131415161718[[#This Row],[المحقق]] -> 0
B17: =IF($B16<'الهدف الاستراتيجى'!$D$3,'18'!$B16+1,"") -> 2018-01-10 | C17: الأربعاء | F17: =Table145679101112131415161718[[#This Row],[التارجيت]]-Table145679101112131415161718[[#This Row],[المحقق]] -> 0
B18: =IF($B17<'الهدف الاستراتيجى'!$D$3,'18'!$B17+1,"") -> 2018-01-11 | C18: الخميس | F18: =Table145679101112131415161718[[#This Row],[التارجيت]]-Table145679101112131415161718[[#This Row],[المحقق]] -> 0
B19: =IF($B18<'الهدف الاستراتيجى'!$D$3,'18'!$B18+1,"") -> 2018-01-12 | C19: الجمعة | F19: =Table145679101112131415161718[[#This Row],[التارجيت]]-Table145679101112131415161718[[#This Row],[المحقق]] -> 0
B20: =IF($B19<'الهدف الاستراتيجى'!$D$3,'18'!$B19+1,"") -> 2018-01-13 | C20: السبت | F20: =Table145679101112131415161718[[#This Row],[التارجيت]]-Table145679101112131415161718[[#This Row],[المحقق]] -> 0
B21: =IF($B20<'الهدف الاستراتيجى'!$D$3,'18'!$B20+1,"") -> 2018-01-14 | C21: الأحد | F21: =Table145679101112131415161718[[#This Row],[التارجيت]]-Table145679101112131415161718[[#This Row],[المحقق]] -> 0
B22: =IF($B21<'الهدف الاستراتيجى'!$D$3,'18'!$B21+1,"") -> 2018-01-15 | C22: الإثنين | F22: =Table145679101112131415161718[[#This Row],[التارجيت]]-Table145679101112131415161718[[#This Row],[المحقق]] -> 0
B23: =IF($B22<'الهدف الاستراتيجى'!$D$3,'18'!$B22+1,"") -> 2018-01-16 | C23: الثلاثاء | F23: =Table145679101112131415161718[[#This Row],[التارجيت]]-Table145679101112131415161718[[#This Row],[المحقق]] -> 0
B24: =IF($B23<'الهدف الاستراتيجى'!$D$3,'18'!$B23+1,"") -> 2018-01-17 | C24: الأربعاء | F24: =Table145679101112131415161718[[#This Row],[التارجيت]]-Table145679101112131415161718[[#This Row],[المحقق]] -> 0
B25: =IF($B24<'الهدف الاستراتيجى'!$D$3,'18'!$B24+1,"") -> 2018-01-18 | C25: الخميس | F25: =Table145679101112131415161718[[#This Row],[التارجيت]]-Table145679101112131415161718[[#This Row],[المحقق]] -> 0
B26: =IF($B25<'الهدف الاستراتيجى'!$D$3,'18'!$B25+1,"") -> 2018-01-19 | C26: الجمعة | F26: =Table145679101112131415161718[[#This Row],[التارجيت]]-Table145679101112131415161718[[#This Row],[المحقق]] -> 0
B27: =IF($B26<'الهدف الاستراتيجى'!$D$3,'18'!$B26+1,"") -> 2018-01-20 | C27: السبت | F27: =Table145679101112131415161718[[#This Row],[التارجيت]]-Table145679101112131415161718[[#This Row],[المحقق]] -> 0
B28: =IF($B27<'الهدف الاستراتيجى'!$D$3,'18'!$B27+1,"") -> 2018-01-21 | C28: الأحد | F28: =Table145679101112131415161718[[#This Row],[التارجيت]]-Table145679101112131415161718[[#This Row],[المحقق]] -> 0
B29: =IF($B28<'الهدف الاستراتيجى'!$D$3,'18'!$B28+1,"") -> 2018-01-22 | C29: الإثنين | F29: =Table145679101112131415161718[[#This Row],[التارجيت]]-Table145679101112131415161718[[#This Row],[المحقق]] -> 0
B30: =IF($B29<'الهدف الاستراتيجى'!$D$3,'18'!$B29+1,"") -> 2018-01-23 | C30: الثلاثاء | F30: =Table145679101112131415161718[[#This Row],[التارجيت]]-Table145679101112131415161718[[#This Row],[المحقق]] -> 0
B31: =IF($B30<'الهدف الاستراتيجى'!$D$3,'18'!$B30+1,"") -> 2018-01-24 | C31: الأربعاء | F31: =Table145679101112131415161718[[#This Row],[التارجيت]]-Table145679101112131415161718[[#This Row],[المحقق]] -> 0
B32: =IF($B31<'الهدف الاستراتيجى'!$D$3,'18'!$B31+1,"") -> 2018-01-25 | C32: الخميس | F32: =Table145679101112131415161718[[#This Row],[التارجيت]]-Table145679101112131415161718[[#This Row],[المحقق]] -> 0
B33: =IF($B32<'الهدف الاستراتيجى'!$D$3,'18'!$B32+1,"") -> 2018-01-26 | C33: الجمعة | F33: =Table145679101112131415161718[[#This Row],[التارجيت]]-Table145679101112131415161718[[#This Row],[المحقق]] -> 0
B34: =IF($B33<'الهدف الاستراتيجى'!$D$3,'18'!$B33+1,"") -> 2018-01-27 | C34: السبت | F34: =Table145679101112131415161718[[#This Row],[التارجيت]]-Table145679101112131415161718[[#This Row],[المحقق]] -> 0
B35: =IF($B34<'الهدف الاستراتيجى'!$D$3,'18'!$B34+1,"") -> 2018-01-28 | C35: الأحد | F35: =Table145679101112131415161718[[#This Row],[التارجيت]]-Table145679101112131415161718[[#This Row],[المحقق]] -> 0
B36: =IF($B35<'الهدف الاستراتيجى'!$D$3,'18'!$B35+1,"") -> 2018-01-29 | C36: الإثنين | F36: =Table145679101112131415161718[[#This Row],[التارجيت]]-Table145679101112131415161718[[#This Row],[المحقق]] -> 0
B37: =IF($B36<'الهدف الاستراتيجى'!$D$3,'18'!$B36+1,"") -> 2018-01-30 | C37: الثلاثاء | F37: =Table145679101112131415161718[[#This Row],[التارجيت]]-Table145679101112131415161718[[#This Row],[المحقق]] -> 0
B38: =IF($B37<'الهدف الاستراتيجى'!$D$3,'18'!$B37+1,"") -> 2018-01-31 | C38: الأربعاء | F38: =Table145679101112131415161718[[#This Row],[التارجيت]]-Table145679101112131415161718[[#This Row],[المحقق]] -> 0
B39: المجموع | D39: =SUM(D8:D38) -> 0 | E39: =SUM(E8:E38) -> 0 | F39: =Table145679101112131415161718[[#This Row],[التارجيت]]-Table145679101112131415161718[[#This Row],[المحقق]] -> 0
B40: المتوسط اليومى | D40: =AVERAGE(D8:D38) ->  | E40: =AVERAGE(E8:E38) ->  | G40: =AVERAGE(G8:G38) -> 
B41: توزيع التارجيت بشكل صحيح | E41: =D39-G3 -> 0 | H41: =IF($E$41=0,CHAR(252),CHAR(251)) -> ü

Sheet 19
B2: معلومات عن الموظف | E2: معلومات استراتيجية | H2: مؤشر الاداء
B3: الاسم | E3: التارجيت الشهرى المطلوب | H3: اجمالى التارجيت المحقق | I3: =$E$39 -> 0
B4: الفرع | E4: متوسط مبيعات اخر 6 شهور | H4: النسبة المحققة | I4: =G39 -> 
B5: القسم | E5: نسبة التطوير (الزيادة) | G5: =IFERROR(G3/G4-1,"") ->  | H5: القرار الادارى | I5: =IF($I$4>='الهدف الاستراتيجى'!$B$8,'الهدف الاستراتيجى'!$B$10,IF($I$4>='الهدف الاستراتيجى'!$C$8,'الهدف الاستراتيجى'!$C$10,IF($I$4>='الهدف الاستراتيجى'!$D$8,'الهدف الاستراتيجى'!$D$10,""))) -> منح حوافز عالية
B7: التاريخ | C7: اليوم | D7: التارجيت | E7: المحقق | F7: الفرق | G7: نسبة الهدف | H7: الاجراء | I7: ملاحظات
B8: ='الهدف الاستراتيجى'!$B$3 -> 2018-01-01 | C8: =TEXT(B8,"dddd") -> الإثنين | F8: =Table14567910111213141516171819[[#This Row],[التارجيت]]-Table14567910111213141516171819[[#This Row],[المحقق]] -> 0 | G8: =IFERROR(E8/D8,"") -> 
B9: =IF($B8<'الهدف الاستراتيجى'!$D$3,'19'!$B8+1,"") -> 2018-01-02 | C9: =TEXT(B9,"dddd") -> الثلاثاء | F9: =Table14567910111213141516171819[[#This Row],[التارجيت]]-Table14567910111213141516171819[[#This Row],[المحقق]] -> 0 | G9: =IFERROR(E9/D9,"") -> 
B10: =IF($B9<'الهدف الاستراتيجى'!$D$3,'19'!$B9+1,"") -> 2018-01-03 | C10: الأربعاء | F10: =Table14567910111213141516171819[[#This Row],[التارجيت]]-Table14567910111213141516171819[[#This Row],[المحقق]] -> 0
B11: =IF($B10<'الهدف الاستراتيجى'!$D$3,'19'!$B10+1,"") -> 2018-01-04 | C11: الخميس | F11: =Table14567910111213141516171819[[#This Row],[التارجيت]]-Table14567910111213141516171819[[#This Row],[المحقق]] -> 0
B12: =IF($B11<'الهدف الاستراتيجى'!$D$3,'19'!$B11+1,"") -> 2018-01-05 | C12: الجمعة | F12: =Table14567910111213141516171819[[#This Row],[التارجيت]]-Table14567910111213141516171819[[#This Row],[المحقق]] -> 0
B13: =IF($B12<'الهدف الاستراتيجى'!$D$3,'19'!$B12+1,"") -> 2018-01-06 | C13: السبت | F13: =Table14567910111213141516171819[[#This Row],[التارجيت]]-Table14567910111213141516171819[[#This Row],[المحقق]] -> 0
B14: =IF($B13<'الهدف الاستراتيجى'!$D$3,'19'!$B13+1,"") -> 2018-01-07 | C14: الأحد | F14: =Table14567910111213141516171819[[#This Row],[التارجيت]]-Table14567910111213141516171819[[#This Row],[المحقق]] -> 0
B15: =IF($B14<'الهدف الاستراتيجى'!$D$3,'19'!$B14+1,"") -> 2018-01-08 | C15: الإثنين | F15: =Table14567910111213141516171819[[#This Row],[التارجيت]]-Table14567910111213141516171819[[#This Row],[المحقق]] -> 0
B16: =IF($B15<'الهدف الاستراتيجى'!$D$3,'19'!$B15+1,"") -> 2018-01-09 | C16: الثلاثاء | F16: =Table14567910111213141516171819[[#This Row],[التارجيت]]-Table14567910111213141516171819[[#This Row],[المحقق]] -> 0
B17: =IF($B16<'الهدف الاستراتيجى'!$D$3,'19'!$B16+1,"") -> 2018-01-10 | C17: الأربعاء | F17: =Table14567910111213141516171819[[#This Row],[التارجيت]]-Table14567910111213141516171819[[#This Row],[المحقق]] -> 0
B18: =IF($B17<'الهدف الاستراتيجى'!$D$3,'19'!$B17+1,"") -> 2018-01-11 | C18: الخميس | F18: =Table14567910111213141516171819[[#This Row],[التارجيت]]-Table14567910111213141516171819[[#This Row],[المحقق]] -> 0
B19: =IF($B18<'الهدف الاستراتيجى'!$D$3,'19'!$B18+1,"") -> 2018-01-12 | C19: الجمعة | F19: =Table14567910111213141516171819[[#This Row],[التارجيت]]-Table14567910111213141516171819[[#This Row],[المحقق]] -> 0
B20: =IF($B19<'الهدف الاستراتيجى'!$D$3,'19'!$B19+1,"") -> 2018-01-13 | C20: السبت | F20: =Table14567910111213141516171819[[#This Row],[التارجيت]]-Table14567910111213141516171819[[#This Row],[المحقق]] -> 0
B21: =IF($B20<'الهدف الاستراتيجى'!$D$3,'19'!$B20+1,"") -> 2018-01-14 | C21: الأحد | F21: =Table14567910111213141516171819[[#This Row],[التارجيت]]-Table14567910111213141516171819[[#This Row],[المحقق]] -> 0
B22: =IF($B21<'الهدف الاستراتيجى'!$D$3,'19'!$B21+1,"") -> 2018-01-15 | C22: الإثنين | F22: =Table14567910111213141516171819[[#This Row],[التارجيت]]-Table14567910111213141516171819[[#This Row],[المحقق]] -> 0
B23: =IF($B22<'الهدف الاستراتيجى'!$D$3,'19'!$B22+1,"") -> 2018-01-16 | C23: الثلاثاء | F23: =Table14567910111213141516171819[[#This Row],[التارجيت]]-Table14567910111213141516171819[[#This Row],[المحقق]] -> 0
B24: =IF($B23<'الهدف الاستراتيجى'!$D$3,'19'!$B23+1,"") -> 2018-01-17 | C24: الأربعاء | F24: =Table14567910111213141516171819[[#This Row],[التارجيت]]-Table14567910111213141516171819[[#This Row],[المحقق]] -> 0
B25: =IF($B24<'الهدف الاستراتيجى'!$D$3,'19'!$B24+1,"") -> 2018-01-18 | C25: الخميس | F25: =Table14567910111213141516171819[[#This Row],[التارجيت]]-Table14567910111213141516171819[[#This Row],[المحقق]] -> 0
B26: =IF($B25<'الهدف الاستراتيجى'!$D$3,'19'!$B25+1,"") -> 2018-01-19 | C26: الجمعة | F26: =Table14567910111213141516171819[[#This Row],[التارجيت]]-Table14567910111213141516171819[[#This Row],[المحقق]] -> 0
B27: =IF($B26<'الهدف الاستراتيجى'!$D$3,'19'!$B26+1,"") -> 2018-01-20 | C27: السبت | F27: =Table14567910111213141516171819[[#This Row],[التارجيت]]-Table14567910111213141516171819[[#This Row],[المحقق]] -> 0
B28: =IF($B27<'الهدف الاستراتيجى'!$D$3,'19'!$B27+1,"") -> 2018-01-21 | C28: الأحد | F28: =Table14567910111213141516171819[[#This Row],[التارجيت]]-Table14567910111213141516171819[[#This Row],[المحقق]] -> 0
B29: =IF($B28<'الهدف الاستراتيجى'!$D$3,'19'!$B28+1,"") -> 2018-01-22 | C29: الإثنين | F29: =Table14567910111213141516171819[[#This Row],[التارجيت]]-Table14567910111213141516171819[[#This Row],[المحقق]] -> 0
B30: =IF($B29<'الهدف الاستراتيجى'!$D$3,'19'!$B29+1,"") -> 2018-01-23 | C30: الثلاثاء | F30: =Table14567910111213141516171819[[#This Row],[التارجيت]]-Table14567910111213141516171819[[#This Row],[المحقق]] -> 0
B31: =IF($B30<'الهدف الاستراتيجى'!$D$3,'19'!$B30+1,"") -> 2018-01-24 | C31: الأربعاء | F31: =Table14567910111213141516171819[[#This Row],[التارجيت]]-Table14567910111213141516171819[[#This Row],[المحقق]] -> 0
B32: =IF($B31<'الهدف الاستراتيجى'!$D$3,'19'!$B31+1,"") -> 2018-01-25 | C32: الخميس | F32: =Table14567910111213141516171819[[#This Row],[التارجيت]]-Table14567910111213141516171819[[#This Row],[المحقق]] -> 0
B33: =IF($B32<'الهدف الاستراتيجى'!$D$3,'19'!$B32+1,"") -> 2018-01-26 | C33: الجمعة | F33: =Table14567910111213141516171819[[#This Row],[التارجيت]]-Table14567910111213141516171819[[#This Row],[المحقق]] -> 0
B34: =IF($B33<'الهدف الاستراتيجى'!$D$3,'19'!$B33+1,"") -> 2018-01-27 | C34: السبت | F34: =Table14567910111213141516171819[[#This Row],[التارجيت]]-Table14567910111213141516171819[[#This Row],[المحقق]] -> 0
B35: =IF($B34<'الهدف الاستراتيجى'!$D$3,'19'!$B34+1,"") -> 2018-01-28 | C35: الأحد | F35: =Table14567910111213141516171819[[#This Row],[التارجيت]]-Table14567910111213141516171819[[#This Row],[المحقق]] -> 0
B36: =IF($B35<'الهدف الاستراتيجى'!$D$3,'19'!$B35+1,"") -> 2018-01-29 | C36: الإثنين | F36: =Table14567910111213141516171819[[#This Row],[التارجيت]]-Table14567910111213141516171819[[#This Row],[المحقق]] -> 0
B37: =IF($B36<'الهدف الاستراتيجى'!$D$3,'19'!$B36+1,"") -> 2018-01-30 | C37: الثلاثاء | F37: =Table14567910111213141516171819[[#This Row],[التارجيت]]-Table14567910111213141516171819[[#This Row],[المحقق]] -> 0
B38: =IF($B37<'الهدف الاستراتيجى'!$D$3,'19'!$B37+1,"") -> 2018-01-31 | C38: الأربعاء | F38: =Table14567910111213141516171819[[#This Row],[التارجيت]]-Table14567910111213141516171819[[#This Row],[المحقق]] -> 0
B39: المجموع | D39: =SUM(D8:D38) -> 0 | E39: =SUM(E8:E38) -> 0 | F39: =Table14567910111213141516171819[[#This Row],[التارجيت]]-Table14567910111213141516171819[[#This Row],[المحقق]] -> 0
B40: المتوسط اليومى | D40: =AVERAGE(D8:D38) ->  | E40: =AVERAGE(E8:E38) ->  | G40: =AVERAGE(G8:G38) -> 
B41: توزيع التارجيت بشكل صحيح | E41: =D39-G3 -> 0 | H41: =IF($E$41=0,CHAR(252),CHAR(251)) -> ü

Sheet 20
B2: معلومات عن الموظف | E2: معلومات استراتيجية | H2: مؤشر الاداء
B3: الاسم | E3: التارجيت الشهرى المطلوب | H3: اجمالى التارجيت المحقق | I3: =$E$39 -> 0
B4: الفرع | E4: متوسط مبيعات اخر 6 شهور | H4: النسبة المحققة | I4: =G39 -> 
B5: القسم | E5: نسبة التطوير (الزيادة) | G5: =IFERROR(G3/G4-1,"") ->  | H5: القرار الادارى | I5: =IF($I$4>='الهدف الاستراتيجى'!$B$8,'الهدف الاستراتيجى'!$B$10,IF($I$4>='الهدف الاستراتيجى'!$C$8,'الهدف الاستراتيجى'!$C$10,IF($I$4>='الهدف الاستراتيجى'!$D$8,'الهدف الاستراتيجى'!$D$10,""))) -> منح حوافز عالية
B7: التاريخ | C7: اليوم | D7: التارجيت | E7: المحقق | F7: الفرق | G7: نسبة الهدف | H7: الاجراء | I7: ملاحظات
B8: ='الهدف الاستراتيجى'!$B$3 -> 2018-01-01 | C8: =TEXT(B8,"dddd") -> الإثنين | F8: =Table1456791011121314151617181920[[#This Row],[التارجيت]]-Table1456791011121314151617181920[[#This Row],[المحقق]] -> 0 | G8: =IFERROR(E8/D8,"") -> 
B9: =IF($B8<'الهدف الاستراتيجى'!$D$3,'20'!$B8+1,"") -> 2018-01-02 | C9: =TEXT(B9,"dddd") -> الثلاثاء | F9: =Table1456791011121314151617181920[[#This Row],[التارجيت]]-Table1456791011121314151617181920[[#This Row],[المحقق]] -> 0 | G9: =IFERROR(E9/D9,"") -> 
B10: =IF($B9<'الهدف الاستراتيجى'!$D$3,'20'!$B9+1,"") -> 2018-01-03 | C10: الأربعاء | F10: =Table1456791011121314151617181920[[#This Row],[التارجيت]]-Table1456791011121314151617181920[[#This Row],[المحقق]] -> 0
B11: =IF($B10<'الهدف الاستراتيجى'!$D$3,'20'!$B10+1,"") -> 2018-01-04 | C11: الخميس | F11: =Table1456791011121314151617181920[[#This Row],[التارجيت]]-Table1456791011121314151617181920[[#This Row],[المحقق]] -> 0
B12: =IF($B11<'الهدف الاستراتيجى'!$D$3,'20'!$B11+1,"") -> 2018-01-05 | C12: الجمعة | F12: =Table1456791011121314151617181920[[#This Row],[التارجيت]]-Table1456791011121314151617181920[[#This Row],[المحقق]] -> 0
B13: =IF($B12<'الهدف الاستراتيجى'!$D$3,'20'!$B12+1,"") -> 2018-01-06 | C13: السبت | F13: =Table1456791011121314151617181920[[#This Row],[التارجيت]]-Table1456791011121314151617181920[[#This Row],[المحقق]] -> 0
B14: =IF($B13<'الهدف الاستراتيجى'!$D$3,'20'!$B13+1,"") -> 2018-01-07 | C14: الأحد | F14: =Table1456791011121314151617181920[[#This Row],[التارجيت]]-Table1456791011121314151617181920[[#This Row],[المحقق]] -> 0
B15: =IF($B14<'الهدف الاستراتيجى'!$D$3,'20'!$B14+1,"") -> 2018-01-08 | C15: الإثنين | F15: =Table1456791011121314151617181920[[#This Row],[التارجيت]]-Table1456791011121314151617181920[[#This Row],[المحقق]] -> 0
B16: =IF($B15<'الهدف الاستراتيجى'!$D$3,'20'!$B15+1,"") -> 2018-01-09 | C16: الثلاثاء | F16: =Table1456791011121314151617181920[[#This Row],[التارجيت]]-Table1456791011121314151617181920[[#This Row],[المحقق]] -> 0
B17: =IF($B16<'الهدف الاستراتيجى'!$D$3,'20'!$B16+1,"") -> 2018-01-10 | C17: الأربعاء | F17: =Table1456791011121314151617181920[[#This Row],[التارجيت]]-Table1456791011121314151617181920[[#This Row],[المحقق]] -> 0
B18: =IF($B17<'الهدف الاستراتيجى'!$D$3,'20'!$B17+1,"") -> 2018-01-11 | C18: الخميس | F18: =Table1456791011121314151617181920[[#This Row],[التارجيت]]-Table1456791011121314151617181920[[#This Row],[المحقق]] -> 0
B19: =IF($B18<'الهدف الاستراتيجى'!$D$3,'20'!$B18+1,"") -> 2018-01-12 | C19: الجمعة | F19: =Table1456791011121314151617181920[[#This Row],[التارجيت]]-Table1456791011121314151617181920[[#This Row],[المحقق]] -> 0
B20: =IF($B19<'الهدف الاستراتيجى'!$D$3,'20'!$B19+1,"") -> 2018-01-13 | C20: السبت | F20: =Table1456791011121314151617181920[[#This Row],[التارجيت]]-Table1456791011121314151617181920[[#This Row],[المحقق]] -> 0
B21: =IF($B20<'الهدف الاستراتيجى'!$D$3,'20'!$B20+1,"") -> 2018-01-14 | C21: الأحد | F21: =Table1456791011121314151617181920[[#This Row],[التارجيت]]-Table1456791011121314151617181920[[#This Row],[المحقق]] -> 0
B22: =IF($B21<'الهدف الاستراتيجى'!$D$3,'20'!$B21+1,"") -> 2018-01-15 | C22: الإثنين | F22: =Table1456791011121314151617181920[[#This Row],[التارجيت]]-Table1456791011121314151617181920[[#This Row],[المحقق]] -> 0
B23: =IF($B22<'الهدف الاستراتيجى'!$D$3,'20'!$B22+1,"") -> 2018-01-16 | C23: الثلاثاء | F23: =Table1456791011121314151617181920[[#This Row],[التارجيت]]-Table1456791011121314151617181920[[#This Row],[المحقق]] -> 0
B24: =IF($B23<'الهدف الاستراتيجى'!$D$3,'20'!$B23+1,"") -> 2018-01-17 | C24: الأربعاء | F24: =Table1456791011121314151617181920[[#This Row],[التارجيت]]-Table1456791011121314151617181920[[#This Row],[المحقق]] -> 0
B25: =IF($B24<'الهدف الاستراتيجى'!$D$3,'20'!$B24+1,"") -> 2018-01-18 | C25: الخميس | F25: =Table1456791011121314151617181920[[#This Row],[التارجيت]]-Table1456791011121314151617181920[[#This Row],[المحقق]] -> 0
B26: =IF($B25<'الهدف الاستراتيجى'!$D$3,'20'!$B25+1,"") -> 2018-01-19 | C26: الجمعة | F26: =Table1456791011121314151617181920[[#This Row],[التارجيت]]-Table1456791011121314151617181920[[#This Row],[المحقق]] -> 0
B27: =IF($B26<'الهدف الاستراتيجى'!$D$3,'20'!$B26+1,"") -> 2018-01-20 | C27: السبت | F27: =Table1456791011121314151617181920[[#This Row],[التارجيت]]-Table1456791011121314151617181920[[#This Row],[المحقق]] -> 0
B28: =IF($B27<'الهدف الاستراتيجى'!$D$3,'20'!$B27+1,"") -> 2018-01-21 | C28: الأحد | F28: =Table1456791011121314151617181920[[#This Row],[التارجيت]]-Table1456791011121314151617181920[[#This Row],[المحقق]] -> 0
B29: =IF($B28<'الهدف الاستراتيجى'!$D$3,'20'!$B28+1,"") -> 2018-01-22 | C29: الإثنين | F29: =Table1456791011121314151617181920[[#This Row],[التارجيت]]-Table1456791011121314151617181920[[#This Row],[المحقق]] -> 0
B30: =IF($B29<'الهدف الاستراتيجى'!$D$3,'20'!$B29+1,"") -> 2018-01-23 | C30: الثلاثاء | F30: =Table1456791011121314151617181920[[#This Row],[التارجيت]]-Table1456791011121314151617181920[[#This Row],[المحقق]] -> 0
B31: =IF($B30<'الهدف الاستراتيجى'!$D$3,'20'!$B30+1,"") -> 2018-01-24 | C31: الأربعاء | F31: =Table1456791011121314151617181920[[#This Row],[التارجيت]]-Table1456791011121314151617181920[[#This Row],[المحقق]] -> 0
B32: =IF($B31<'الهدف الاستراتيجى'!$D$3,'20'!$B31+1,"") -> 2018-01-25 | C32: الخميس | F32: =Table1456791011121314151617181920[[#This Row],[التارجيت]]-Table1456791011121314151617181920[[#This Row],[المحقق]] -> 0
B33: =IF($B32<'الهدف الاستراتيجى'!$D$3,'20'!$B32+1,"") -> 2018-01-26 | C33: الجمعة | F33: =Table1456791011121314151617181920[[#This Row],[التارجيت]]-Table1456791011121314151617181920[[#This Row],[المحقق]] -> 0
B34: =IF($B33<'الهدف الاستراتيجى'!$D$3,'20'!$B33+1,"") -> 2018-01-27 | C34: السبت | F34: =Table1456791011121314151617181920[[#This Row],[التارجيت]]-Table1456791011121314151617181920[[#This Row],[المحقق]] -> 0
B35: =IF($B34<'الهدف الاستراتيجى'!$D$3,'20'!$B34+1,"") -> 2018-01-28 | C35: الأحد | F35: =Table1456791011121314151617181920[[#This Row],[التارجيت]]-Table1456791011121314151617181920[[#This Row],[المحقق]] -> 0
B36: =IF($B35<'الهدف الاستراتيجى'!$D$3,'20'!$B35+1,"") -> 2018-01-29 | C36: الإثنين | F36: =Table1456791011121314151617181920[[#This Row],[التارجيت]]-Table1456791011121314151617181920[[#This Row],[المحقق]] -> 0
B37: =IF($B36<'الهدف الاستراتيجى'!$D$3,'20'!$B36+1,"") -> 2018-01-30 | C37: الثلاثاء | F37: =Table1456791011121314151617181920[[#This Row],[التارجيت]]-Table1456791011121314151617181920[[#This Row],[المحقق]] -> 0
B38: =IF($B37<'الهدف الاستراتيجى'!$D$3,'20'!$B37+1,"") -> 2018-01-31 | C38: الأربعاء | F38: =Table1456791011121314151617181920[[#This Row],[التارجيت]]-Table1456791011121314151617181920[[#This Row],[المحقق]] -> 0
B39: المجموع | D39: =SUM(D8:D38) -> 0 | E39: =SUM(E8:E38) -> 0 | F39: =Table1456791011121314151617181920[[#This Row],[التارجيت]]-Table1456791011121314151617181920[[#This Row],[المحقق]] -> 0
B40: المتوسط اليومى | D40: =AVERAGE(D8:D38) ->  | E40: =AVERAGE(E8:E38) ->  | G40: =AVERAGE(G8:G38) -> 
B41: توزيع التارجيت بشكل صحيح | E41: =D39-G3 -> 0 | H41: =IF($E$41=0,CHAR(252),CHAR(251)) -> ü

Sheet Sheet5 (hidden)
A1: الاسم | B1: Average of نسبة الهدف
A2: خليل | B2: 0.7166666667
A3: ابراهيم | B3: 0.7166666667
A4: على | B4: 0.7166666667
A5: حسين | B5: 0.7166666667
A6: حسن | B6: 0.7166666667
A7: محمد الريفى | B7: 0.7166666667
A8: 0 | B8: 0.7166666667
A9: هلال | B9: 0.7166666667

Sheet التقرير العام
A2: الشركة بالكامل | C2: وضع الشركة
A3: التارجيت | B3: =Table22[[#Totals],[التارجيت]] -> 12.5 | C3: =IF(B5>='الهدف الاستراتيجى'!$B$8,'الهدف الاستراتيجى'!$B$10,IF(B5>='الهدف الاستراتيجى'!$C$8,'الهدف الاستراتيجى'!$C$10,IF(B5>='الهدف الاستراتيجى'!$D$8,'الهدف الاستراتيجى'!$D$10,""))) -> التشجيع للوصول للهدف
A4: المحقق | B4: =Table22[[#Totals],[المحقق]] -> 9.85
A5: نسبة الهدف | B5: =Table22[[#Totals],[نسبة الهدف]] -> 0.788
A7: رقم الموظف | B7: القسم | C7: الفرع | D7: الاسم | E7: التارجيت | F7: المحقق | G7: نسبة الهدف | I7: ='الهدف الاستراتيجى'!$B$3 -> 2018-01-01 | J7: =IF(I$7<'الهدف الاستراتيجى'!$D$3,'التقرير العام'!I$7+1,"") -> 2018-01-02 | K7: =IF(J$7<'الهدف الاستراتيجى'!$D$3,'التقرير العام'!J$7+1,"") -> 2018-01-03 | L7: =IF(K$7<'الهدف الاستراتيجى'!$D$3,'التقرير العام'!K$7+1,"") -> 2018-01-04 | M7: =IF(L$7<'الهدف الاستراتيجى'!$D$3,'التقرير العام'!L$7+1,"") -> 2018-01-05 | N7: =IF(M$7<'الهدف الاستراتيجى'!$D$3,'التقرير العام'!M$7+1,"") -> 2018-01-06 | O7: =IF(N$7<'الهدف الاستراتيجى'!$D$3,'التقرير العام'!N$7+1,"") -> 2018-01-07 | P7: =IF(O$7<'الهدف الاستراتيجى'!$D$3,'التقرير العام'!O$7+1,"") -> 2018-01-08 | Q7: =IF(P$7<'الهدف الاستراتيجى'!$D$3,'التقرير العام'!P$7+1,"") -> 2018-01-09 | R7: =IF(Q$7<'الهدف الاستراتيجى'!$D$3,'التقرير العام'!Q$7+1,"") -> 2018-01-10 | S7: =IF(R$7<'الهدف الاستراتيجى'!$D$3,'التقرير العام'!R$7+1,"") -> 2018-01-11 | T7: =IF(S$7<'الهدف الاستراتيجى'!$D$3,'التقرير العام'!S$7+1,"") -> 2018-01-12 | U7: =IF(T$7<'الهدف الاستراتيجى'!$D$3,'التقرير العام'!T$7+1,"") -> 2018-01-13 | V7: =IF(U$7<'الهدف الاستراتيجى'!$D$3,'التقرير العام'!U$7+1,"") -> 2018-01-14 | W7: =IF(V$7<'الهدف الاستراتيجى'!$D$3,'التقرير العام'!V$7+1,"") -> 2018-01-15 | X7: =IF(W$7<'الهدف الاستراتيجى'!$D$3,'التقرير العام'!W$7+1,"") -> 2018-01-16 | Y7: =IF(X$7<'الهدف الاستراتيجى'!$D$3,'التقرير العام'!X$7+1,"") -> 2018-01-17 | Z7: =IF(Y$7<'الهدف الاستراتيجى'!$D$3,'التقرير العام'!Y$7+1,"") -> 2018-01-18 | AA7: =IF(Z$7<'الهدف الاستراتيجى'!$D$3,'التقرير العام'!Z$7+1,"") -> 2018-01-19 | AB7: =IF(AA$7<'الهدف الاستراتيجى'!$D$3,'التقرير العام'!AA$7+1,"") -> 2018-01-20 | AC7: =IF(AB$7<'الهدف الاستراتيجى'!$D$3,'التقرير العام'!AB$7+1,"") -> 2018-01-21 | AD7: =IF(AC$7<'الهدف الاستراتيجى'!$D$3,'التقرير العام'!AC$7+1,"") -> 2018-01-22 | AE7: =IF(AD$7<'الهدف الاستراتيجى'!$D$3,'التقرير العام'!AD$7+1,"") -> 2018-01-23 | AF7: =IF(AE$7<'الهدف الاستراتيجى'!$D$3,'التقرير العام'!AE$7+1,"") -> 2018-01-24 | AG7: =IF(AF$7<'الهدف الاستراتيجى'!$D$3,'التقرير العام'!AF$7+1,"") -> 2018-01-25 | AH7: =IF(AG$7<'الهدف الاستراتيجى'!$D$3,'التقرير العام'!AG$7+1,"") -> 2018-01-26 | AI7: =IF(AH$7<'الهدف الاستراتيجى'!$D$3,'التقرير العام'!AH$7+1,"") -> 2018-01-27 | AJ7: =IF(AI$7<'الهدف الاستراتيجى'!$D$3,'التقرير العام'!AI$7+1,"") -> 2018-01-28 | AK7: =IF(AJ$7<'الهدف الاستراتيجى'!$D$3,'التقرير العام'!AJ$7+1,"") -> 2018-01-29 | AL7: =IF(AK$7<'الهدف الاستراتيجى'!$D$3,'التقرير العام'!AK$7+1,"") -> 2018-01-30 | AM7: =IF(AL$7<'الهدف الاستراتيجى'!$D$3,'التقرير العام'!AL$7+1,"") -> 2018-01-31 | AN7: الاجمالى
A8: =ROW($A1) -> 1 | B8: =IFERROR(INDIRECT(A8&"!C4"),"") -> 0 | C8: =IFERROR(INDIRECT(A8&"!C5"),"") -> 0 | D8: =IFERROR(INDIRECT(A8&"!C3"),"") -> محمد الريفى | E8: =IFERROR(INDIRECT(A8&"!D39"),"") -> 250 | F8: =IFERROR(INDIRECT(A8&"!E39"),"") -> 197 | G8: =IFERROR(F8/E8,"") -> 0.788 | I8: =IFERROR(INDIRECT($A8&"!"&"G"&COLUMN(A$4)+7),"") -> 0.5 | J8: =IFERROR(INDIRECT($A8&"!"&"G"&COLUMN(B$4)+7),"") -> 0.98 | AN8: =IFERROR(AVERAGE(I8:AM8),"") -> 0.74
A9: 2 | B9: =IFERROR(INDIRECT(A9&"!C4"),"") -> 0 | C9: =IFERROR(INDIRECT(A9&"!C5"),"") -> 0 | D9: =IFERROR(INDIRECT(A9&"!C3"),"") -> على | E9: =IFERROR(INDIRECT(A9&"!D39"),"") -> 0 | F9: =IFERROR(INDIRECT(A9&"!E39"),"") -> 0 | G9: =IFERROR(F9/E9,"") ->  | I9: =IFERROR(INDIRECT($A9&"!"&"G"&COLUMN(A$4)+7),"") ->  | J9: =IFERROR(INDIRECT($A9&"!"&"G"&COLUMN(B$4)+7),"") ->  | K9: =IFERROR(INDIRECT($A9&"!"&"G"&COLUMN(C$4)+7),"") ->  | L9: =IFERROR(INDIRECT($A9&"!"&"G"&COLUMN(D$4)+7),"") ->  | M9: =IFERROR(INDIRECT($A9&"!"&"G"&COLUMN(E$4)+7),"") ->  | N9: =IFERROR(INDIRECT($A9&"!"&"G"&COLUMN(F$4)+7),"") ->  | O9: =IFERROR(INDIRECT($A9&"!"&"G"&COLUMN(G$4)+7),"") ->  | P9: =IFERROR(INDIRECT($A9&"!"&"G"&COLUMN(H$4)+7),"") ->  | Q9: =IFERROR(INDIRECT($A9&"!"&"G"&COLUMN(I$4)+7),"") ->  | R9: =IFERROR(INDIRECT($A9&"!"&"G"&COLUMN(J$4)+7),"") ->  | S9: =IFERROR(INDIRECT($A9&"!"&"G"&COLUMN(K$4)+7),"") ->  | T9: =IFERROR(INDIRECT($A9&"!"&"G"&COLUMN(L$4)+7),"") ->  | U9: =IFERROR(INDIRECT($A9&"!"&"G"&COLUMN(M$4)+7),"") ->  | V9: =IFERROR(INDIRECT($A9&"!"&"G"&COLUMN(N$4)+7),"") ->  | W9: =IFERROR(INDIRECT($A9&"!"&"G"&COLUMN(O$4)+7),"") ->  | X9: =IFERROR(INDIRECT($A9&"!"&"G"&COLUMN(P$4)+7),"") ->  | Y9: =IFERROR(INDIRECT($A9&"!"&"G"&COLUMN(Q$4)+7),"") ->  | Z9: =IFERROR(INDIRECT($A9&"!"&"G"&COLUMN(R$4)+7),"") ->  | AA9: =IFERROR(INDIRECT($A9&"!"&"G"&COLUMN(S$4)+7),"") ->  | AB9: =IFERROR(INDIRECT($A9&"!"&"G"&COLUMN(T$4)+7),"") ->  | AC9: =IFERROR(INDIRECT($A9&"!"&"G"&COLUMN(U$4)+7),"") ->  | AD9: =IFERROR(INDIRECT($A9&"!"&"G"&COLUMN(V$4)+7),"") ->  | AE9: =IFERROR(INDIRECT($A9&"!"&"G"&COLUMN(W$4)+7),"") ->  | AF9: =IFERROR(INDIRECT($A9&"!"&"G"&COLUMN(X$4)+7),"") ->  | AG9: =IFERROR(INDIRECT($A9&"!"&"G"&COLUMN(Y$4)+7),"") ->  | AH9: =IFERROR(INDIRECT($A9&"!"&"G"&COLUMN(Z$4)+7),"") ->  | AI9: =IFERROR(INDIRECT($A9&"!"&"G"&COLUMN(AA$4)+7),"") ->  | AJ9: =IFERROR(INDIRECT($A9&"!"&"G"&COLUMN(AB$4)+7),"") ->  | AK9: =IFERROR(INDIRECT($A9&"!"&"G"&COLUMN(AC$4)+7),"") ->  | AL9: =IFERROR(INDIRECT($A9&"!"&"G"&COLUMN(AD$4)+7),"") ->  | AN9: =IFERROR(AVERAGE(I9:AM9),"") -> 
A10: 3 | B10: 0 | C10: 0 | D10: ابراهيم | E10: 0 | F10: 0
A11: 4 | B11: 0 | C11: 0 | D11: حسن | E11: 0 | F11: 0
A12: 5 | B12: 0 | C12: 0 | D12: خليل | E12: 0 | F12: 0
A13: 6 | B13: 0 | C13: 0 | D13: 0 | E13: 0 | F13: 0
A14: 7 | B14: 0 | C14: 0 | D14: 0 | E14: 0 | F14: 0
A15: 8 | B15: 0 | C15: 0 | D15: 0 | E15: 0 | F15: 0
A16: 9 | B16: 0 | C16: 0 | D16: 0 | E16: 0 | F16: 0
A17: 10 | B17: 0 | C17: 0 | D17: هلال | E17: 0 | F17: 0
A18: 11 | B18: 0 | C18: 0 | D18: هلال | E18: 0 | F18: 0
A19: 12 | B19: 0 | C19: 0 | D19: 0 | E19: 0 | F19: 0
A20: 13 | B20: 0 | C20: 0 | D20: 0 | E20: 0 | F20: 0
A21: 14 | B21: 0 | C21: 0 | D21: 0 | E21: 0 | F21: 0
A22: 15 | B22: 0 | C22: 0 | D22: 0 | E22: 0 | F22: 0
A23: 16 | B23: 0 | C23: 0 | D23: حسين | E23: 0 | F23: 0
A24: 17 | B24: 0 | C24: 0 | D24: 0 | E24: 0 | F24: 0
A25: 18 | B25: 0 | C25: 0 | D25: 0 | E25: 0 | F25: 0
A26: 19 | B26: 0 | C26: 0 | D26: 0 | E26: 0 | F26: 0
A27: 20 | B27: 0 | C27: 0 | D27: 0 | E27: 0 | F27: 0
A28: 21
A29: 22
A30: 23
A31: 24
A32: 25
A33: 26
A34: 27
A35: 28
A36: 29
A37: 30
A38: Total | E38: =SUBTOTAL(101,Table22[التارجيت]) -> 12.5 | F38: =SUBTOTAL(101,Table22[المحقق]) -> 9.85 | G38: =Table22[[#Totals],[المحقق]]/Table22[[#Totals],[التارجيت]] -> 0.788 | I38: =IFERROR(AVERAGE(I8:I37),"") -> 0.5 | J38: =IFERROR(AVERAGE(J8:J37),"") -> 0.98 | AN38: 0.74
